Workbook

Sheet OBSAH
A2: 3

Sheet Cenová ponuka
A1: CENOVÁ PONUKA | C1: Firma: | D1: TEST | H1: 10
A2: Tovar | B2: PLU | C2: Množ. | D2: Cena za MJ | E2: Cena spolu

Sheet Objednávka
A1: OBJEDNÁVKA | C1: Firma: | D1: TEST
A2: Tovar | B2: PLU | C2: Množ. | D2: Cena za MJ | E2: Cena spolu

Sheet Lakoplastovaný odkvapový systém
P1: Vaša zľava v %
P2: 0
P3: Ceny sú uvádzané bez DPH.
B7: Lakoplastovaný odkvapový systém | F7: Objednané množstvá
A8: PLU | B8: Model | C8: Cena | D8: Cena po zľave | E8: MJ | F8: 3009 | G8: 5010 | H8: 7016 | I8: 8004 | J8: 8017 | K8: 8019 | L8: 9005 | M8: 9006 | N8: 9010 | O8: 8028 | P8: Obrázok
A9: 5ffff022 | B9: Žľab polkruhový | 250 mm | 2 m | C9: =_xlfn.XLOOKUP(VALUE(REPLACE(A9,2,4,9005)),'[1]Worksheet 1'!$A$2:$A$18880,'[1]Worksheet 1'!$C$2:$C$18880) -> 10.4 | D9: =IFERROR(C9*(1-$P$2/100),"-") -> 10.4 | E9: ks
A10: 5ffff023 | B10: Žľab polkruhový | 250 mm | 3 m | C10: =_xlfn.XLOOKUP(VALUE(REPLACE(A10,2,4,9005)),'[1]Worksheet 1'!$A$2:$A$18880,'[1]Worksheet 1'!$C$2:$C$18880) -> 15.6 | D10: 15.6 | E10: ks
A11: 5ffff024 | B11: Žľab polkruhový | 250 mm | 4 m | C11: =_xlfn.XLOOKUP(VALUE(REPLACE(A11,2,4,9005)),'[1]Worksheet 1'!$A$2:$A$18880,'[1]Worksheet 1'!$C$2:$C$18880) -> 20.8 | D11: 20.8 | E11: ks
A12: 5ffff026 | B12: Žľab polkruhový | 250 mm | 6 m | C12: =_xlfn.XLOOKUP(VALUE(REPLACE(A12,2,4,9005)),'[1]Worksheet 1'!$A$2:$A$18880,'[1]Worksheet 1'!$C$2:$C$18880) -> 31.2 | D12: 31.2 | E12: ks
A13: 5ffff012 | B13: Žľab polkruhový | 330 mm | 2 m | C13: =_xlfn.XLOOKUP(VALUE(REPLACE(A13,2,4,9005)),'[1]Worksheet 1'!$A$2:$A$18880,'[1]Worksheet 1'!$C$2:$C$18880) -> 12 | D13: 12 | E13: ks
A14: 5ffff013 | B14: Žľab polkruhový | 330 mm | 3 m | C14: =_xlfn.XLOOKUP(VALUE(REPLACE(A14,2,4,9005)),'[1]Worksheet 1'!$A$2:$A$18880,'[1]Worksheet 1'!$C$2:$C$18880) -> 18 | D14: 18 | E14: ks
A15: 5ffff014 | B15: Žľab polkruhový | 330 mm | 4 m | C15: =_xlfn.XLOOKUP(VALUE(REPLACE(A15,2,4,9005)),'[1]Worksheet 1'!$A$2:$A$18880,'[1]Worksheet 1'!$C$2:$C$18880) -> 24 | D15: 24 | E15: ks
A16: 5ffff016 | B16: Žľab polkruhový | 330 mm | 6 m | C16: =_xlfn.XLOOKUP(VALUE(REPLACE(A16,2,4,9005)),'[1]Worksheet 1'!$A$2:$A$18880,'[1]Worksheet 1'!$C$2:$C$18880) -> 36 | D16: 36 | E16: ks
A17: 5ffff110 | B17: Žľabový hák | 250 mm | 25x5 | 480 | C17: =_xlfn.XLOOKUP(VALUE(REPLACE(A17,2,4,9005)),'[1]Worksheet 1'!$A$2:$A$18880,'[1]Worksheet 1'!$C$2:$C$18880) -> 3.6 | D17: 3.6 | E17: ks
A18: 5ffff100 | B18: Žľabový hák | 330 mm | 30x5 | 550 | C18: =_xlfn.XLOOKUP(VALUE(REPLACE(A18,2,4,9005)),'[1]Worksheet 1'!$A$2:$A$18880,'[1]Worksheet 1'!$C$2:$C$18880) -> 4.2 | D18: 4.2 | E18: ks
A19: 5ffff116 | B19: Žľabový hák čelový s pätkou | 250 mm | C19: =_xlfn.XLOOKUP(VALUE(REPLACE(A19,2,4,9005)),'[1]Worksheet 1'!$A$2:$A$18880,'[1]Worksheet 1'!$C$2:$C$18880) -> 3.6 | D19: 3.6 | E19: ks
A20: 5ffff106 | B20: Žľabový hák čelový s pätkou | 330 mm | C20: =_xlfn.XLOOKUP(VALUE(REPLACE(A20,2,4,9005)),'[1]Worksheet 1'!$A$2:$A$18880,'[1]Worksheet 1'!$C$2:$C$18880) -> 4 | D20: 4 | E20: ks
A21: 5ffff051 | B21: Zvodová rúra | Ø 80 | 1 m | C21: =_xlfn.XLOOKUP(VALUE(REPLACE(A21,2,4,9005)),'[1]Worksheet 1'!$A$2:$A$18880,'[1]Worksheet 1'!$C$2:$C$18880) -> 6 | D21: 6 | E21: ks
A22: 5ffff053 | B22: Zvodová rúra | Ø 80 | 3 m | C22: =_xlfn.XLOOKUP(VALUE(REPLACE(A22,2,4,9005)),'[1]Worksheet 1'!$A$2:$A$18880,'[1]Worksheet 1'!$C$2:$C$18880) -> 18 | D22: 18 | E22: ks
A23: 5ffff054 | B23: Zvodová rúra | Ø 80 | 4 m | C23: =_xlfn.XLOOKUP(VALUE(REPLACE(A23,2,4,9005)),'[1]Worksheet 1'!$A$2:$A$18880,'[1]Worksheet 1'!$C$2:$C$18880) -> 24 | D23: 24 | E23: ks
A24: 5ffff041 | B24: Zvodová rúra | Ø 100 | 1 m | C24: =_xlfn.XLOOKUP(VALUE(REPLACE(A24,2,4,9005)),'[1]Worksheet 1'!$A$2:$A$18880,'[1]Worksheet 1'!$C$2:$C$18880) -> 6.2 | D24: 6.2 | E24: ks
A25: 5ffff043 | B25: Zvodová rúra | Ø 100 | 3 m | C25: =_xlfn.XLOOKUP(VALUE(REPLACE(A25,2,4,9005)),'[1]Worksheet 1'!$A$2:$A$18880,'[1]Worksheet 1'!$C$2:$C$18880) -> 18.6 | D25: 18.6 | E25: ks
A26: 5ffff044 | B26: Zvodová rúra | Ø 100 | 4 m | C26: =_xlfn.XLOOKUP(VALUE(REPLACE(A26,2,4,9005)),'[1]Worksheet 1'!$A$2:$A$18880,'[1]Worksheet 1'!$C$2:$C$18880) -> 24.8 | D26: 24.8 | E26: ks
A27: 5ffff031 | B27: Zvodová rúra | Ø 120 | 1 m | C27: =_xlfn.XLOOKUP(VALUE(REPLACE(A27,2,4,9005)),'[1]Worksheet 1'!$A$2:$A$18880,'[1]Worksheet 1'!$C$2:$C$18880) -> 9.5 | D27: 9.5 | E27: ks
A28: 5ffff033 | B28: Zvodová rúra | Ø 120 | 3 m | C28: =_xlfn.XLOOKUP(VALUE(REPLACE(A28,2,4,9005)),'[1]Worksheet 1'!$A$2:$A$18880,'[1]Worksheet 1'!$C$2:$C$18880) -> 28.5 | D28: 28.5 | E28: ks
A29: 5ffff034 | B29: Zvodová rúra | Ø 120 | 4 m | C29: =_xlfn.XLOOKUP(VALUE(REPLACE(A29,2,4,9005)),'[1]Worksheet 1'!$A$2:$A$18880,'[1]Worksheet 1'!$C$2:$C$18880) -> 38 | D29: 38 | E29: ks
A30: 5ffff080 | B30: Žľabový roh vonkajší | 250 mm | C30: =_xlfn.XLOOKUP(VALUE(REPLACE(A30,2,4,9005)),'[1]Worksheet 1'!$A$2:$A$18880,'[1]Worksheet 1'!$C$2:$C$18880) -> 11.8 | D30: 11.8 | E30: ks
A31: 5ffff060 | B31: Žľabový roh vonkajší | 330 mm | C31: =_xlfn.XLOOKUP(VALUE(REPLACE(A31,2,4,9005)),'[1]Worksheet 1'!$A$2:$A$18880,'[1]Worksheet 1'!$C$2:$C$18880) -> 12 | D31: 12 | E31: ks
A32: 5ffff090 | B32: Žľabový roh vnútorný | 250 mm | C32: =_xlfn.XLOOKUP(VALUE(REPLACE(A32,2,4,9005)),'[1]Worksheet 1'!$A$2:$A$18880,'[1]Worksheet 1'!$C$2:$C$18880) -> 11.8 | D32: 11.8 | E32: ks
A33: 5ffff070 | B33: Žľabový roh vnútorný | 330 mm | C33: =_xlfn.XLOOKUP(VALUE(REPLACE(A33,2,4,9005)),'[1]Worksheet 1'!$A$2:$A$18880,'[1]Worksheet 1'!$C$2:$C$18880) -> 12 | D33: 12 | E33: ks
A34: 5ffff220 | B34: Žľabové čelo falcovacie | 250 mm | C34: =_xlfn.XLOOKUP(VALUE(REPLACE(A34,2,4,9005)),'[1]Worksheet 1'!$A$2:$A$18880,'[1]Worksheet 1'!$C$2:$C$18880) -> 1.3 | D34: 1.3 | E34: ks
A35: 5ffff210 | B35: Žľabové čelo falcovacie | 330 mm | C35: =_xlfn.XLOOKUP(VALUE(REPLACE(A35,2,4,9005)),'[1]Worksheet 1'!$A$2:$A$18880,'[1]Worksheet 1'!$C$2:$C$18880) -> 1.6 | D35: 1.6 | E35: ks
A36: 5ffff200 | B36: Kotlík kónický | 250 | 80 | C36: =_xlfn.XLOOKUP(VALUE(REPLACE(A36,2,4,9005)),'[1]Worksheet 1'!$A$2:$A$18880,'[1]Worksheet 1'!$C$2:$C$18880) -> 6 | D36: 6 | E36: ks
A37: 5ffff190 | B37: Kotlík kónický | 330 | 100 | C37: =_xlfn.XLOOKUP(VALUE(REPLACE(A37,2,4,9005)),'[1]Worksheet 1'!$A$2:$A$18880,'[1]Worksheet 1'!$C$2:$C$18880) -> 7.3 | D37: 7.3 | E37: ks
A38: 5ffff180 | B38: Kotlík kónický | 330 | 120 | C38: =_xlfn.XLOOKUP(VALUE(REPLACE(A38,2,4,9005)),'[1]Worksheet 1'!$A$2:$A$18880,'[1]Worksheet 1'!$C$2:$C$18880) -> 8.6 | D38: 8.6 | E38: ks
A39: 5ffff255 | B39: Koleno zvárané | Ø 80 | C39: =_xlfn.XLOOKUP(VALUE(REPLACE(A39,2,4,9005)),'[1]Worksheet 1'!$A$2:$A$18880,'[1]Worksheet 1'!$C$2:$C$18880) -> 5.6 | D39: 5.6 | E39: ks
A40: 5ffff245 | B40: Koleno zvárané | Ø 100 | C40: =_xlfn.XLOOKUP(VALUE(REPLACE(A40,2,4,9005)),'[1]Worksheet 1'!$A$2:$A$18880,'[1]Worksheet 1'!$C$2:$C$18880) -> 5.8 | D40: 5.8 | E40: ks
A41: 5ffff235 | B41: Koleno zvárané | Ø 120 | C41: =_xlfn.XLOOKUP(VALUE(REPLACE(A41,2,4,9005)),'[1]Worksheet 1'!$A$2:$A$18880,'[1]Worksheet 1'!$C$2:$C$18880) -> 8.5 | D41: =IFERROR(C41*(1-$P$2/100),"-") -> 8.5 | E41: ks
A42: 5ffff422 | B42: Koleno soklové 60 ° | Ø 80 | C42: =_xlfn.XLOOKUP(VALUE(REPLACE(A42,2,4,9005)),'[1]Worksheet 1'!$A$2:$A$18880,'[1]Worksheet 1'!$C$2:$C$18880) -> 10.5 | D42: 10.5 | E42: ks
A43: 5ffff421 | B43: Koleno soklové 60 ° | Ø 100 | C43: =_xlfn.XLOOKUP(VALUE(REPLACE(A43,2,4,9005)),'[1]Worksheet 1'!$A$2:$A$18880,'[1]Worksheet 1'!$C$2:$C$18880) -> 11 | D43: 11 | E43: ks
A44: 5ffff420 | B44: Koleno soklové 60 ° | Ø 120 | C44: =_xlfn.XLOOKUP(VALUE(REPLACE(A44,2,4,9005)),'[1]Worksheet 1'!$A$2:$A$18880,'[1]Worksheet 1'!$C$2:$C$18880) -> 16 | D44: 16 | E44: ks
A45: 5ffff411 | B45: Výpust dažďovej vody | Ø 80 | C45: =_xlfn.XLOOKUP(VALUE(REPLACE(A45,2,4,9005)),'[1]Worksheet 1'!$A$2:$A$18880,'[1]Worksheet 1'!$C$2:$C$18880) -> 13 | D45: 13 | E45: ks
A46: 5ffff410 | B46: Výpust dažďovej vody | Ø 100 | C46: =_xlfn.XLOOKUP(VALUE(REPLACE(A46,2,4,9005)),'[1]Worksheet 1'!$A$2:$A$18880,'[1]Worksheet 1'!$C$2:$C$18880) -> 14 | D46: 14 | E46: ks
A47: 5ffff400 | B47: Výpust dažďovej vody | Ø 120 | C47: =_xlfn.XLOOKUP(VALUE(REPLACE(A47,2,4,9005)),'[1]Worksheet 1'!$A$2:$A$18880,'[1]Worksheet 1'!$C$2:$C$18880) -> 18 | D47: 18 | E47: ks
A48: 5ffff163 | B48: Objímka | Ø 80 | C48: =_xlfn.XLOOKUP(VALUE(REPLACE(A48,2,4,9005)),'[1]Worksheet 1'!$A$2:$A$18880,'[1]Worksheet 1'!$C$2:$C$18880) -> 2.6 | D48: 2.6 | E48: ks
A49: 5ffff143 | B49: Objímka | Ø 100 | C49: =_xlfn.XLOOKUP(VALUE(REPLACE(A49,2,4,9005)),'[1]Worksheet 1'!$A$2:$A$18880,'[1]Worksheet 1'!$C$2:$C$18880) -> 2.8 | D49: 2.8 | E49: ks
A50: 5ffff123 | B50: Objímka | Ø 120 | C50: =_xlfn.XLOOKUP(VALUE(REPLACE(A50,2,4,9005)),'[1]Worksheet 1'!$A$2:$A$18880,'[1]Worksheet 1'!$C$2:$C$18880) -> 3 | D50: 3 | E50: ks
A51: 82 | B51: Hmoždina do zateplenia M10 (IPL 95 DS) | C51: =_xlfn.XLOOKUP(A51,'[1]Worksheet 1'!$A$2:$A$18880,'[1]Worksheet 1'!$C$2:$C$18880) -> 6.1 | D51: 6.1 | E51: ks
A52: 171 | B52: Tŕň objímky M10 | 160 mm | C52: =_xlfn.XLOOKUP(A52,'[1]Worksheet 1'!$A$2:$A$18880,'[1]Worksheet 1'!$C$2:$C$18880) -> 1.5 | D52: 1.5 | E52: ks
A53: 172 | B53: Tŕň objímky M10 | 205 mm | C53: =_xlfn.XLOOKUP(A53,'[1]Worksheet 1'!$A$2:$A$18880,'[1]Worksheet 1'!$C$2:$C$18880) -> 1.8 | D53: 1.8 | E53: ks
A54: 174 | B54: Tŕň objímky M10 | 305 mm | C54: =_xlfn.XLOOKUP(A54,'[1]Worksheet 1'!$A$2:$A$18880,'[1]Worksheet 1'!$C$2:$C$18880) -> 2.1 | D54: 2.1 | E54: ks
A55: 56 | B55: Držiak objímky na fasádu M10 | C55: =_xlfn.XLOOKUP(A55,'[1]Worksheet 1'!$A$2:$A$18880,'[1]Worksheet 1'!$C$2:$C$18880) -> 1.2 | D55: 1.2 | E55: ks
A56: 5ffff029 | B56: LP žľabová spojka | 250 mm | C56: =_xlfn.XLOOKUP(VALUE(REPLACE(A56,2,4,9005)),'[1]Worksheet 1'!$A$2:$A$18880,'[1]Worksheet 1'!$C$2:$C$18880) -> 4 | D56: 4 | E56: ks
A57: 5ffff019 | B57: LP žľabová spojka | 330 mm | C57: =_xlfn.XLOOKUP(VALUE(REPLACE(A57,2,4,9005)),'[1]Worksheet 1'!$A$2:$A$18880,'[1]Worksheet 1'!$C$2:$C$18880) -> 4.2 | D57: 4.2 | E57: ks
A58: 5ffff059 | B58: LP spojka zvodovej rúry | Ø 80 | C58: =_xlfn.XLOOKUP(VALUE(REPLACE(A58,2,4,9005)),'[1]Worksheet 1'!$A$2:$A$18880,'[1]Worksheet 1'!$C$2:$C$18880) -> 4 | D58: 4 | E58: ks
A59: 5ffff049 | B59: LP spojka zvodovej rúry | Ø 100 | C59: =_xlfn.XLOOKUP(VALUE(REPLACE(A59,2,4,9005)),'[1]Worksheet 1'!$A$2:$A$18880,'[1]Worksheet 1'!$C$2:$C$18880) -> 4 | D59: 4 | E59: ks
A60: 5ffff039 | B60: LP spojka zvodovej rúry | Ø 120 | C60: =_xlfn.XLOOKUP(VALUE(REPLACE(A60,2,4,9005)),'[1]Worksheet 1'!$A$2:$A$18880,'[1]Worksheet 1'!$C$2:$C$18880) -> 4.8 | D60: 4.8 | E60: ks
A61: 5ffff221 | B61: LP žľabové čelo s gumovým tesnením | 250 mm | C61: =_xlfn.XLOOKUP(VALUE(REPLACE(A61,2,4,9005)),'[1]Worksheet 1'!$A$2:$A$18880,'[1]Worksheet 1'!$C$2:$C$18880) -> 3.2 | D61: =IFERROR(C61*(1-$P$2/100),"-") -> 3.2 | E61: ks
A62: 5ffff211 | B62: LP žľabové čelo s gumovým tesnením | 333 mm | C62: =_xlfn.XLOOKUP(VALUE(REPLACE(A62,2,4,9005)),'[1]Worksheet 1'!$A$2:$A$18880,'[1]Worksheet 1'!$C$2:$C$18880) -> 3.4 | D62: 3.4 | E62: ks

Sheet Pozinkovaný odkvapový systém
H1: Vaša zľava v %
H2: 0
H3: Ceny sú uvádzané bez DPH.
B7: Pozinkovaný odkvapový systém
A8: PLU | B8: Model | C8: Cena | D8: Cena po zľave | E8: MJ | F8: Objednané množstvá | G8: Obrázok
A9: 60000011 | B9: PZ žľab polkruhový | 200 mm | 1 m | C9: =_xlfn.XLOOKUP(A9,'[1]Worksheet 1'!$A$2:$A$18880,'[1]Worksheet 1'!$C$2:$C$18880) -> 3.8 | D9: =C9*(1-$H$2/100) -> 3.8 | E9: ks
A10: 60000012 | B10: PZ žľab polkruhový | 200 mm | 2 m | C10: =_xlfn.XLOOKUP(A10,'[1]Worksheet 1'!$A$2:$A$18880,'[1]Worksheet 1'!$C$2:$C$18880) -> 7.6 | D10: 7.6 | E10: ks
A11: 60000013 | B11: PZ žľab polkruhový | 200 mm | 3 m | C11: =_xlfn.XLOOKUP(A11,'[1]Worksheet 1'!$A$2:$A$18880,'[1]Worksheet 1'!$C$2:$C$18880) -> 11.4 | D11: 11.4 | E11: ks
A12: 60000014 | B12: PZ žľab polkruhový | 200 mm | 4 m | C12: =_xlfn.XLOOKUP(A12,'[1]Worksheet 1'!$A$2:$A$18880,'[1]Worksheet 1'!$C$2:$C$18880) -> 18 | D12: 18 | E12: ks
A13: 707 | B13: PZ žľab polkruhový | 250 mm | 2 m | C13: =_xlfn.XLOOKUP(A13,'[1]Worksheet 1'!$A$2:$A$18880,'[1]Worksheet 1'!$C$2:$C$18880) -> 5 | D13: 5 | E13: ks
A14: 708 | B14: PZ žľab polkruhový | 250 mm | 3 m | C14: =_xlfn.XLOOKUP(A14,'[1]Worksheet 1'!$A$2:$A$18880,'[1]Worksheet 1'!$C$2:$C$18880) -> 7.5 | D14: 7.5 | E14: ks
A15: 709 | B15: PZ žľab polkruhový | 250 mm | 4 m | C15: =_xlfn.XLOOKUP(A15,'[1]Worksheet 1'!$A$2:$A$18880,'[1]Worksheet 1'!$C$2:$C$18880) -> 10 | D15: 10 | E15: ks
A16: 710 | B16: PZ žľab polkruhový | 250 mm | 5 m | C16: =_xlfn.XLOOKUP(A16,'[1]Worksheet 1'!$A$2:$A$18880,'[1]Worksheet 1'!$C$2:$C$18880) -> 12.5 | D16: 12.5 | E16: ks
A17: 711 | B17: PZ žľab polkruhový | 250 mm | 6 m | C17: =_xlfn.XLOOKUP(A17,'[1]Worksheet 1'!$A$2:$A$18880,'[1]Worksheet 1'!$C$2:$C$18880) -> 15 | D17: 15 | E17: ks
A18: 700 | B18: PZ žľab polkruhový | 330 mm | 2 m | C18: =_xlfn.XLOOKUP(A18,'[1]Worksheet 1'!$A$2:$A$18880,'[1]Worksheet 1'!$C$2:$C$18880) -> 6.2 | D18: 6.2 | E18: ks
A19: 701 | B19: PZ žľab polkruhový | 330 mm | 3 m | C19: =_xlfn.XLOOKUP(A19,'[1]Worksheet 1'!$A$2:$A$18880,'[1]Worksheet 1'!$C$2:$C$18880) -> 9.3 | D19: 9.3 | E19: ks
A20: 702 | B20: PZ žľab polkruhový | 330 mm | 4 m | C20: =_xlfn.XLOOKUP(A20,'[1]Worksheet 1'!$A$2:$A$18880,'[1]Worksheet 1'!$C$2:$C$18880) -> 12.4 | D20: 12.4 | E20: ks
A21: 703 | B21: PZ žľab polkruhový | 330 mm | 5 m | C21: =_xlfn.XLOOKUP(A21,'[1]Worksheet 1'!$A$2:$A$18880,'[1]Worksheet 1'!$C$2:$C$18880) -> 15.5 | D21: 15.5 | E21: ks
A22: 704 | B22: PZ žľab polkruhový | 330 mm | 6 m | C22: =_xlfn.XLOOKUP(A22,'[1]Worksheet 1'!$A$2:$A$18880,'[1]Worksheet 1'!$C$2:$C$18880) -> 18.6 | D22: 18.6 | E22: ks
A23: 768 | B23: PZ žľab polkruhový | 400 mm | 4 m | C23: =_xlfn.XLOOKUP(A23,'[1]Worksheet 1'!$A$2:$A$18880,'[1]Worksheet 1'!$C$2:$C$18880) -> 29.2 | D23: 29.2 | E23: ks
A24: 767 | B24: PZ žľab polkruhový | 400 mm | 6 m | C24: =_xlfn.XLOOKUP(A24,'[1]Worksheet 1'!$A$2:$A$18880,'[1]Worksheet 1'!$C$2:$C$18880) -> 43.8 | D24: 43.8 | E24: ks
A25: 60000111 | B25: PZ žľabový hák | 200 mm | 25x5/380 | C25: =_xlfn.XLOOKUP(A25,'[1]Worksheet 1'!$A$2:$A$18880,'[1]Worksheet 1'!$C$2:$C$18880) -> 3.2 | D25: 3.2 | E25: ks
A26: 737 | B26: PZ žľabový hák | 250 mm | 30x4/440 | C26: =_xlfn.XLOOKUP(A26,'[1]Worksheet 1'!$A$2:$A$18880,'[1]Worksheet 1'!$C$2:$C$18880) -> 1.7 | D26: 1.7 | E26: ks
A27: 738 | B27: PZ žľabový hák | 330 mm | 30x5/550 | C27: =_xlfn.XLOOKUP(A27,'[1]Worksheet 1'!$A$2:$A$18880,'[1]Worksheet 1'!$C$2:$C$18880) -> 2 | D27: 2 | E27: ks
A28: 763 | B28: PZ žľabový hák | 400 mm | 30x5 | C28: =_xlfn.XLOOKUP(A28,'[1]Worksheet 1'!$A$2:$A$18880,'[1]Worksheet 1'!$C$2:$C$18880) -> 3.7 | D28: 3.7 | E28: ks
A29: 794 | B29: PZ žľabový hák čelový s pätkou | 250 mm | C29: =_xlfn.XLOOKUP(A29,'[1]Worksheet 1'!$A$2:$A$18880,'[1]Worksheet 1'!$C$2:$C$18880) -> 3.2 | D29: 3.2 | E29: ks
A30: 795 | B30: PZ žľabový hák čelový s pätkou | 330 mm | C30: =_xlfn.XLOOKUP(A30,'[1]Worksheet 1'!$A$2:$A$18880,'[1]Worksheet 1'!$C$2:$C$18880) -> 3.6 | D30: 3.6 | E30: ks
A31: 778 | B31: PZ žľabový hák krátky | 330 mm | 30x5/460 | C31: =_xlfn.XLOOKUP(A31,'[1]Worksheet 1'!$A$2:$A$18880,'[1]Worksheet 1'!$C$2:$C$18880) -> 1.89 | D31: 1.89 | E31: ks
A32: 60000056 | B32: PZ zvodová rúra | Ø 60 | 2 m | C32: =_xlfn.XLOOKUP(A32,'[1]Worksheet 1'!$A$2:$A$18880,'[1]Worksheet 1'!$C$2:$C$18880) -> 13 | D32: 13 | E32: ks
A33: 60000057 | B33: PZ zvodová rúra | Ø 60 | 3 m | C33: =_xlfn.XLOOKUP(A33,'[1]Worksheet 1'!$A$2:$A$18880,'[1]Worksheet 1'!$C$2:$C$18880) -> 19.5 | D33: 19.5 | E33: ks
A34: 780 | B34: PZ zvodová rúra | Ø 80 | 1m | C34: =_xlfn.XLOOKUP(A34,'[1]Worksheet 1'!$A$2:$A$18880,'[1]Worksheet 1'!$C$2:$C$18880) -> 3.7 | D34: 3.7 | E34: ks
A35: 723 | B35: PZ zvodová rúra | Ø 80 | 3 m | C35: =_xlfn.XLOOKUP(A35,'[1]Worksheet 1'!$A$2:$A$18880,'[1]Worksheet 1'!$C$2:$C$18880) -> 9.6 | D35: 9.6 | E35: ks
A36: 724 | B36: PZ zvodová rúra | Ø 80 | 4 m | C36: =_xlfn.XLOOKUP(A36,'[1]Worksheet 1'!$A$2:$A$18880,'[1]Worksheet 1'!$C$2:$C$18880) -> 12.8 | D36: 12.8 | E36: ks
A37: 718 | B37: PZ zvodová rúra | Ø 100 | 2 m | C37: =_xlfn.XLOOKUP(A37,'[1]Worksheet 1'!$A$2:$A$18880,'[1]Worksheet 1'!$C$2:$C$18880) -> 7 | D37: 7 | E37: ks
A38: 719 | B38: PZ zvodová rúra | Ø 100 | 3 m | C38: =_xlfn.XLOOKUP(A38,'[1]Worksheet 1'!$A$2:$A$18880,'[1]Worksheet 1'!$C$2:$C$18880) -> 10.5 | D38: 10.5 | E38: ks
A39: 720 | B39: PZ zvodová rúra | Ø 100 | 4 m | C39: =_xlfn.XLOOKUP(A39,'[1]Worksheet 1'!$A$2:$A$18880,'[1]Worksheet 1'!$C$2:$C$18880) -> 14 | D39: 14 | E39: ks
A40: 721 | B40: PZ zvodová rúra | Ø 100 | 5 m | C40: =_xlfn.XLOOKUP(A40,'[1]Worksheet 1'!$A$2:$A$18880,'[1]Worksheet 1'!$C$2:$C$18880) -> 17.5 | D40: 17.5 | E40: ks
A41: 714 | B41: PZ zvodová rúra | Ø 120 | 2 m | C41: =_xlfn.XLOOKUP(A41,'[1]Worksheet 1'!$A$2:$A$18880,'[1]Worksheet 1'!$C$2:$C$18880) -> 10 | D41: =C41*(1-$H$2/100) -> 10 | E41: ks
A42: 715 | B42: PZ zvodová rúra | Ø 120 | 3 m | C42: =_xlfn.XLOOKUP(A42,'[1]Worksheet 1'!$A$2:$A$18880,'[1]Worksheet 1'!$C$2:$C$18880) -> 15 | D42: 15 | E42: ks
A43: 716 | B43: PZ zvodová rúra | Ø 120 | 4 m | C43: =_xlfn.XLOOKUP(A43,'[1]Worksheet 1'!$A$2:$A$18880,'[1]Worksheet 1'!$C$2:$C$18880) -> 20 | D43: 20 | E43: ks
A44: 717 | B44: PZ zvodová rúra | Ø 120 | 5 m | C44: =_xlfn.XLOOKUP(A44,'[1]Worksheet 1'!$A$2:$A$18880,'[1]Worksheet 1'!$C$2:$C$18880) -> 25 | D44: 25 | E44: ks
A45: 766 | B45: PZ zvodová rúra | Ø 150 | 2 m | C45: =_xlfn.XLOOKUP(A45,'[1]Worksheet 1'!$A$2:$A$18880,'[1]Worksheet 1'!$C$2:$C$18880) -> 22 | D45: 22 | E45: ks
A46: 770 | B46: PZ zvodová rúra | Ø 150 | 4 m | C46: =_xlfn.XLOOKUP(A46,'[1]Worksheet 1'!$A$2:$A$18880,'[1]Worksheet 1'!$C$2:$C$18880) -> 44 | D46: 44 | E46: ks
A47: 60000070 | B47: PZ žľabový roh vnútorný | 200 mm | C47: =_xlfn.XLOOKUP(A47,'[1]Worksheet 1'!$A$2:$A$18880,'[1]Worksheet 1'!$C$2:$C$18880) -> 15 | D47: 15 | E47: ks
A48: 60000060 | B48: PZ žľabový roh vonkajší | 200 mm | C48: =_xlfn.XLOOKUP(A48,'[1]Worksheet 1'!$A$2:$A$18880,'[1]Worksheet 1'!$C$2:$C$18880) -> 15 | D48: 15 | E48: ks
A49: 728 | B49: PZ žľabový roh vnútorný | 250 mm | C49: =_xlfn.XLOOKUP(A49,'[1]Worksheet 1'!$A$2:$A$18880,'[1]Worksheet 1'!$C$2:$C$18880) -> 6.2 | D49: 6.2 | E49: ks
A50: 727 | B50: PZ žľabový roh vonkajší | 250 mm | C50: =_xlfn.XLOOKUP(A50,'[1]Worksheet 1'!$A$2:$A$18880,'[1]Worksheet 1'!$C$2:$C$18880) -> 6.2 | D50: 6.2 | E50: ks
A51: 726 | B51: PZ žľabový roh vnútorný | 330 mm | C51: =_xlfn.XLOOKUP(A51,'[1]Worksheet 1'!$A$2:$A$18880,'[1]Worksheet 1'!$C$2:$C$18880) -> 6.4 | D51: 6.4 | E51: ks
A52: 725 | B52: PZ žľabový roh vonkajší | 330 mm | C52: =_xlfn.XLOOKUP(A52,'[1]Worksheet 1'!$A$2:$A$18880,'[1]Worksheet 1'!$C$2:$C$18880) -> 6.4 | D52: 6.4 | E52: ks
A53: 765 | B53: PZ žľabový roh vnútorný | 400 mm | C53: =_xlfn.XLOOKUP(A53,'[1]Worksheet 1'!$A$2:$A$18880,'[1]Worksheet 1'!$C$2:$C$18880) -> 25 | D53: 25 | E53: ks
A54: 764 | B54: PZ žľabový roh vonkajší | 400 mm | C54: =_xlfn.XLOOKUP(A54,'[1]Worksheet 1'!$A$2:$A$18880,'[1]Worksheet 1'!$C$2:$C$18880) -> 25 | D54: 25 | E54: ks
A55: 60000221 | B55: PZ žľabové čelo falcovacie | 200 mm | C55: =_xlfn.XLOOKUP(A55,'[1]Worksheet 1'!$A$2:$A$18880,'[1]Worksheet 1'!$C$2:$C$18880) -> 0.8 | D55: 0.8 | E55: ks
A56: 730 | B56: PZ žľabové čelo falcovacie | 250 mm | C56: =_xlfn.XLOOKUP(A56,'[1]Worksheet 1'!$A$2:$A$18880,'[1]Worksheet 1'!$C$2:$C$18880) -> 0.44 | D56: 0.44 | E56: ks
A57: 729 | B57: PZ žľabové čelo falcovacie | 330 mm | C57: =_xlfn.XLOOKUP(A57,'[1]Worksheet 1'!$A$2:$A$18880,'[1]Worksheet 1'!$C$2:$C$18880) -> 0.45 | D57: 0.45 | E57: ks
A58: 762 | B58: PZ žľabové čelo falcovacie | 400 mm | C58: =_xlfn.XLOOKUP(A58,'[1]Worksheet 1'!$A$2:$A$18880,'[1]Worksheet 1'!$C$2:$C$18880) -> 1.9 | D58: 1.9 | E58: ks
A59: 799 | B59: PZ žľabové čelo s tesniacou gumou | 250 mm | C59: =_xlfn.XLOOKUP(A59,'[1]Worksheet 1'!$A$2:$A$18880,'[1]Worksheet 1'!$C$2:$C$18880) -> 1.6 | D59: 1.6 | E59: ks
A60: 798 | B60: PZ žľabové čelo s tesniacou gumou | 330 mm | C60: =_xlfn.XLOOKUP(A60,'[1]Worksheet 1'!$A$2:$A$18880,'[1]Worksheet 1'!$C$2:$C$18880) -> 1.6 | D60: 1.6 | E60: ks
A61: 797 | B61: PZ žľabové čelo nafalcované | 250 mm | C61: =_xlfn.XLOOKUP(A61,'[1]Worksheet 1'!$A$2:$A$18880,'[1]Worksheet 1'!$C$2:$C$18880) -> 2.4 | D61: 2.4 | E61: ks
A62: 796 | B62: PZ žľabové čelo nafalcované | 330 mm | C62: =_xlfn.XLOOKUP(A62,'[1]Worksheet 1'!$A$2:$A$18880,'[1]Worksheet 1'!$C$2:$C$18880) -> 2.7 | D62: 2.7 | E62: ks
A63: 60000205 | B63: PZ kotlík kónický | 200 mm | 60 | C63: =_xlfn.XLOOKUP(A63,'[1]Worksheet 1'!$A$2:$A$18880,'[1]Worksheet 1'!$C$2:$C$18880) -> 8.7 | D63: 8.7 | E63: ks
A64: 731 | B64: PZ kotlík kónický | 250 mm | 80 | C64: =_xlfn.XLOOKUP(A64,'[1]Worksheet 1'!$A$2:$A$18880,'[1]Worksheet 1'!$C$2:$C$18880) -> 2.6 | D64: 2.6 | E64: ks
A65: 732 | B65: PZ kotlík kónický | 330 mm | 100 | C65: =_xlfn.XLOOKUP(A65,'[1]Worksheet 1'!$A$2:$A$18880,'[1]Worksheet 1'!$C$2:$C$18880) -> 3 | D65: 3 | E65: ks
A66: 733 | B66: PZ kotlík kónický | 330 mm | 120 | C66: =_xlfn.XLOOKUP(A66,'[1]Worksheet 1'!$A$2:$A$18880,'[1]Worksheet 1'!$C$2:$C$18880) -> 3.6 | D66: 3.6 | E66: ks
A67: 760 | B67: PZ kotlík kónický | 400 mm | 120 | C67: =_xlfn.XLOOKUP(A67,'[1]Worksheet 1'!$A$2:$A$18880,'[1]Worksheet 1'!$C$2:$C$18880) -> 12 | D67: 12 | E67: ks
A68: 761 | B68: PZ kotlík kónický | 400 mm | 150 | C68: =_xlfn.XLOOKUP(A68,'[1]Worksheet 1'!$A$2:$A$18880,'[1]Worksheet 1'!$C$2:$C$18880) -> 13 | D68: 13 | E68: ks
A69: 79 | B69: PZ kotlík zlučovací | Ø 100 | C69: =_xlfn.XLOOKUP(A69,'[1]Worksheet 1'!$A$2:$A$18880,'[1]Worksheet 1'!$C$2:$C$18880) -> 20.3 | D69: 20.3 | E69: ks
A70: 78 | B70: PZ kotlík zlučovací | Ø 120 | C70: =_xlfn.XLOOKUP(A70,'[1]Worksheet 1'!$A$2:$A$18880,'[1]Worksheet 1'!$C$2:$C$18880) -> 21 | D70: 21 | E70: ks
A71: 60000255 | B71: PZ koleno 72 ° | Ø 60 | C71: =_xlfn.XLOOKUP(A71,'[1]Worksheet 1'!$A$2:$A$18880,'[1]Worksheet 1'!$C$2:$C$18880) -> 6.9 | D71: 6.9 | E71: ks
A72: 734 | B72: PZ koleno 72 ° | Ø 80 | C72: =_xlfn.XLOOKUP(A72,'[1]Worksheet 1'!$A$2:$A$18880,'[1]Worksheet 1'!$C$2:$C$18880) -> 1.7 | D72: =C72*(1-$H$2/100) -> 1.7 | E72: ks
A73: 735 | B73: PZ koleno 72 ° | Ø 100 | C73: =_xlfn.XLOOKUP(A73,'[1]Worksheet 1'!$A$2:$A$18880,'[1]Worksheet 1'!$C$2:$C$18880) -> 2.1 | D73: 2.1 | E73: ks
A74: 736 | B74: PZ koleno 72 ° | Ø 120 | C74: =_xlfn.XLOOKUP(A74,'[1]Worksheet 1'!$A$2:$A$18880,'[1]Worksheet 1'!$C$2:$C$18880) -> 4.5 | D74: 4.5 | E74: ks
A75: 769 | B75: PZ koleno 72 ° | Ø 150 | C75: =_xlfn.XLOOKUP(A75,'[1]Worksheet 1'!$A$2:$A$18880,'[1]Worksheet 1'!$C$2:$C$18880) -> 20.5 | D75: 20.5 | E75: ks
A76: 60000165 | B76: PZ objímka M10 | Ø 60 | C76: =_xlfn.XLOOKUP(A76,'[1]Worksheet 1'!$A$2:$A$18880,'[1]Worksheet 1'!$C$2:$C$18880) -> 2.4 | D76: 2.4 | E76: ks
A77: 169 | B77: PZ objímka M10 | Ø 80 | C77: =_xlfn.XLOOKUP(A77,'[1]Worksheet 1'!$A$2:$A$18880,'[1]Worksheet 1'!$C$2:$C$18880) -> 1.35 | D77: 1.35 | E77: ks
A78: 167 | B78: PZ objímka M10 | Ø 100 | C78: =_xlfn.XLOOKUP(A78,'[1]Worksheet 1'!$A$2:$A$18880,'[1]Worksheet 1'!$C$2:$C$18880) -> 1.4 | D78: 1.4 | E78: ks
A79: 165 | B79: PZ objímka M10 | Ø 120 | C79: =_xlfn.XLOOKUP(A79,'[1]Worksheet 1'!$A$2:$A$18880,'[1]Worksheet 1'!$C$2:$C$18880) -> 1.6 | D79: 1.6 | E79: ks
A80: 163 | B80: PZ objímka M10 | Ø 150 | C80: =_xlfn.XLOOKUP(A80,'[1]Worksheet 1'!$A$2:$A$18880,'[1]Worksheet 1'!$C$2:$C$18880) -> 3.4 | D80: 3.4 | E80: ks
A81: 56 | B81: Držiak objímky na fasádu M10 | C81: =_xlfn.XLOOKUP(A81,'[1]Worksheet 1'!$A$2:$A$18880,'[1]Worksheet 1'!$C$2:$C$18880) -> 1.2 | D81: 1.2 | E81: ks
A82: 171 | B82: Tŕň objímky M10 | 160 mm | C82: =_xlfn.XLOOKUP(A82,'[1]Worksheet 1'!$A$2:$A$18880,'[1]Worksheet 1'!$C$2:$C$18880) -> 1.5 | D82: 1.5 | E82: ks
A83: 172 | B83: Tŕň objímky M10 | 205 mm | C83: =_xlfn.XLOOKUP(A83,'[1]Worksheet 1'!$A$2:$A$18880,'[1]Worksheet 1'!$C$2:$C$18880) -> 1.8 | D83: 1.8 | E83: ks
A84: 174 | B84: Tŕň objímky M10 | 305 mm | C84: =_xlfn.XLOOKUP(A84,'[1]Worksheet 1'!$A$2:$A$18880,'[1]Worksheet 1'!$C$2:$C$18880) -> 2.1 | D84: 2.1 | E84: ks
A85: 82 | B85: Hmoždina do zateplenia M10 | C85: =_xlfn.XLOOKUP(A85,'[1]Worksheet 1'!$A$2:$A$18880,'[1]Worksheet 1'!$C$2:$C$18880) -> 6.1 | D85: 6.1 | E85: ks
A86: 755 | B86: PZ koleno výtokové 72 ° | Ø 80 | C86: =_xlfn.XLOOKUP(A86,'[1]Worksheet 1'!$A$2:$A$18880,'[1]Worksheet 1'!$C$2:$C$18880) -> 3.2 | D86: 3.2 | E86: ks
A87: 756 | B87: PZ koleno výtokové 72 ° | Ø 100 | C87: =_xlfn.XLOOKUP(A87,'[1]Worksheet 1'!$A$2:$A$18880,'[1]Worksheet 1'!$C$2:$C$18880) -> 3.4 | D87: 3.4 | E87: ks
A88: 757 | B88: PZ koleno výtokové 72 ° | Ø 120 | C88: =_xlfn.XLOOKUP(A88,'[1]Worksheet 1'!$A$2:$A$18880,'[1]Worksheet 1'!$C$2:$C$18880) -> 4.9 | D88: 4.9 | E88: ks
A89: 744 | B89: PZ koleno soklové, odskok 60 mm | Ø 80 | C89: =_xlfn.XLOOKUP(A89,'[1]Worksheet 1'!$A$2:$A$18880,'[1]Worksheet 1'!$C$2:$C$18880) -> 7 | D89: 7 | E89: ks
A90: 745 | B90: PZ koleno soklové, odskok 60 mm | Ø 100 | C90: =_xlfn.XLOOKUP(A90,'[1]Worksheet 1'!$A$2:$A$18880,'[1]Worksheet 1'!$C$2:$C$18880) -> 9.8 | D90: 9.8 | E90: ks
A91: 746 | B91: PZ koleno soklové, odskok 60 mm | Ø 120 | C91: =_xlfn.XLOOKUP(A91,'[1]Worksheet 1'!$A$2:$A$18880,'[1]Worksheet 1'!$C$2:$C$18880) -> 13.5 | D91: 13.5 | E91: ks
A92: 741 | B92: PZ výpust dažďovej vody | Ø 80 | C92: =_xlfn.XLOOKUP(A92,'[1]Worksheet 1'!$A$2:$A$18880,'[1]Worksheet 1'!$C$2:$C$18880) -> 10.5 | D92: 10.5 | E92: ks
A93: 742 | B93: PZ výpust dažďovej vody | Ø 100 | C93: =_xlfn.XLOOKUP(A93,'[1]Worksheet 1'!$A$2:$A$18880,'[1]Worksheet 1'!$C$2:$C$18880) -> 11 | D93: 11 | E93: ks
A94: 743 | B94: PZ výpust dažďovej vody | Ø 120 | C94: =_xlfn.XLOOKUP(A94,'[1]Worksheet 1'!$A$2:$A$18880,'[1]Worksheet 1'!$C$2:$C$18880) -> 13 | D94: 13 | E94: ks
A95: 188 | B95: PZ odbočka atypická 72 ° | 80/80 | C95: =_xlfn.XLOOKUP(A95,'[1]Worksheet 1'!$A$2:$A$18880,'[1]Worksheet 1'!$C$2:$C$18880) -> 14.93 | D95: 14.93 | E95: ks
A96: 189 | B96: PZ odbočka atypická 72 ° | 100/80 | C96: =_xlfn.XLOOKUP(A96,'[1]Worksheet 1'!$A$2:$A$18880,'[1]Worksheet 1'!$C$2:$C$18880) -> 15.05 | D96: 15.05 | E96: ks
A97: 190 | B97: PZ odbočka atypická 72 ° | 100/100 | C97: =_xlfn.XLOOKUP(A97,'[1]Worksheet 1'!$A$2:$A$18880,'[1]Worksheet 1'!$C$2:$C$18880) -> 15.07 | D97: 15.07 | E97: ks
A98: 191 | B98: PZ odbočka atypická 72 ° | 120/80 | C98: =_xlfn.XLOOKUP(A98,'[1]Worksheet 1'!$A$2:$A$18880,'[1]Worksheet 1'!$C$2:$C$18880) -> 15.29 | D98: 15.29 | E98: ks
A99: 192 | B99: PZ odbočka atypická 72 ° | 120/100 | C99: =_xlfn.XLOOKUP(A99,'[1]Worksheet 1'!$A$2:$A$18880,'[1]Worksheet 1'!$C$2:$C$18880) -> 15.31 | D99: 15.31 | E99: ks
A100: 193 | B100: PZ odbočka atypická 72 ° | 120/120 | C100: =_xlfn.XLOOKUP(A100,'[1]Worksheet 1'!$A$2:$A$18880,'[1]Worksheet 1'!$C$2:$C$18880) -> 32 | D100: 32 | E100: ks
A101: 774 | B101: PZ lapač lístia | Ø 80 | C101: =_xlfn.XLOOKUP(A101,'[1]Worksheet 1'!$A$2:$A$18880,'[1]Worksheet 1'!$C$2:$C$18880) -> 3.8 | D101: 3.8 | E101: ks
A102: 750 | B102: PZ lapač lístia | Ø 120 | C102: =_xlfn.XLOOKUP(A102,'[1]Worksheet 1'!$A$2:$A$18880,'[1]Worksheet 1'!$C$2:$C$18880) -> 4.8 | D102: 4.8 | E102: ks
A103: 790 | B103: PZ žľabová spojka | 250 mm | C103: =_xlfn.XLOOKUP(A103,'[1]Worksheet 1'!$A$2:$A$18880,'[1]Worksheet 1'!$C$2:$C$18880) -> 3.2 | D103: 3.2 | E103: ks
A104: 789 | B104: PZ žľabová spojka | 330 mm | C104: =_xlfn.XLOOKUP(A104,'[1]Worksheet 1'!$A$2:$A$18880,'[1]Worksheet 1'!$C$2:$C$18880) -> 3.4 | D104: =C104*(1-$H$2/100) -> 3.4 | E104: ks

Sheet Pozinkovaný odkvapový systém La
H1: Vaša zľava v %
H2: 0
H3: Ceny sú uvádzané bez DPH.
B7: Pozinkovaný odkvapový systém Lamina s návalkammi dovnútra
A8: PLU | B8: Model | C8: Cena | D8: Cena po zľave | E8: MJ | F8: Objednané množstvá | G8: Obrázok
A9: 4 | B9: PZ žľab polkruhový | 250 mm | 2 m | C9: =_xlfn.XLOOKUP(A9,'[1]Worksheet 1'!$A$2:$A$18880,'[1]Worksheet 1'!$C$2:$C$18880) -> 8.7 | D9: =C9*(1-$H$2/100) -> 8.7 | E9: ks
A10: 2 | B10: PZ žľab polkruhový | 330 mm | 2 m | C10: =_xlfn.XLOOKUP(A10,'[1]Worksheet 1'!$A$2:$A$18880,'[1]Worksheet 1'!$C$2:$C$18880) -> 10.8 | D10: 10.8 | E10: ks
A11: 8 | B11: PZ žľab polkruhový s čelom | 250 mm | 2 m | C11: =_xlfn.XLOOKUP(A11,'[1]Worksheet 1'!$A$2:$A$18880,'[1]Worksheet 1'!$C$2:$C$18880) -> 13.7 | D11: 13.7 | E11: ks
A12: 6 | B12: PZ žľab polkruhový s čelom | 330 mm | 2 m | C12: =_xlfn.XLOOKUP(A12,'[1]Worksheet 1'!$A$2:$A$18880,'[1]Worksheet 1'!$C$2:$C$18880) -> 15.7 | D12: 15.7 | E12: ks
A13: 42 | B13: PZ žľabový hák | 250 mm | C13: =_xlfn.XLOOKUP(A13,'[1]Worksheet 1'!$A$2:$A$18880,'[1]Worksheet 1'!$C$2:$C$18880) -> 3 | D13: 3 | E13: ks
A14: 40 | B14: PZ žľabový hák | 330 mm | C14: =_xlfn.XLOOKUP(A14,'[1]Worksheet 1'!$A$2:$A$18880,'[1]Worksheet 1'!$C$2:$C$18880) -> 3.7 | D14: 3.7 | E14: ks
A15: 46 | B15: PZ žľabový hák očíslovaný 1- 10 | 250 mm | C15: =_xlfn.XLOOKUP(A15,'[1]Worksheet 1'!$A$2:$A$18880,'[1]Worksheet 1'!$C$2:$C$18880) -> 3.7 | D15: 3.7 | E15: ks
A16: 44 | B16: PZ žľabový hák očíslovaný 1- 11 | 330 mm | C16: =_xlfn.XLOOKUP(A16,'[1]Worksheet 1'!$A$2:$A$18880,'[1]Worksheet 1'!$C$2:$C$18880) -> 4 | D16: 4 | E16: ks
A17: 50 | B17: PZ žlabový hák čelový | 250 mm | C17: =_xlfn.XLOOKUP(A17,'[1]Worksheet 1'!$A$2:$A$18880,'[1]Worksheet 1'!$C$2:$C$18880) -> 2 | D17: 2 | E17: ks
A18: 48 | B18: PZ žlabový hák čelový | 330 mm | C18: =_xlfn.XLOOKUP(A18,'[1]Worksheet 1'!$A$2:$A$18880,'[1]Worksheet 1'!$C$2:$C$18880) -> 2.4 | D18: 2.4 | E18: ks
A19: 12 | B19: PZ zvodová rúra | Ø 80 | 1 m | C19: =_xlfn.XLOOKUP(A19,'[1]Worksheet 1'!$A$2:$A$18880,'[1]Worksheet 1'!$C$2:$C$18880) -> 5.5 | D19: 5.5 | E19: ks
A20: 11 | B20: PZ zvodová rúra | Ø 100 | 1 m | C20: =_xlfn.XLOOKUP(A20,'[1]Worksheet 1'!$A$2:$A$18880,'[1]Worksheet 1'!$C$2:$C$18880) -> 6.3 | D20: 6.3 | E20: ks
A21: 10 | B21: PZ zvodová rúra | Ø 120 | 1 m | C21: =_xlfn.XLOOKUP(A21,'[1]Worksheet 1'!$A$2:$A$18880,'[1]Worksheet 1'!$C$2:$C$18880) -> 7.2 | D21: 7.2 | E21: ks
A22: 24 | B22: PZ žľabový roh | 250 mm | C22: =_xlfn.XLOOKUP(A22,'[1]Worksheet 1'!$A$2:$A$18880,'[1]Worksheet 1'!$C$2:$C$18880) -> 7.3 | D22: 7.3 | E22: ks
A23: 22 | B23: PZ žľabový roh | 330 mm | C23: =_xlfn.XLOOKUP(A23,'[1]Worksheet 1'!$A$2:$A$18880,'[1]Worksheet 1'!$C$2:$C$18880) -> 8.1 | D23: 8.1 | E23: ks
A24: 28 | B24: PZ žľabové čelo falcovacie | 250 mm | C24: =_xlfn.XLOOKUP(A24,'[1]Worksheet 1'!$A$2:$A$18880,'[1]Worksheet 1'!$C$2:$C$18880) -> 1.3 | D24: 1.3 | E24: ks
A25: 26 | B25: PZ žľabové čelo falcovacie | 330 mm | C25: =_xlfn.XLOOKUP(A25,'[1]Worksheet 1'!$A$2:$A$18880,'[1]Worksheet 1'!$C$2:$C$18880) -> 1.4 | D25: 1.4 | E25: ks
A26: 33 | B26: PZ kotlík kónický | 250 mm | 100 | C26: =_xlfn.XLOOKUP(A26,'[1]Worksheet 1'!$A$2:$A$18880,'[1]Worksheet 1'!$C$2:$C$18880) -> 7.2 | D26: 7.2 | E26: ks
A27: 31 | B27: PZ kotlík kónický | 330 mm | 100 | C27: =_xlfn.XLOOKUP(A27,'[1]Worksheet 1'!$A$2:$A$18880,'[1]Worksheet 1'!$C$2:$C$18880) -> 8.1 | D27: 8.1 | E27: ks
A28: 30 | B28: PZ kotlík kónický | 330 mm | 120 | C28: =_xlfn.XLOOKUP(A28,'[1]Worksheet 1'!$A$2:$A$18880,'[1]Worksheet 1'!$C$2:$C$18880) -> 8.2 | D28: 8.2 | E28: ks
A29: 79 | B29: PZ kotlík zlučovací | Ø 100 | C29: =_xlfn.XLOOKUP(A29,'[1]Worksheet 1'!$A$2:$A$18880,'[1]Worksheet 1'!$C$2:$C$18880) -> 20.3 | D29: 20.3 | E29: ks
A30: 78 | B30: PZ kotlík zlučovací | Ø 120 | C30: =_xlfn.XLOOKUP(A30,'[1]Worksheet 1'!$A$2:$A$18880,'[1]Worksheet 1'!$C$2:$C$18880) -> 21 | D30: 21 | E30: ks
A31: 41 | B31: PZ kotlík hranatý | Ø 80 | 200x200x250 | C31: =_xlfn.XLOOKUP(A31,'[1]Worksheet 1'!$A$2:$A$18880,'[1]Worksheet 1'!$C$2:$C$18880) -> 35 | D31: 35 | E31: ks
A32: 34 | B32: PZ kotlík hranatý | Ø 100 | 200x200x250 | C32: =_xlfn.XLOOKUP(A32,'[1]Worksheet 1'!$A$2:$A$18880,'[1]Worksheet 1'!$C$2:$C$18880) -> 37.5 | D32: 37.5 | E32: ks
A33: 35 | B33: PZ kotlík hranatý | Ø 120 | 200x200x250 | C33: =_xlfn.XLOOKUP(A33,'[1]Worksheet 1'!$A$2:$A$18880,'[1]Worksheet 1'!$C$2:$C$18880) -> 37.8 | D33: 37.8 | E33: ks
A34: 37 | B34: PZ žľabové hrdlo | 250 mm | 100 | C34: =_xlfn.XLOOKUP(A34,'[1]Worksheet 1'!$A$2:$A$18880,'[1]Worksheet 1'!$C$2:$C$18880) -> 3.5 | D34: 3.5 | E34: ks
A35: 36 | B35: PZ žľabové hrdlo | 330 mm | 120 | C35: =_xlfn.XLOOKUP(A35,'[1]Worksheet 1'!$A$2:$A$18880,'[1]Worksheet 1'!$C$2:$C$18880) -> 4 | D35: 4 | E35: ks
A36: 16 | B36: PZ koleno horné | Ø 80 | C36: =_xlfn.XLOOKUP(A36,'[1]Worksheet 1'!$A$2:$A$18880,'[1]Worksheet 1'!$C$2:$C$18880) -> 8.7 | D36: 8.7 | E36: ks
A37: 15 | B37: PZ koleno horné | Ø 100 | C37: =_xlfn.XLOOKUP(A37,'[1]Worksheet 1'!$A$2:$A$18880,'[1]Worksheet 1'!$C$2:$C$18880) -> 9.1 | D37: 9.1 | E37: ks
A38: 14 | B38: PZ koleno horné | Ø 120 | C38: =_xlfn.XLOOKUP(A38,'[1]Worksheet 1'!$A$2:$A$18880,'[1]Worksheet 1'!$C$2:$C$18880) -> 9.7 | D38: 9.7 | E38: ks
A39: 169 | B39: PZ objímka M10 | Ø 80 | C39: =_xlfn.XLOOKUP(A39,'[1]Worksheet 1'!$A$2:$A$18880,'[1]Worksheet 1'!$C$2:$C$18880) -> 1.35 | D39: 1.35 | E39: ks
A40: 167 | B40: PZ objímka M10 | Ø 100 | C40: =_xlfn.XLOOKUP(A40,'[1]Worksheet 1'!$A$2:$A$18880,'[1]Worksheet 1'!$C$2:$C$18880) -> 1.4 | D40: 1.4 | E40: ks
A41: 165 | B41: PZ objímka M10 | Ø 120 | C41: =_xlfn.XLOOKUP(A41,'[1]Worksheet 1'!$A$2:$A$18880,'[1]Worksheet 1'!$C$2:$C$18880) -> 1.6 | D41: =C41*(1-$H$2/100) -> 1.6 | E41: ks
A42: 56 | B42: PZ držiak objímky na fasádu M10 | C42: =_xlfn.XLOOKUP(A42,'[1]Worksheet 1'!$A$2:$A$18880,'[1]Worksheet 1'!$C$2:$C$18880) -> 1.2 | D42: 1.2 | E42: ks
A43: 171 | B43: Tŕň objímky M10 | 160 mm | C43: =_xlfn.XLOOKUP(A43,'[1]Worksheet 1'!$A$2:$A$18880,'[1]Worksheet 1'!$C$2:$C$18880) -> 1.5 | D43: 1.5 | E43: ks
A44: 172 | B44: Tŕň objímky M10 | 205 mm | C44: =_xlfn.XLOOKUP(A44,'[1]Worksheet 1'!$A$2:$A$18880,'[1]Worksheet 1'!$C$2:$C$18880) -> 1.8 | D44: 1.8 | E44: ks
A45: 174 | B45: Tŕň objímky M10 | 305 mm | C45: =_xlfn.XLOOKUP(A45,'[1]Worksheet 1'!$A$2:$A$18880,'[1]Worksheet 1'!$C$2:$C$18880) -> 2.1 | D45: 2.1 | E45: ks
A46: 82 | B46: Hmoždina do zateplenia M10 | C46: =_xlfn.XLOOKUP(A46,'[1]Worksheet 1'!$A$2:$A$18880,'[1]Worksheet 1'!$C$2:$C$18880) -> 6.1 | D46: 6.1 | E46: ks
A47: 20 | B47: PZ koleno výtokové | Ø 80 | C47: =_xlfn.XLOOKUP(A47,'[1]Worksheet 1'!$A$2:$A$18880,'[1]Worksheet 1'!$C$2:$C$18880) -> 5.1 | D47: 5.1 | E47: ks
A48: 19 | B48: PZ koleno výtokové | Ø 100 | C48: =_xlfn.XLOOKUP(A48,'[1]Worksheet 1'!$A$2:$A$18880,'[1]Worksheet 1'!$C$2:$C$18880) -> 5.4 | D48: 5.4 | E48: ks
A49: 18 | B49: PZ koleno výtokové | Ø 120 | C49: =_xlfn.XLOOKUP(A49,'[1]Worksheet 1'!$A$2:$A$18880,'[1]Worksheet 1'!$C$2:$C$18880) -> 5.6 | D49: 5.6 | E49: ks
A50: 70 | B50: PZ výpusť dažďovej vody | Ø 80 | C50: =_xlfn.XLOOKUP(A50,'[1]Worksheet 1'!$A$2:$A$18880,'[1]Worksheet 1'!$C$2:$C$18880) -> 14.7 | D50: 14.7 | E50: ks
A51: 69 | B51: PZ výpusť dažďovej vody | Ø 100 | C51: =_xlfn.XLOOKUP(A51,'[1]Worksheet 1'!$A$2:$A$18880,'[1]Worksheet 1'!$C$2:$C$18880) -> 15.1 | D51: 15.1 | E51: ks
A52: 68 | B52: PZ výpusť dažďovej vody | Ø 120 | C52: =_xlfn.XLOOKUP(A52,'[1]Worksheet 1'!$A$2:$A$18880,'[1]Worksheet 1'!$C$2:$C$18880) -> 15.7 | D52: 15.7 | E52: ks
A53: 97 | B53: PZ odobočka atypická X ° | 80/80 | C53: =_xlfn.XLOOKUP(A53,'[1]Worksheet 1'!$A$2:$A$18880,'[1]Worksheet 1'!$C$2:$C$18880) -> 21.9 | D53: 21.9 | E53: ks
A54: 96 | B54: PZ odobočka atypická X ° | 100/80 | C54: =_xlfn.XLOOKUP(A54,'[1]Worksheet 1'!$A$2:$A$18880,'[1]Worksheet 1'!$C$2:$C$18880) -> 22 | D54: 22 | E54: ks
A55: 95 | B55: PZ odobočka atypická X ° | 100/100 | C55: =_xlfn.XLOOKUP(A55,'[1]Worksheet 1'!$A$2:$A$18880,'[1]Worksheet 1'!$C$2:$C$18880) -> 22.2 | D55: 22.2 | E55: ks
A56: 98 | B56: PZ odobočka atypická X ° | 120/80 | C56: =_xlfn.XLOOKUP(A56,'[1]Worksheet 1'!$A$2:$A$18880,'[1]Worksheet 1'!$C$2:$C$18880) -> 22.4 | D56: 22.4 | E56: ks
A57: 94 | B57: PZ odobočka atypická X ° | 120/100 | C57: =_xlfn.XLOOKUP(A57,'[1]Worksheet 1'!$A$2:$A$18880,'[1]Worksheet 1'!$C$2:$C$18880) -> 22.5 | D57: 22.5 | E57: ks
A58: 93 | B58: PZ odobočka atypická X ° | 120/120 | C58: =_xlfn.XLOOKUP(A58,'[1]Worksheet 1'!$A$2:$A$18880,'[1]Worksheet 1'!$C$2:$C$18880) -> 22.8 | D58: 22.8 | E58: ks
A59: 99 | B59: PZ komínový kohút | Ø 118 | dĺ. 1000 mm | C59: =_xlfn.XLOOKUP(A59,'[1]Worksheet 1'!$A$2:$A$18880,'[1]Worksheet 1'!$C$2:$C$18880) -> 28.1 | D59: 28.1 | E59: ks
A60: 100 | B60: PZ komínový kohút | Ø 120 | dĺ. 1000 mm | C60: =_xlfn.XLOOKUP(A60,'[1]Worksheet 1'!$A$2:$A$18880,'[1]Worksheet 1'!$C$2:$C$18880) -> 28.1 | D60: 28.1 | E60: ks
A61: 101 | B61: PZ komínový kohút | Ø 125 | dĺ. 1000 mm | C61: =_xlfn.XLOOKUP(A61,'[1]Worksheet 1'!$A$2:$A$18880,'[1]Worksheet 1'!$C$2:$C$18880) -> 28.4 | D61: 28.4 | E61: ks
A62: 102 | B62: PZ komínový kohút | Ø 132 | dĺ. 1000 mm | C62: =_xlfn.XLOOKUP(A62,'[1]Worksheet 1'!$A$2:$A$18880,'[1]Worksheet 1'!$C$2:$C$18880) -> 28.7 | D62: 28.7 | E62: ks
A63: 103 | B63: PZ komínový kohút | Ø 145 | dĺ. 1000 mm | C63: =_xlfn.XLOOKUP(A63,'[1]Worksheet 1'!$A$2:$A$18880,'[1]Worksheet 1'!$C$2:$C$18880) -> 29.2 | D63: 29.2 | E63: ks
A64: 104 | B64: PZ komínový kohút | Ø 152 | dĺ. 1000 mm | C64: =_xlfn.XLOOKUP(A64,'[1]Worksheet 1'!$A$2:$A$18880,'[1]Worksheet 1'!$C$2:$C$18880) -> 29.5 | D64: 29.5 | E64: ks
A65: 105 | B65: PZ komínový kohút | Ø 160 | dĺ. 1000 mm | C65: =_xlfn.XLOOKUP(A65,'[1]Worksheet 1'!$A$2:$A$18880,'[1]Worksheet 1'!$C$2:$C$18880) -> 29.9 | D65: 29.9 | E65: ks
A66: 106 | B66: PZ komínový kohút | Ø 180 | dĺ. 1000 mm | C66: =_xlfn.XLOOKUP(A66,'[1]Worksheet 1'!$A$2:$A$18880,'[1]Worksheet 1'!$C$2:$C$18880) -> 30.7 | D66: 30.7 | E66: ks
A67: 107 | B67: PZ komínový kohút | Ø 200 | dĺ. 1000 mm | C67: =_xlfn.XLOOKUP(A67,'[1]Worksheet 1'!$A$2:$A$18880,'[1]Worksheet 1'!$C$2:$C$18880) -> 31.4 | D67: 31.4 | E67: ks
A68: 81 | B68: PZ plech pod pec | 625x500 mm | C68: =_xlfn.XLOOKUP(A68,'[1]Worksheet 1'!$A$2:$A$18880,'[1]Worksheet 1'!$C$2:$C$18880) -> 7.1 | D68: 7.1 | E68: ks
A69: 80 | B69: PZ plech pod pec | 625x1000 mm | C69: =_xlfn.XLOOKUP(A69,'[1]Worksheet 1'!$A$2:$A$18880,'[1]Worksheet 1'!$C$2:$C$18880) -> 11.2 | D69: 11.2 | E69: ks

Sheet CEDA
H1: Vaša zľava v %
H2: 0
H3: Ceny sú uvádzané bez DPH.
B7: Snehové zábrany
A8: PLU | B8: Model | C8: Cena | D8: Cena po zľave | E8: Farba | F8: Výška zámku | H8: MJ | I8: Objednané množstvá | J8: Obrázok
A9: 1230090201 | B9: SNEHOVÝ SET pre CLIP PANEL - 240 cm | C9: =_xlfn.XLOOKUP(A9,'[1]Worksheet 1'!$A$2:$A$18880,'[1]Worksheet 1'!$C$2:$C$18880) -> 133.6 | D9: =C9*(1-$H$2/100) -> 133.6 | E9: RAL 3009 | F9: 32 mm | H9: ks
A10: 1270160201 | B10: SNEHOVÝ SET pre CLIP PANEL - 240 cm | C10: =_xlfn.XLOOKUP(A10,'[1]Worksheet 1'!$A$2:$A$18880,'[1]Worksheet 1'!$C$2:$C$18880) -> 133.6 | D10: 133.6 | E10: RAL 7016 | F10: 32 mm | H10: ks
A11: 1280040201 | B11: SNEHOVÝ SET pre CLIP PANEL - 240 cm | C11: =_xlfn.XLOOKUP(A11,'[1]Worksheet 1'!$A$2:$A$18880,'[1]Worksheet 1'!$C$2:$C$18880) -> 133.6 | D11: 133.6 | E11: RAL 8004 | F11: 32 mm | H11: ks
A12: 1280170201 | B12: SNEHOVÝ SET pre CLIP PANEL - 240 cm | C12: =_xlfn.XLOOKUP(A12,'[1]Worksheet 1'!$A$2:$A$18880,'[1]Worksheet 1'!$C$2:$C$18880) -> 133.6 | D12: 133.6 | E12: RAL 8017 | F12: 32 mm | H12: ks
A13: 1290050201 | B13: SNEHOVÝ SET pre CLIP PANEL - 240 cm | C13: =_xlfn.XLOOKUP(A13,'[1]Worksheet 1'!$A$2:$A$18880,'[1]Worksheet 1'!$C$2:$C$18880) -> 133.6 | D13: 133.6 | E13: RAL 9005 | F13: 32 mm | H13: ks
A14: 1290060201 | B14: SNEHOVÝ SET pre CLIP PANEL - 240 cm | C14: =_xlfn.XLOOKUP(A14,'[1]Worksheet 1'!$A$2:$A$18880,'[1]Worksheet 1'!$C$2:$C$18880) -> 133.6 | D14: 133.6 | E14: RAL 9006 | F14: 32 mm | H14: ks
A15: 1230090301 | B15: SNEHOVÝ SET pre CLIP PANEL - 360 cm | C15: =_xlfn.XLOOKUP(A15,'[1]Worksheet 1'!$A$2:$A$18880,'[1]Worksheet 1'!$C$2:$C$18880) -> 185 | D15: 185 | E15: RAL 3009 | F15: 32 mm | H15: ks
A16: 1270160301 | B16: SNEHOVÝ SET pre CLIP PANEL - 360 cm | C16: =_xlfn.XLOOKUP(A16,'[1]Worksheet 1'!$A$2:$A$18880,'[1]Worksheet 1'!$C$2:$C$18880) -> 185 | D16: 185 | E16: RAL 7016 | F16: 32 mm | H16: ks
A17: 1280040301 | B17: SNEHOVÝ SET pre CLIP PANEL - 360 cm | C17: =_xlfn.XLOOKUP(A17,'[1]Worksheet 1'!$A$2:$A$18880,'[1]Worksheet 1'!$C$2:$C$18880) -> 185 | D17: 185 | E17: RAL 8004 | F17: 32 mm | H17: ks
A18: 1280170301 | B18: SNEHOVÝ SET pre CLIP PANEL - 360 cm | C18: =_xlfn.XLOOKUP(A18,'[1]Worksheet 1'!$A$2:$A$18880,'[1]Worksheet 1'!$C$2:$C$18880) -> 185 | D18: 185 | E18: RAL 8017 | F18: 32 mm | H18: ks
A19: 1290050301 | B19: SNEHOVÝ SET pre CLIP PANEL - 360 cm | C19: =_xlfn.XLOOKUP(A19,'[1]Worksheet 1'!$A$2:$A$18880,'[1]Worksheet 1'!$C$2:$C$18880) -> 185 | D19: 185 | E19: RAL 9005 | F19: 32 mm | H19: ks
A20: 1290060201 | B20: SNEHOVÝ SET pre CLIP PANEL - 360 cm | C20: =_xlfn.XLOOKUP(A20,'[1]Worksheet 1'!$A$2:$A$18880,'[1]Worksheet 1'!$C$2:$C$18880) -> 133.6 | D20: 133.6 | E20: RAL 9006 | F20: 32 mm | H20: ks
A21: 1270160001 | B21: Dvojrúrková konzola sneholamu na CLIP PANEL | C21: =_xlfn.XLOOKUP(A21,'[1]Worksheet 1'!$A$2:$A$18880,'[1]Worksheet 1'!$C$2:$C$18880) -> 13.9 | D21: 13.9 | E21: RAL 7016 | H21: ks
A22: 1280170001 | B22: Dvojrúrková konzola sneholamu na CLIP PANEL | C22: =_xlfn.XLOOKUP(A22,'[1]Worksheet 1'!$A$2:$A$18880,'[1]Worksheet 1'!$C$2:$C$18880) -> 13.9 | D22: 13.9 | E22: RAL 8017 | H22: ks
A23: 1290050001 | B23: Dvojrúrková konzola sneholamu na CLIP PANEL | C23: =_xlfn.XLOOKUP(A23,'[1]Worksheet 1'!$A$2:$A$18880,'[1]Worksheet 1'!$C$2:$C$18880) -> 13.9 | D23: 13.9 | E23: RAL 9005 | H23: ks
B24: Model | C24: Cena | D24: Cena po zľave | E24: Farba | F24: Dĺžka vlny | G24: Výška vlny | H24: MJ | I24: Objednané množstvá | J24: Obrázok
A25: 1230090210 | B25: SNEHOVÝ SET - škridloplechy - 240 cm | C25: =_xlfn.XLOOKUP(A25,'[1]Worksheet 1'!$A$2:$A$18880,'[1]Worksheet 1'!$C$2:$C$18880) -> 97.5 | D25: =C25*(1-$H$2/100) -> 97.5 | E25: RAL 3009 | F25: 350 mm | G25: 20 mm | H25: ks
A26: 1270160210 | B26: SNEHOVÝ SET - škridloplechy - 240 cm | C26: =_xlfn.XLOOKUP(A26,'[1]Worksheet 1'!$A$2:$A$18880,'[1]Worksheet 1'!$C$2:$C$18880) -> 97.5 | D26: 97.5 | E26: RAL 7016 | F26: 350 mm | G26: 20 mm | H26: ks
A27: 1280040210 | B27: SNEHOVÝ SET - škridloplechy - 240 cm | C27: =_xlfn.XLOOKUP(A27,'[1]Worksheet 1'!$A$2:$A$18880,'[1]Worksheet 1'!$C$2:$C$18880) -> 97.5 | D27: 97.5 | E27: RAL 8004 | F27: 350 mm | G27: 20 mm | H27: ks
A28: 1280170210 | B28: SNEHOVÝ SET - škridloplechy - 240 cm | C28: =_xlfn.XLOOKUP(A28,'[1]Worksheet 1'!$A$2:$A$18880,'[1]Worksheet 1'!$C$2:$C$18880) -> 97.5 | D28: 97.5 | E28: RAL 8017 | F28: 350 mm | G28: 20 mm | H28: ks
A29: 1290050210 | B29: SNEHOVÝ SET - škridloplechy - 240 cm | C29: =_xlfn.XLOOKUP(A29,'[1]Worksheet 1'!$A$2:$A$18880,'[1]Worksheet 1'!$C$2:$C$18880) -> 97.5 | D29: 97.5 | E29: RAL 9005 | F29: 350 mm | G29: 20 mm | H29: ks
A30: 1290060210 | B30: SNEHOVÝ SET - škridloplechy - 240 cm | C30: =_xlfn.XLOOKUP(A30,'[1]Worksheet 1'!$A$2:$A$18880,'[1]Worksheet 1'!$C$2:$C$18880) -> 97.5 | D30: 97.5 | E30: RAL 9006 | F30: 350 mm | G30: 20 mm | H30: ks
A31: 1230090310 | B31: SNEHOVÝ SET - škridloplechy - 360 cm | C31: =_xlfn.XLOOKUP(A31,'[1]Worksheet 1'!$A$2:$A$18880,'[1]Worksheet 1'!$C$2:$C$18880) -> 137.8 | D31: 137.8 | E31: RAL 3009 | F31: 350 mm | G31: 20 mm | H31: ks
A32: 1270160310 | B32: SNEHOVÝ SET - škridloplechy - 360 cm | C32: =_xlfn.XLOOKUP(A32,'[1]Worksheet 1'!$A$2:$A$18880,'[1]Worksheet 1'!$C$2:$C$18880) -> 137.8 | D32: 137.8 | E32: RAL 7016 | F32: 350 mm | G32: 20 mm | H32: ks
A33: 1280040310 | B33: SNEHOVÝ SET - škridloplechy - 360 cm | C33: =_xlfn.XLOOKUP(A33,'[1]Worksheet 1'!$A$2:$A$18880,'[1]Worksheet 1'!$C$2:$C$18880) -> 137.8 | D33: 137.8 | E33: RAL 8004 | F33: 350 mm | G33: 20 mm | H33: ks
A34: 1280170310 | B34: SNEHOVÝ SET - škridloplechy - 360 cm | C34: =_xlfn.XLOOKUP(A34,'[1]Worksheet 1'!$A$2:$A$18880,'[1]Worksheet 1'!$C$2:$C$18880) -> 137.8 | D34: 137.8 | E34: RAL 8017 | F34: 350 mm | G34: 20 mm | H34: ks
A35: 1290050310 | B35: SNEHOVÝ SET - škridloplechy - 360 cm | C35: =_xlfn.XLOOKUP(A35,'[1]Worksheet 1'!$A$2:$A$18880,'[1]Worksheet 1'!$C$2:$C$18880) -> 137.8 | D35: 137.8 | E35: RAL 9005 | F35: 350 mm | G35: 20 mm | H35: ks
A36: 1290060310 | B36: SNEHOVÝ SET - škridloplechy - 360 cm | C36: =_xlfn.XLOOKUP(A36,'[1]Worksheet 1'!$A$2:$A$18880,'[1]Worksheet 1'!$C$2:$C$18880) -> 137.8 | D36: 137.8 | E36: RAL 9006 | F36: 350 mm | G36: 20 mm | H36: ks
A37: 1270160010 | B37: Dvojrúrková konzola sneholamu na škridloplech | C37: =_xlfn.XLOOKUP(A37,'[1]Worksheet 1'!$A$2:$A$18880,'[1]Worksheet 1'!$C$2:$C$18880) -> 8.3 | D37: 8.3 | E37: RAL 7016 | F37: 350 mm | G37: 20 mm | H37: ks
A38: 1280170010 | B38: Dvojrúrková konzola sneholamu na škridloplech | C38: =_xlfn.XLOOKUP(A38,'[1]Worksheet 1'!$A$2:$A$18880,'[1]Worksheet 1'!$C$2:$C$18880) -> 8.3 | D38: 8.3 | E38: RAL 8017 | F38: 350 mm | G38: 20 mm | H38: ks
B39: Dvojrúrková konzola sneholamu na škridloplech | C39: 8.3 | D39: 8.3 | E39: RAL 9005 | F39: 350 mm | G39: 20 mm | H39: ks
B40: Model | C40: Cena | D40: Cena po zľave | E40: Farba | F40: Dĺžka | G40: Priemer | H40: MJ | I40: Objednané množstvá | J40: Obrázok
A41: 1300000002 | B41: Dvojrúrková konzola sneholamu pre falcované krytiny | C41: =_xlfn.XLOOKUP(A41,'[1]Worksheet 1'!$A$2:$A$18880,'[1]Worksheet 1'!$C$2:$C$18880) -> 9 | D41: 9 | E41: prírodny hliník | G41: 30 mm | H41: ks
A42: 1300000001 | B42: Jednorúrková konzola sneholamu pre falcované krytiny | C42: =_xlfn.XLOOKUP(A42,'[1]Worksheet 1'!$A$2:$A$18880,'[1]Worksheet 1'!$C$2:$C$18880) -> 5.8 | D42: 5.8 | E42: prírodny hliník | G42: 30 mm | H42: ks
A43: 1300000011 | B43: Rúrka sneholamu | C43: =_xlfn.XLOOKUP(A43,'[1]Worksheet 1'!$A$2:$A$18880,'[1]Worksheet 1'!$C$2:$C$18880) -> 13.4 | D43: 13.4 | E43: prírodny hliník | F43: 2000 mm | G43: 30 mm | H43: ks
A44: 1300000016 | B44: Spojka hliníkovej rúrky sneholamu | C44: =_xlfn.XLOOKUP(A44,'[1]Worksheet 1'!$A$2:$A$18880,'[1]Worksheet 1'!$C$2:$C$18880) -> 4.6 | D44: 4.6 | E44: čierna | G44: 30 mm | H44: ks
A45: 1300000015 | B45: Blokáda hliníkovej rúrky sneholamu | C45: =_xlfn.XLOOKUP(A45,'[1]Worksheet 1'!$A$2:$A$18880,'[1]Worksheet 1'!$C$2:$C$18880) -> 2.6 | D45: 2.6 | E45: prírodny hliník | G45: 30 mm | H45: ks
A46: 7098 | B46: Plastová koncovka rúrky sneholamu | C46: =_xlfn.XLOOKUP(A46,'[1]Worksheet 1'!$A$2:$A$18880,'[1]Worksheet 1'!$C$2:$C$18880) -> 0.35 | D46: 0.35 | E46: biela | G46: 30 mm | H46: ks
A47: 7099 | B47: Plastová koncovka rúrky sneholamu | C47: =_xlfn.XLOOKUP(A47,'[1]Worksheet 1'!$A$2:$A$18880,'[1]Worksheet 1'!$C$2:$C$18880) -> 0.35 | D47: 0.35 | E47: čierna | G47: 30 mm | H47: ks
B49: Strešné lávky
B50: Model | C50: Cena | D50: Cena po zľave | E50: Farba | F50: Výška zámku | H50: MJ | I50: Objednané množstvá | J50: Obrázok
A51: 1230010009 | B51: Strešná lávka na CLIP PANEL 60 cm | C51: =_xlfn.XLOOKUP(A51,'[1]Worksheet 1'!$A$2:$A$25000,'[1]Worksheet 1'!$C$2:$C$25000) -> 68 | D51: =C51*(1-$H$2/100) -> 68 | E51: PZ | F51: do 32 mm | H51: ks
A52: 1230090016 | B52: Strešná lávka na CLIP PANEL 60 cm | C52: =_xlfn.XLOOKUP(A52,'[1]Worksheet 1'!$A$2:$A$25000,'[1]Worksheet 1'!$C$2:$C$25000) -> 68 | D52: 68 | E52: RAL 3009 | F52: do 32 mm | H52: ks
A53: 1270160011 | B53: Strešná lávka na CLIP PANEL 60 cm | C53: =_xlfn.XLOOKUP(A53,'[1]Worksheet 1'!$A$2:$A$25000,'[1]Worksheet 1'!$C$2:$C$25000) -> 68 | D53: 68 | E53: RAL 7016 | F53: do 32 mm | H53: ks
A54: 1280040013 | B54: Strešná lávka na CLIP PANEL 60 cm | C54: =_xlfn.XLOOKUP(A54,'[1]Worksheet 1'!$A$2:$A$25000,'[1]Worksheet 1'!$C$2:$C$25000) -> 68 | D54: 68 | E54: RAL 8004 | F54: do 32 mm | H54: ks
A55: 1280170012 | B55: Strešná lávka na CLIP PANEL 60 cm | C55: =_xlfn.XLOOKUP(A55,'[1]Worksheet 1'!$A$2:$A$25000,'[1]Worksheet 1'!$C$2:$C$25000) -> 68 | D55: 68 | E55: RAL 8017 | F55: do 32 mm | H55: ks
A56: 1290050014 | B56: Strešná lávka na CLIP PANEL 60 cm | C56: =_xlfn.XLOOKUP(A56,'[1]Worksheet 1'!$A$2:$A$25000,'[1]Worksheet 1'!$C$2:$C$25000) -> 68 | D56: 68 | E56: RAL 9005 | F56: do 32 mm | H56: ks
A57: 1290060015 | B57: Strešná lávka na CLIP PANEL 60 cm | C57: =_xlfn.XLOOKUP(A57,'[1]Worksheet 1'!$A$2:$A$25000,'[1]Worksheet 1'!$C$2:$C$25000) -> 68 | D57: 68 | E57: RAL 9006 | F57: do 32 mm | H57: ks
A58: 1230020008 | B58: Strešná lávka na CLIP PANEL 120 cm | C58: =_xlfn.XLOOKUP(A58,'[1]Worksheet 1'!$A$2:$A$18880,'[1]Worksheet 1'!$C$2:$C$18880) -> 109 | D58: 109 | E58: PZ | F58: do 32 mm | H58: ks
A59: 1230090007 | B59: Strešná lávka na CLIP PANEL 120 cm | C59: =_xlfn.XLOOKUP(A59,'[1]Worksheet 1'!$A$2:$A$18880,'[1]Worksheet 1'!$C$2:$C$18880) -> 109 | D59: 109 | E59: RAL 3009 | F59: do 32 mm | H59: ks
A60: 1270160002 | B60: Strešná lávka na CLIP PANEL 120 cm | C60: =_xlfn.XLOOKUP(A60,'[1]Worksheet 1'!$A$2:$A$18880,'[1]Worksheet 1'!$C$2:$C$18880) -> 109 | D60: 109 | E60: RAL 7016 | F60: do 32 mm | H60: ks
A61: 1280040006 | B61: Strešná lávka na CLIP PANEL 120 cm | C61: =_xlfn.XLOOKUP(A61,'[1]Worksheet 1'!$A$2:$A$18880,'[1]Worksheet 1'!$C$2:$C$18880) -> 109 | D61: 109 | E61: RAL 8004 | F61: do 32 mm | H61: ks
A62: 1280170003 | B62: Strešná lávka na CLIP PANEL 120 cm | C62: =_xlfn.XLOOKUP(A62,'[1]Worksheet 1'!$A$2:$A$18880,'[1]Worksheet 1'!$C$2:$C$18880) -> 109 | D62: 109 | E62: RAL 8017 | F62: do 32 mm | H62: ks
A63: 1290050004 | B63: Strešná lávka na CLIP PANEL 120 cm | C63: =_xlfn.XLOOKUP(A63,'[1]Worksheet 1'!$A$2:$A$18880,'[1]Worksheet 1'!$C$2:$C$18880) -> 109 | D63: 109 | E63: RAL 9005 | F63: do 32 mm | H63: ks
A64: 1290060005 | B64: Strešná lávka na CLIP PANEL 120 cm | C64: =_xlfn.XLOOKUP(A64,'[1]Worksheet 1'!$A$2:$A$18880,'[1]Worksheet 1'!$C$2:$C$18880) -> 109 | D64: 109 | E64: RAL 9006 | F64: do 32 mm | H64: ks
B65: Model | C65: Cena | D65: Cena po zľave | E65: Farba | F65: Dĺžka vlny | G65: Výška vlny | H65: MJ | I65: Objednané množstvá | J65: Obrázok
A66: 1240100017 | B66: Strešná lávka na škridloplechy 40 cm | C66: =_xlfn.XLOOKUP(A66,'[1]Worksheet 1'!$A$2:$A$25000,'[1]Worksheet 1'!$C$2:$C$25000) -> 51 | D66: =C66*(1-$H$2/100) -> 51 | E66: PZ | F66: 350 mm | G66: 20 mm | H66: ks
A67: 1230090022 | B67: Strešná lávka na škridloplechy 40 cm | C67: =_xlfn.XLOOKUP(A67,'[1]Worksheet 1'!$A$2:$A$25000,'[1]Worksheet 1'!$C$2:$C$25000) -> 51 | D67: 51 | E67: RAL 3009 | F67: 350 mm | G67: 20 mm | H67: ks
A68: 1270160023 | B68: Strešná lávka na škridloplechy 40 cm | C68: =_xlfn.XLOOKUP(A68,'[1]Worksheet 1'!$A$2:$A$25000,'[1]Worksheet 1'!$C$2:$C$25000) -> 51 | D68: 51 | E68: RAL 7016 | F68: 350 mm | G68: 20 mm | H68: ks
A69: 1280040021 | B69: Strešná lávka na škridloplechy 40 cm | C69: =_xlfn.XLOOKUP(A69,'[1]Worksheet 1'!$A$2:$A$25000,'[1]Worksheet 1'!$C$2:$C$25000) -> 51 | D69: 51 | E69: RAL 8004 | F69: 350 mm | G69: 20 mm | H69: ks
A70: 1280170018 | B70: Strešná lávka na škridloplechy 40 cm | C70: =_xlfn.XLOOKUP(A70,'[1]Worksheet 1'!$A$2:$A$25000,'[1]Worksheet 1'!$C$2:$C$25000) -> 51 | D70: 51 | E70: RAL 8017 | F70: 350 mm | G70: 20 mm | H70: ks
A71: 1290050019 | B71: Strešná lávka na škridloplechy 40 cm | C71: =_xlfn.XLOOKUP(A71,'[1]Worksheet 1'!$A$2:$A$25000,'[1]Worksheet 1'!$C$2:$C$25000) -> 51 | D71: 51 | E71: RAL 9005 | F71: 350 mm | G71: 20 mm | H71: ks
A72: 1290060020 | B72: Strešná lávka na škridloplechy 40 cm | C72: =_xlfn.XLOOKUP(A72,'[1]Worksheet 1'!$A$2:$A$25000,'[1]Worksheet 1'!$C$2:$C$25000) -> 51 | D72: 51 | E72: RAL 9006 | F72: 350 mm | G72: 20 mm | H72: ks
A73: 1241100024 | B73: Strešná lávka na škridloplechy 80 cm | C73: =_xlfn.XLOOKUP(A73,'[1]Worksheet 1'!$A$2:$A$18880,'[1]Worksheet 1'!$C$2:$C$18880) -> 60 | D73: 60 | E73: PZ | F73: 350 mm | G73: 20 mm | H73: ks
A74: 1230090029 | B74: Strešná lávka na škridloplechy 80 cm | C74: =_xlfn.XLOOKUP(A74,'[1]Worksheet 1'!$A$2:$A$18880,'[1]Worksheet 1'!$C$2:$C$18880) -> 60 | D74: 60 | E74: RAL 3009 | F74: 350 mm | G74: 20 mm | H74: ks
A75: 1270160025 | B75: Strešná lávka na škridloplechy 80 cm | C75: =_xlfn.XLOOKUP(A75,'[1]Worksheet 1'!$A$2:$A$18880,'[1]Worksheet 1'!$C$2:$C$18880) -> 60 | D75: 60 | E75: RAL 7016 | F75: 350 mm | G75: 20 mm | H75: ks
A76: 1280040030 | B76: Strešná lávka na škridloplechy 80 cm | C76: =_xlfn.XLOOKUP(A76,'[1]Worksheet 1'!$A$2:$A$18880,'[1]Worksheet 1'!$C$2:$C$18880) -> 60 | D76: 60 | E76: RAL 8004 | F76: 350 mm | G76: 20 mm | H76: ks
A77: 1280170026 | B77: Strešná lávka na škridloplechy 80 cm | C77: =_xlfn.XLOOKUP(A77,'[1]Worksheet 1'!$A$2:$A$18880,'[1]Worksheet 1'!$C$2:$C$18880) -> 60 | D77: 60 | E77: RAL 8017 | F77: 350 mm | G77: 20 mm | H77: ks
A78: 1290050027 | B78: Strešná lávka na škridloplechy 80 cm | C78: =_xlfn.XLOOKUP(A78,'[1]Worksheet 1'!$A$2:$A$18880,'[1]Worksheet 1'!$C$2:$C$18880) -> 60 | D78: 60 | E78: RAL 9005 | F78: 350 mm | G78: 20 mm | H78: ks
A79: 1290060028 | B79: Strešná lávka na škridloplechy 80 cm | C79: =_xlfn.XLOOKUP(A79,'[1]Worksheet 1'!$A$2:$A$18880,'[1]Worksheet 1'!$C$2:$C$18880) -> 60 | D79: 60 | E79: RAL 9006 | F79: 350 mm | G79: 20 mm | H79: ks
B81: Fotovoltika
B82: Model | C82: Cena | D82: Cena po zľave | E82: Výška zámku/falcu | F82: Dĺžka vlny | G82: Výška vlny | H82: MJ | I82: Objednané množstvá | J82: Obrázok
A83: 1500000003 | B83: Nehrdzavejúca konzola – držiak solárnych panelov pre falcované krytiny | C83: =_xlfn.XLOOKUP(A83,'[1]Worksheet 1'!$A$2:$A$18880,'[1]Worksheet 1'!$C$2:$C$18880) -> 11 | D83: =C83*(1-$H$2/100) -> 11 | E83: do 46 mm | F83: - | G83: - | H83: ks
A84: 1500000010 | B84: Nehrdzavejúca konzola – držiak solárnych panelov pre škridloplechy LAMINKA | C84: =_xlfn.XLOOKUP(A84,'[1]Worksheet 1'!$A$2:$A$18880,'[1]Worksheet 1'!$C$2:$C$18880) -> 14.6 | D84: 14.6 | E84: - | F84: 350 mm | G84: 20 mm | H84: ks
A85: 1500000002 | B85: Nehrdzavejúca konzola – držiak solárnych panelov pre CLIP PANEL | C85: =_xlfn.XLOOKUP(A85,'[1]Worksheet 1'!$A$2:$A$18880,'[1]Worksheet 1'!$C$2:$C$18880) -> 12.6 | D85: 12.6 | E85: do 32 mm | F85: - | G85: - | H85: ks
B87: Ochrana proti pádu / kotviace body
B88: Model | C88: Cena | D88: Cena po zľave | E88: Šírka | F88: Výška | G88: Dĺžka | H88: MJ | I88: Objednané množstvá | J88: Obrázok
A89: 1500001900 | B89: 1-očkový otáčací úchyt do kotviacich bodov z nehrdzavejúcej ocele | C89: =_xlfn.XLOOKUP(A89,'[1]Worksheet 1'!$A$2:$A$18880,'[1]Worksheet 1'!$C$2:$C$18880) -> 46 | D89: =C89*(1-$H$2/100) -> 46 | E89: 60 mm | F89: 98 mm | G89: - | H89: ks
B90: Kotviaci bod COPPO na škridloplechy LAMINKA z nehrdzavejúcej ocele | C90: 200 | D90: 200 | E90: 322 mm | F90: 20 mm | G90: 420 mm | H90: ks
A91: 1500001500 | B91: Kotviaci bod na strechy so stojatou drážkou SIANK z nehrdzavejúcej ocele | C91: =_xlfn.XLOOKUP(A91,'[1]Worksheet 1'!$A$2:$A$18880,'[1]Worksheet 1'!$C$2:$C$18880) -> 184 | D91: 184 | E91: 163 mm | F91: 65 mm | G91: 400 mm | H91: ks

Sheet COROTOP
H1: Vaša zľava v %
H2: 0
H3: Ceny sú uvádzané bez DPH.
B7: Strešné fólie
A8: PLU | B8: Model | C8: Cena | D8: Cena po zľave | E8: Hmotnosť | F8: Sklon strechy | G8: MJ | H8: Objednané množstvá | I8: Obrázok
A9: 7221 | B9: Fólia Corotop CLASSIC 130; 1,5 x 50m | C9: =_xlfn.XLOOKUP(A9,'[1]Worksheet 1'!$A$2:$A$18880,'[1]Worksheet 1'!$C$2:$C$18880) -> 60 | D9: =C9*(1-$H$2/100) -> 60 | E9: 130g/m2 | F9: ≥ 35° | G9: rol
A10: 7222 | B10: Fólia s páskou Corotop CLASSIC Plus 130; 1,5 x 50m | C10: =_xlfn.XLOOKUP(A10,'[1]Worksheet 1'!$A$2:$A$18880,'[1]Worksheet 1'!$C$2:$C$18880) -> 80 | D10: =C10*(1-$H$2/100) -> 80 | E10: 130g/m2 | F10: ≥ 35° | G10: rol
A11: 7223 | B11: Fólia s páskou Corotop BLUE Plus 140; 1,5 x 50m | C11: =_xlfn.XLOOKUP(A11,'[1]Worksheet 1'!$A$2:$A$18880,'[1]Worksheet 1'!$C$2:$C$18880) -> 84 | D11: 84 | E11: 140g/m2 | F11: ≥ 26° | G11: rol
A12: 7225 | B12: Fólia s páskou Corotop STRONG Plus 160; 1,5 x 50m | C12: =_xlfn.XLOOKUP(A12,'[1]Worksheet 1'!$A$2:$A$18880,'[1]Worksheet 1'!$C$2:$C$18880) -> 95 | D12: 95 | E12: 160g/m2 | F12: ≥ 21° | G12: rol
A13: 7228 | B13: Fólia s páskou Corotop EXTRA PROTECT Plus 165 | C13: =_xlfn.XLOOKUP(A13,'[1]Worksheet 1'!$A$2:$A$18880,'[1]Worksheet 1'!$C$2:$C$18880) -> 135 | D13: 135 | E13: 165g/m2 | F13: ≥ 21° | G13: rol
A14: 7226 | B14: Fólia s páskou Corotop REDstrong plus 180; 1,5x50m | C14: =_xlfn.XLOOKUP(A14,'[1]Worksheet 1'!$A$2:$A$18880,'[1]Worksheet 1'!$C$2:$C$18880) -> 112.5 | D14: 112.5 | E14: 180g/m2 | F14: ≥ 15° | G14: rol
A15: 7227 | B15: Fólia s páskou Corotop PURE plus 205; 1,5x50m | C15: =_xlfn.XLOOKUP(A15,'[1]Worksheet 1'!$A$2:$A$18880,'[1]Worksheet 1'!$C$2:$C$18880) -> 130 | D15: 130 | E15: 205g/m2 | F15: ≥ 11° | G15: rol
A16: 7233 | B16: Fólia s páskou Corotop MONO plus 330; 1,5x25m | C16: =_xlfn.XLOOKUP(A16,'[1]Worksheet 1'!$A$2:$A$18880,'[1]Worksheet 1'!$C$2:$C$18880) -> 225 | D16: 225 | E16: 330g/m2 | F16: 5-10° | G16: rol
A17: 7231 | B17: Fólia s drátenkou Corotop METAL 440; 1,5 x 25m | C17: =_xlfn.XLOOKUP(A17,'[1]Worksheet 1'!$A$2:$A$18880,'[1]Worksheet 1'!$C$2:$C$18880) -> 210 | D17: 210 | E17: 440g/m2 | F17: - | G17: rol
A18: 7239 | B18: Fólia Corotop OPEN 200g (fasada); 1,5 x 50m | C18: =_xlfn.XLOOKUP(A18,'[1]Worksheet 1'!$A$2:$A$18880,'[1]Worksheet 1'!$C$2:$C$18880) -> 4.2 | D18: 4.2 | E18: 200g/m2 | F18: - | G18: rol
B20: Pásky
B21: Model | C21: Cena | D21: Cena pre nás | E21: Dĺžka | F21: Šírka | G21: MJ | H21: Objednané množstvá | I21: Obrázok
A22: 7270 | B22: Páska lep. obojstranná Corotop MIX | C22: =_xlfn.XLOOKUP(A22,'[1]Worksheet 1'!$A$2:$A$18880,'[1]Worksheet 1'!$C$2:$C$18880) -> 5 | D22: =C22*(1-$H$2/100) -> 5 | E22: 25 m | F22: 20 mm | G22: ks
A23: 7275 | B23: Páska lep. jednostr. Corotop FIX | C23: =_xlfn.XLOOKUP(A23,'[1]Worksheet 1'!$A$2:$A$18880,'[1]Worksheet 1'!$C$2:$C$18880) -> 8.8 | D23: =C23*(1-$H$2/100) -> 8.8 | E23: 25 m | F23: 50 mm | G23: ks
A24: 7278 | B24: Páska lep. jednostr. Corotop FIX PRO | C24: =_xlfn.XLOOKUP(A24,'[1]Worksheet 1'!$A$2:$A$18880,'[1]Worksheet 1'!$C$2:$C$18880) -> 12.5 | D24: 12.5 | E24: 25 m | F24: 60 mm | G24: ks
A25: 7276 | B25: Páska lep.jednostr.opravná Corotop BAND | C25: =_xlfn.XLOOKUP(A25,'[1]Worksheet 1'!$A$2:$A$18880,'[1]Worksheet 1'!$C$2:$C$18880) -> 8.7 | D25: 8.7 | E25: 25 m | F25: 50 mm | G25: ks
A26: 7277 | B26: Páska butylová obojstr. Corotop BUTYL | C26: =_xlfn.XLOOKUP(A26,'[1]Worksheet 1'!$A$2:$A$18880,'[1]Worksheet 1'!$C$2:$C$18880) -> 7.28 | D26: 7.28 | E26: 25 m | F26: 15 mm | G26: ks
A27: 7281 | B27: Tesnenie pod kontralaty Corotop PUR | C27: =_xlfn.XLOOKUP(A27,'[1]Worksheet 1'!$A$2:$A$18880,'[1]Worksheet 1'!$C$2:$C$18880) -> 6 | D27: 6 | E27: 30 m | F27: 50 mm | G27: ks
B29: Hrebeň
B30: Model | C30: Cena | D30: Cena pre nás | E30: Dĺžka | F30: Šírka | G30: MJ | H30: Objednané množstvá | I30: Obrázok
A31: 7285 | B31: ROLL hrebeň. páska CoroVENT 310 RAL 8004 | C31: =_xlfn.XLOOKUP(A31,'[1]Worksheet 1'!$A$2:$A$18880,'[1]Worksheet 1'!$C$2:$C$18880) -> 12.9 | D31: =C31*(1-$H$2/100) -> 12.9 | E31: 5 m | F31: 310 mm | G31: ks
A32: 7286 | B32: ROLL hrebeň. páska CoroVENT 310 RAL 8017 | C32: =_xlfn.XLOOKUP(A32,'[1]Worksheet 1'!$A$2:$A$18880,'[1]Worksheet 1'!$C$2:$C$18880) -> 12.9 | D32: =C32*(1-$H$2/100) -> 12.9 | E32: 5 m | F32: 310 mm | G32: ks
A33: 7287 | B33: ROLL hrebeň. páska CoroVENT 310 RAL 9005 | C33: =_xlfn.XLOOKUP(A33,'[1]Worksheet 1'!$A$2:$A$18880,'[1]Worksheet 1'!$C$2:$C$18880) -> 12.9 | D33: 12.9 | E33: 5 m | F33: 310 mm | G33: ks
A34: 7293 | B34: Držiak hrebeň. laty CoroBLACH 40/210 | C34: =_xlfn.XLOOKUP(A34,'[1]Worksheet 1'!$A$2:$A$18880,'[1]Worksheet 1'!$C$2:$C$18880) -> 0.55 | D34: 0.55 | E34: 0,21 m | F34: 40 mm | G34: ks
A35: 7294 | B35: Držiak hrebeň. laty CoroNIT 50/210 | C35: =_xlfn.XLOOKUP(A35,'[1]Worksheet 1'!$A$2:$A$18880,'[1]Worksheet 1'!$C$2:$C$18880) -> 0.62 | D35: 0.62 | E35: 0,21 m | F35: 50 mm | G35: ks
B37: Úžľabie
B38: Model | C38: Cena | D38: Cena pre nás | E38: Dĺžka | F38: Šírka x výška | G38: MJ | H38: Objednané množstvá | I38: Obrázok
A39: 7295 | B39: UNI lepiaci klin CoroCLIN antracit | C39: =_xlfn.XLOOKUP(A39,'[1]Worksheet 1'!$A$2:$A$18880,'[1]Worksheet 1'!$C$2:$C$18880) -> 0.33 | D39: =C39*(1-$H$2/100) -> 0.33 | E39: 1 m | F39: 60 mm x 27 mm | G39: ks
A40: 7296 | B40: UNI lepiaci klin CoroCLIN tehlová | C40: =_xlfn.XLOOKUP(A40,'[1]Worksheet 1'!$A$2:$A$18880,'[1]Worksheet 1'!$C$2:$C$18880) -> 0.33 | D40: =C40*(1-$H$2/100) -> 0.33 | E40: 1 m | F40: 60 mm x 27 mm | G40: ks
B42: Riešenia odkvapovej hrany
B43: Model | C43: Cena | D43: Cena pre nás | E43: Dĺžka | F43: Šírka | G43: MJ | H43: Objednané množstvá | I43: Obrázok
A44: 7300 | B44: Vetrací hrebeň CoroKAP tehlová 1 m | C44: =_xlfn.XLOOKUP(A44,'[1]Worksheet 1'!$A$2:$A$18880,'[1]Worksheet 1'!$C$2:$C$18880) -> 0.45 | D44: =C44*(1-$H$2/100) -> 0.45 | E44: 1 m | F44: - | G44: ks
A45: 7301 | B45: Vetrací hrebeň CoroKAP hnedá 1 m | C45: =_xlfn.XLOOKUP(A45,'[1]Worksheet 1'!$A$2:$A$18880,'[1]Worksheet 1'!$C$2:$C$18880) -> 0.45 | D45: =C45*(1-$H$2/100) -> 0.45 | E45: 1 m | F45: - | G45: ks
A46: 7302 | B46: Vetrací hrebeň CoroKAP čierna 1 m | C46: =_xlfn.XLOOKUP(A46,'[1]Worksheet 1'!$A$2:$A$18880,'[1]Worksheet 1'!$C$2:$C$18880) -> 0.45 | D46: 0.45 | E46: 1 m | F46: - | G46: ks
A47: 7320 | B47: Ochrana proti vtákom CoroBIRD PRO dĺžka 33cm | C47: =_xlfn.XLOOKUP(A47,'[1]Worksheet 1'!$A$2:$A$18880,'[1]Worksheet 1'!$C$2:$C$18880) -> 3 | D47: 3 | E47: 0,33 m | F47: - | G47: ks
A48: 7332 | B48: Ochr.vetr.mriežka CoroCRAT 80mm hnedá (5m) | C48: =_xlfn.XLOOKUP(A48,'[1]Worksheet 1'!$A$2:$A$18880,'[1]Worksheet 1'!$C$2:$C$18880) -> 2.8 | D48: 2.8 | E48: 5 m | F48: 80 mm | G48: ks
A49: 7333 | B49: Ochr.vetr.mriežka CoroCRAT 80mm čierna (5m) | C49: =_xlfn.XLOOKUP(A49,'[1]Worksheet 1'!$A$2:$A$18880,'[1]Worksheet 1'!$C$2:$C$18880) -> 2.9 | D49: 2.9 | E49: 5 m | F49: 80 mm | G49: ks
A50: 7330 | B50: Ochr.vetr.mriežka CoroCRAT 100mm tehlová (5m) | C50: =_xlfn.XLOOKUP(A50,'[1]Worksheet 1'!$A$2:$A$18880,'[1]Worksheet 1'!$C$2:$C$18880) -> 3.2 | D50: 3.2 | E50: 5 m | F50: 100 mm | G50: ks
A51: 7331 | B51: Ochr.vetr.mriežka CoroCRAT 100mm hnedá (5m) | C51: =_xlfn.XLOOKUP(A51,'[1]Worksheet 1'!$A$2:$A$18880,'[1]Worksheet 1'!$C$2:$C$18880) -> 3.2 | D51: 3.2 | E51: 5 m | F51: 100 mm | G51: ks
A52: 7317 | B52: Ochr.vetr.mriežka CoroCRAT 100mm čierna (5m) | C52: =_xlfn.XLOOKUP(A52,'[1]Worksheet 1'!$A$2:$A$18880,'[1]Worksheet 1'!$C$2:$C$18880) -> 3.2 | D52: 3.2 | E52: 5 m | F52: 100 mm | G52: ks
A54: 4236 | B54: Al - ochr.vetr.mriežka 100mm biela-hnedá (60m) | C54: =_xlfn.XLOOKUP(A54,'[1]Worksheet 1'!$A$2:$A$18880,'[1]Worksheet 1'!$C$2:$C$18880) -> 4.7 | D54: =C54*(1-$H$2/100) -> 4.7 | E54: 60 m | F54: 100 mm | G54: m
A55: 4235 | B55: Al - ochr.vetr.mriežka 100mm červeno-čierna (60m) | C55: 4.7 | D55: =C55*(1-$H$2/100) -> 4.7 | E55: 60 m | F55: 100 mm | G55: m

Sheet GALECO STAL2
H1: Vaša zľava v %
H2: 0
H3: Ceny sú uvádzané bez DPH.
B7: GALECO STAL2
A8: PLU | B8: Model | C8: Cena | D8: Cena po zľave | E8: Farba | F8: MJ | G8: Objednané množstvá | H8: Obrázok
A9: 187015013 | B9: Hranatý žľab 125 3bm | C9: =_xlfn.XLOOKUP(A9,'[1]Worksheet 1'!$A$2:$A$18880,'[1]Worksheet 1'!$C$2:$C$18880) -> 35.5 | D9: =C9*(1-$H$2/100) -> 35.5 | E9: RAL 7015 | F9: ks
A10: 189005013 | B10: Hranatý žľab 125 3bm | C10: =_xlfn.XLOOKUP(A10,'[1]Worksheet 1'!$A$2:$A$18880,'[1]Worksheet 1'!$C$2:$C$18880) -> 35.5 | D10: =C10*(1-$H$2/100) -> 35.5 | E10: RAL 9005 | F10: ks
A11: 189007013 | B11: Hranatý žľab 125 3bm | C11: =_xlfn.XLOOKUP(A11,'[1]Worksheet 1'!$A$2:$A$18880,'[1]Worksheet 1'!$C$2:$C$18880) -> 35.5 | D11: 35.5 | E11: RAL 9007 | F11: ks
A12: 187015014 | B12: Hranatý žľab 125 4bm | C12: =_xlfn.XLOOKUP(A12,'[1]Worksheet 1'!$A$2:$A$18880,'[1]Worksheet 1'!$C$2:$C$18880) -> 47.5 | D12: 47.5 | E12: RAL 7015 | F12: ks
A13: 189005014 | B13: Hranatý žľab 125 4bm | C13: =_xlfn.XLOOKUP(A13,'[1]Worksheet 1'!$A$2:$A$18880,'[1]Worksheet 1'!$C$2:$C$18880) -> 47.5 | D13: 47.5 | E13: RAL 9005 | F13: ks
A14: 189007014 | B14: Hranatý žľab 125 4bm | C14: =_xlfn.XLOOKUP(A14,'[1]Worksheet 1'!$A$2:$A$18880,'[1]Worksheet 1'!$C$2:$C$18880) -> 47.5 | D14: 47.5 | E14: RAL 9007 | F14: ks
A15: 187015071 | B15: Hranatá rúra 80x80 1bm | C15: =_xlfn.XLOOKUP(A15,'[1]Worksheet 1'!$A$2:$A$18880,'[1]Worksheet 1'!$C$2:$C$18880) -> 12.6 | D15: 12.6 | E15: RAL 7015 | F15: ks
A16: 189005071 | B16: Hranatá rúra 80x80 1bm | C16: =_xlfn.XLOOKUP(A16,'[1]Worksheet 1'!$A$2:$A$18880,'[1]Worksheet 1'!$C$2:$C$18880) -> 12.6 | D16: 12.6 | E16: RAL 9005 | F16: ks
A17: 189007071 | B17: Hranatá rúra 80x80 1bm | C17: =_xlfn.XLOOKUP(A17,'[1]Worksheet 1'!$A$2:$A$18880,'[1]Worksheet 1'!$C$2:$C$18880) -> 12.6 | D17: 12.6 | E17: RAL 9007 | F17: ks
A18: 187015073 | B18: Hranatá rúra 80x80 3bm | C18: =_xlfn.XLOOKUP(A18,'[1]Worksheet 1'!$A$2:$A$18880,'[1]Worksheet 1'!$C$2:$C$18880) -> 35.6 | D18: 35.6 | E18: RAL 7015 | F18: ks
A19: 189005073 | B19: Hranatá rúra 80x80 3bm | C19: =_xlfn.XLOOKUP(A19,'[1]Worksheet 1'!$A$2:$A$18880,'[1]Worksheet 1'!$C$2:$C$18880) -> 35.6 | D19: 35.6 | E19: RAL 9005 | F19: ks
A20: 189007073 | B20: Hranatá rúra 80x80 3bm | C20: =_xlfn.XLOOKUP(A20,'[1]Worksheet 1'!$A$2:$A$18880,'[1]Worksheet 1'!$C$2:$C$18880) -> 35.6 | D20: 35.6 | E20: RAL 9007 | F20: ks
A21: 187015074 | B21: Hranatá rúra 80x80 4bm | C21: =_xlfn.XLOOKUP(A21,'[1]Worksheet 1'!$A$2:$A$18880,'[1]Worksheet 1'!$C$2:$C$18880) -> 47.5 | D21: 47.5 | E21: RAL 7015 | F21: ks
A22: 189005074 | B22: Hranatá rúra 80x80 4bm | C22: =_xlfn.XLOOKUP(A22,'[1]Worksheet 1'!$A$2:$A$18880,'[1]Worksheet 1'!$C$2:$C$18880) -> 47.5 | D22: 47.5 | E22: RAL 9005 | F22: ks
A23: 189007074 | B23: Hranatá rúra 80x80 4bm | C23: =_xlfn.XLOOKUP(A23,'[1]Worksheet 1'!$A$2:$A$18880,'[1]Worksheet 1'!$C$2:$C$18880) -> 47.5 | D23: 47.5 | E23: RAL 9007 | F23: ks
A24: 187015141 | B24: Hranatý čelový hák 125 | C24: =_xlfn.XLOOKUP(A24,'[1]Worksheet 1'!$A$2:$A$18880,'[1]Worksheet 1'!$C$2:$C$18880) -> 4.8 | D24: 4.8 | E24: RAL 7015 | F24: ks
A25: 189005141 | B25: Hranatý čelový hák 125 | C25: =_xlfn.XLOOKUP(A25,'[1]Worksheet 1'!$A$2:$A$18880,'[1]Worksheet 1'!$C$2:$C$18880) -> 4.8 | D25: 4.8 | E25: RAL 9005 | F25: ks
A26: 189007141 | B26: Hranatý čelový hák 125 | C26: =_xlfn.XLOOKUP(A26,'[1]Worksheet 1'!$A$2:$A$18880,'[1]Worksheet 1'!$C$2:$C$18880) -> 4.8 | D26: 4.8 | E26: RAL 9007 | F26: ks
A27: 187015111 | B27: Hranatý hák 125 | C27: =_xlfn.XLOOKUP(A27,'[1]Worksheet 1'!$A$2:$A$18880,'[1]Worksheet 1'!$C$2:$C$18880) -> 4.9 | D27: 4.9 | E27: RAL 7015 | F27: ks
A28: 189005111 | B28: Hranatý hák 125 | C28: =_xlfn.XLOOKUP(A28,'[1]Worksheet 1'!$A$2:$A$18880,'[1]Worksheet 1'!$C$2:$C$18880) -> 4.8 | D28: 4.8 | E28: RAL 9005 | F28: ks
A29: 189007111 | B29: Hranatý hák 125 | C29: =_xlfn.XLOOKUP(A29,'[1]Worksheet 1'!$A$2:$A$18880,'[1]Worksheet 1'!$C$2:$C$18880) -> 0 | D29: 0 | E29: RAL 9007 | F29: ks
A30: 187015151 | B30: Hranatý kotlík 125/80x80 | C30: =_xlfn.XLOOKUP(A30,'[1]Worksheet 1'!$A$2:$A$18880,'[1]Worksheet 1'!$C$2:$C$18880) -> 10 | D30: 10 | E30: RAL 7015 | F30: ks
A31: 189005151 | B31: Hranatý kotlík 125/80x80 | C31: =_xlfn.XLOOKUP(A31,'[1]Worksheet 1'!$A$2:$A$18880,'[1]Worksheet 1'!$C$2:$C$18880) -> 10 | D31: 10 | E31: RAL 9005 | F31: ks
A32: 189007151 | B32: Hranatý kotlík 125/80x80 | C32: =_xlfn.XLOOKUP(A32,'[1]Worksheet 1'!$A$2:$A$18880,'[1]Worksheet 1'!$C$2:$C$18880) -> 10 | D32: 10 | E32: RAL 9007 | F32: ks
A33: 187015171 | B33: Hranatý roh vnútorný 125 | C33: =_xlfn.XLOOKUP(A33,'[1]Worksheet 1'!$A$2:$A$18880,'[1]Worksheet 1'!$C$2:$C$18880) -> 21 | D33: 21 | E33: RAL 7015 | F33: ks
A34: 189005171 | B34: Hranatý roh vnútorný 125 | C34: =_xlfn.XLOOKUP(A34,'[1]Worksheet 1'!$A$2:$A$18880,'[1]Worksheet 1'!$C$2:$C$18880) -> 21 | D34: 21 | E34: RAL 9005 | F34: ks
A35: 189007171 | B35: Hranatý roh vnútorný 125 | C35: =_xlfn.XLOOKUP(A35,'[1]Worksheet 1'!$A$2:$A$18880,'[1]Worksheet 1'!$C$2:$C$18880) -> 21 | D35: 21 | E35: RAL 9007 | F35: ks
A36: 187015181 | B36: Hranatý roh vonkajší 125 | C36: =_xlfn.XLOOKUP(A36,'[1]Worksheet 1'!$A$2:$A$18880,'[1]Worksheet 1'!$C$2:$C$18880) -> 21 | D36: 21 | E36: RAL 7015 | F36: ks
A37: 189005181 | B37: Hranatý roh vonkajší 125 | C37: =_xlfn.XLOOKUP(A37,'[1]Worksheet 1'!$A$2:$A$18880,'[1]Worksheet 1'!$C$2:$C$18880) -> 21 | D37: 21 | E37: RAL 9005 | F37: ks
A38: 189007181 | B38: Hranatý roh vonkajší 125 | C38: =_xlfn.XLOOKUP(A38,'[1]Worksheet 1'!$A$2:$A$18880,'[1]Worksheet 1'!$C$2:$C$18880) -> 21 | D38: 21 | E38: RAL 9007 | F38: ks
A39: 187015161 | B39: Hranatá žľabová spojka 125 | C39: =_xlfn.XLOOKUP(A39,'[1]Worksheet 1'!$A$2:$A$18880,'[1]Worksheet 1'!$C$2:$C$18880) -> 20.5 | D39: 20.5 | E39: RAL 7015 | F39: ks
A40: 189005161 | B40: Hranatá žľabová spojka 125 | C40: =_xlfn.XLOOKUP(A40,'[1]Worksheet 1'!$A$2:$A$18880,'[1]Worksheet 1'!$C$2:$C$18880) -> 20.5 | D40: 20.5 | E40: RAL 9005 | F40: ks
A41: 189007161 | B41: Hranatá žľabová spojka 125 | C41: =_xlfn.XLOOKUP(A41,'[1]Worksheet 1'!$A$2:$A$18880,'[1]Worksheet 1'!$C$2:$C$18880) -> 20.5 | D41: 20.5 | E41: RAL 9007 | F41: ks
A42: 187015201 | B42: Hranaté čelo pravé(uPVC) 125 | C42: =_xlfn.XLOOKUP(A42,'[1]Worksheet 1'!$A$2:$A$18880,'[1]Worksheet 1'!$C$2:$C$18880) -> 5.5 | D42: 5.5 | E42: RAL 7015 | F42: ks
A43: 189005201 | B43: Hranaté čelo pravé(uPVC) 125 | C43: =_xlfn.XLOOKUP(A43,'[1]Worksheet 1'!$A$2:$A$18880,'[1]Worksheet 1'!$C$2:$C$18880) -> 5.5 | D43: 5.5 | E43: RAL 9005 | F43: ks
A44: 189007201 | B44: Hranaté čelo pravé(uPVC) 125 | C44: =_xlfn.XLOOKUP(A44,'[1]Worksheet 1'!$A$2:$A$18880,'[1]Worksheet 1'!$C$2:$C$18880) -> 5.5 | D44: 5.5 | E44: RAL 9007 | F44: ks
A45: 187015211 | B45: Hranaté čelo ľavé(uPVC) 125 | C45: =_xlfn.XLOOKUP(A45,'[1]Worksheet 1'!$A$2:$A$18880,'[1]Worksheet 1'!$C$2:$C$18880) -> 5.5 | D45: 5.5 | E45: RAL 7015 | F45: ks
A46: 189005211 | B46: Hranaté čelo ľavé(uPVC) 125 | C46: =_xlfn.XLOOKUP(A46,'[1]Worksheet 1'!$A$2:$A$18880,'[1]Worksheet 1'!$C$2:$C$18880) -> 5.5 | D46: =C46*(1-$H$2/100) -> 5.5 | E46: RAL 9005 | F46: ks
A47: 189007211 | B47: Hranaté čelo ľavé(uPVC) 125 | C47: =_xlfn.XLOOKUP(A47,'[1]Worksheet 1'!$A$2:$A$18880,'[1]Worksheet 1'!$C$2:$C$18880) -> 5.5 | D47: 5.5 | E47: RAL 9007 | F47: ks
A48: 187015221 | B48: Hranaté čelo pravé 125(oceľ) | C48: =_xlfn.XLOOKUP(A48,'[1]Worksheet 1'!$A$2:$A$18880,'[1]Worksheet 1'!$C$2:$C$18880) -> 16.6 | D48: 16.6 | E48: RAL 7015 | F48: ks
A49: 189005221 | B49: Hranaté čelo pravé 125(oceľ) | C49: =_xlfn.XLOOKUP(A49,'[1]Worksheet 1'!$A$2:$A$18880,'[1]Worksheet 1'!$C$2:$C$18880) -> 16.6 | D49: 16.6 | E49: RAL 9005 | F49: ks
A50: 189007221 | B50: Hranaté čelo pravé 125(oceľ) | C50: =_xlfn.XLOOKUP(A50,'[1]Worksheet 1'!$A$2:$A$18880,'[1]Worksheet 1'!$C$2:$C$18880) -> 16.6 | D50: 16.6 | E50: RAL 9007 | F50: ks
A51: 187015231 | B51: Hranaté čelo ľavé(oceľ) 125 | C51: =_xlfn.XLOOKUP(A51,'[1]Worksheet 1'!$A$2:$A$18880,'[1]Worksheet 1'!$C$2:$C$18880) -> 16.6 | D51: 16.6 | E51: RAL 7015 | F51: ks
A52: 189005231 | B52: Hranaté čelo ľavé(oceľ) 125 | C52: =_xlfn.XLOOKUP(A52,'[1]Worksheet 1'!$A$2:$A$18880,'[1]Worksheet 1'!$C$2:$C$18880) -> 16.6 | D52: 16.6 | E52: RAL 9005 | F52: ks
A53: 189007231 | B53: Hranaté čelo ľavé(oceľ) 125 | C53: =_xlfn.XLOOKUP(A53,'[1]Worksheet 1'!$A$2:$A$18880,'[1]Worksheet 1'!$C$2:$C$18880) -> 16.6 | D53: 16.6 | E53: RAL 9007 | F53: ks
A54: 187015301 | B54: Hranaté koleno 72° 80x80 | C54: =_xlfn.XLOOKUP(A54,'[1]Worksheet 1'!$A$2:$A$18880,'[1]Worksheet 1'!$C$2:$C$18880) -> 12 | D54: 12 | E54: RAL 7015 | F54: ks
A55: 189005301 | B55: Hranaté koleno 72° 80x80 | C55: =_xlfn.XLOOKUP(A55,'[1]Worksheet 1'!$A$2:$A$18880,'[1]Worksheet 1'!$C$2:$C$18880) -> 12 | D55: 12 | E55: RAL 9005 | F55: ks
A56: 189007301 | B56: Hranaté koleno 72° 80x80 | C56: =_xlfn.XLOOKUP(A56,'[1]Worksheet 1'!$A$2:$A$18880,'[1]Worksheet 1'!$C$2:$C$18880) -> 12 | D56: 12 | E56: RAL 9007 | F56: ks
A57: 187015311 | B57: Hranatá spojka rúr 80x80 | C57: =_xlfn.XLOOKUP(A57,'[1]Worksheet 1'!$A$2:$A$18880,'[1]Worksheet 1'!$C$2:$C$18880) -> 15 | D57: 15 | E57: RAL 7015 | F57: ks
A58: 189005311 | B58: Hranatá spojka rúr 80x80 | C58: =_xlfn.XLOOKUP(A58,'[1]Worksheet 1'!$A$2:$A$18880,'[1]Worksheet 1'!$C$2:$C$18880) -> 15 | D58: 15 | E58: RAL 9005 | F58: ks
A59: 189007311 | B59: Hranatá spojka rúr 80x80 | C59: =_xlfn.XLOOKUP(A59,'[1]Worksheet 1'!$A$2:$A$18880,'[1]Worksheet 1'!$C$2:$C$18880) -> 15 | D59: 15 | E59: RAL 9007 | F59: ks
A60: 187015321 | B60: Hranatá objímka 80x80 | C60: =_xlfn.XLOOKUP(A60,'[1]Worksheet 1'!$A$2:$A$18880,'[1]Worksheet 1'!$C$2:$C$18880) -> 5.1 | D60: 5.1 | E60: RAL 7015 | F60: ks
A61: 189005321 | B61: Hranatá objímka 80x80 | C61: =_xlfn.XLOOKUP(A61,'[1]Worksheet 1'!$A$2:$A$18880,'[1]Worksheet 1'!$C$2:$C$18880) -> 5.1 | D61: 5.1 | E61: RAL 9005 | F61: ks
A62: 189007321 | B62: Hranatá objímka 80x80 | C62: =_xlfn.XLOOKUP(A62,'[1]Worksheet 1'!$A$2:$A$18880,'[1]Worksheet 1'!$C$2:$C$18880) -> 5.1 | D62: 5.1 | E62: RAL 9007 | F62: ks
A63: 187015331 | B63: Hranatá odbočka 72° 80x80 | C63: =_xlfn.XLOOKUP(A63,'[1]Worksheet 1'!$A$2:$A$18880,'[1]Worksheet 1'!$C$2:$C$18880) -> 73.5 | D63: 73.5 | E63: RAL 7015 | F63: ks
A64: 189005331 | B64: Hranatá odbočka 72° 80x80 | C64: =_xlfn.XLOOKUP(A64,'[1]Worksheet 1'!$A$2:$A$18880,'[1]Worksheet 1'!$C$2:$C$18880) -> 73.5 | D64: 73.5 | E64: RAL 9005 | F64: ks
A65: 189007331 | B65: Hranatá odbočka 72° 80x80 | C65: =_xlfn.XLOOKUP(A65,'[1]Worksheet 1'!$A$2:$A$18880,'[1]Worksheet 1'!$C$2:$C$18880) -> 73.5 | D65: 73.5 | E65: RAL 9007 | F65: ks

Sheet GALECO NOVA
H1: Vaša zľava v %
H2: 0
H3: Ceny sú uvádzané bez DPH.
B7: GALECO NOVA
A8: PLU | B8: Model | C8: Cena | D8: Cena po zľave | E8: Farba | F8: MJ | G8: Objednané množstvá | H8: Obrázok
A9: 149010100 | B9: Strešný podhľad 295x4000 mm | C9: =_xlfn.XLOOKUP(A9,'[1]Worksheet 1'!$A$2:$A$18880,'[1]Worksheet 1'!$C$2:$C$18880) -> 23.5 | D9: =C9*(1-$H$2/100) -> 23.5 | E9: Biela | F9: ks
A10: 149020100 | B10: Strešný podhľad 295x4000 mm | C10: =_xlfn.XLOOKUP(A10,'[1]Worksheet 1'!$A$2:$A$18880,'[1]Worksheet 1'!$C$2:$C$18880) -> 27 | D10: =C10*(1-$H$2/100) -> 27 | E10: Biely dub | F10: ks
A11: 149005100 | B11: Strešný podhľad 295x4000 mm | C11: =_xlfn.XLOOKUP(A11,'[1]Worksheet 1'!$A$2:$A$18880,'[1]Worksheet 1'!$C$2:$C$18880) -> 23.5 | D11: 23.5 | E11: Čierný | F11: ks
A12: 147021100 | B12: Strešný podhľad 295x4000 mm | C12: =_xlfn.XLOOKUP(A12,'[1]Worksheet 1'!$A$2:$A$18880,'[1]Worksheet 1'!$C$2:$C$18880) -> 23.5 | D12: 23.5 | E12: Grafitový | F12: ks
A13: 148019100 | B13: Strešný podhľad 295x4000 mm | C13: =_xlfn.XLOOKUP(A13,'[1]Worksheet 1'!$A$2:$A$18880,'[1]Worksheet 1'!$C$2:$C$18880) -> 23.5 | D13: 23.5 | E13: Hnedý | F13: ks
A14: 148002100 | B14: Strešný podhľad 295x4000 mm | C14: =_xlfn.XLOOKUP(A14,'[1]Worksheet 1'!$A$2:$A$18880,'[1]Worksheet 1'!$C$2:$C$18880) -> 27 | D14: 27 | E14: Orech | F14: ks
A15: 148001100 | B15: Strešný podhľad 295x4000 mm | C15: =_xlfn.XLOOKUP(A15,'[1]Worksheet 1'!$A$2:$A$18880,'[1]Worksheet 1'!$C$2:$C$18880) -> 27 | D15: 27 | E15: Winchester | F15: ks
A16: 148023100 | B16: Strešný podhľad 295x4000 mm | C16: =_xlfn.XLOOKUP(A16,'[1]Worksheet 1'!$A$2:$A$18880,'[1]Worksheet 1'!$C$2:$C$18880) -> 27 | D16: 27 | E16: Zlatý dub | F16: ks
A17: 149010200 | B17: Strešný podhľad perforovaný 295x4000 mm | C17: =_xlfn.XLOOKUP(A17,'[1]Worksheet 1'!$A$2:$A$18880,'[1]Worksheet 1'!$C$2:$C$18880) -> 23.5 | D17: 23.5 | E17: Biela | F17: ks
A18: 149020200 | B18: Strešný podhľad perforovaný 295x4000 mm | C18: =_xlfn.XLOOKUP(A18,'[1]Worksheet 1'!$A$2:$A$18880,'[1]Worksheet 1'!$C$2:$C$18880) -> 27 | D18: 27 | E18: Biely dub | F18: ks
A19: 149005200 | B19: Strešný podhľad perforovaný 295x4000 mm | C19: =_xlfn.XLOOKUP(A19,'[1]Worksheet 1'!$A$2:$A$18880,'[1]Worksheet 1'!$C$2:$C$18880) -> 23.5 | D19: 23.5 | E19: Čierný | F19: ks
A20: 147021200 | B20: Strešný podhľad perforovaný 295x4000 mm | C20: =_xlfn.XLOOKUP(A20,'[1]Worksheet 1'!$A$2:$A$18880,'[1]Worksheet 1'!$C$2:$C$18880) -> 23.5 | D20: 23.5 | E20: Grafitový | F20: ks
A21: 148019200 | B21: Strešný podhľad perforovaný 295x4000 mm | C21: =_xlfn.XLOOKUP(A21,'[1]Worksheet 1'!$A$2:$A$18880,'[1]Worksheet 1'!$C$2:$C$18880) -> 23.5 | D21: 23.5 | E21: Hnedý | F21: ks
A22: 148002200 | B22: Strešný podhľad perforovaný 295x4000 mm | C22: =_xlfn.XLOOKUP(A22,'[1]Worksheet 1'!$A$2:$A$18880,'[1]Worksheet 1'!$C$2:$C$18880) -> 27 | D22: 27 | E22: Orech | F22: ks
A23: 148001200 | B23: Strešný podhľad perforovaný 295x4000 mm | C23: =_xlfn.XLOOKUP(A23,'[1]Worksheet 1'!$A$2:$A$18880,'[1]Worksheet 1'!$C$2:$C$18880) -> 27 | D23: 27 | E23: Winchester | F23: ks
A24: 148023200 | B24: Strešný podhľad perforovaný 295x4000 mm | C24: =_xlfn.XLOOKUP(A24,'[1]Worksheet 1'!$A$2:$A$18880,'[1]Worksheet 1'!$C$2:$C$18880) -> 27 | D24: 27 | E24: Zlatý dub | F24: ks
A25: 149010400 | B25: Profil H 4000 mm | C25: =_xlfn.XLOOKUP(A25,'[1]Worksheet 1'!$A$2:$A$18880,'[1]Worksheet 1'!$C$2:$C$18880) -> 13 | D25: 13 | E25: Biela | F25: ks
A26: 149020400 | B26: Profil H 4000 mm | C26: =_xlfn.XLOOKUP(A26,'[1]Worksheet 1'!$A$2:$A$18880,'[1]Worksheet 1'!$C$2:$C$18880) -> 14 | D26: 14 | E26: Biely dub | F26: ks
A27: 149005400 | B27: Profil H 4000 mm | C27: =_xlfn.XLOOKUP(A27,'[1]Worksheet 1'!$A$2:$A$18880,'[1]Worksheet 1'!$C$2:$C$18880) -> 13 | D27: 13 | E27: Čierný | F27: ks
A28: 147021400 | B28: Profil H 4000 mm | C28: =_xlfn.XLOOKUP(A28,'[1]Worksheet 1'!$A$2:$A$18880,'[1]Worksheet 1'!$C$2:$C$18880) -> 13 | D28: 13 | E28: Grafitový | F28: ks
A29: 148002400 | B29: Profil H 4000 mm | C29: =_xlfn.XLOOKUP(A29,'[1]Worksheet 1'!$A$2:$A$18880,'[1]Worksheet 1'!$C$2:$C$18880) -> 14 | D29: 14 | E29: Hnedý | F29: ks
A30: 148002400 | B30: Profil H 4000 mm | C30: =_xlfn.XLOOKUP(A30,'[1]Worksheet 1'!$A$2:$A$18880,'[1]Worksheet 1'!$C$2:$C$18880) -> 14 | D30: 14 | E30: Orech | F30: ks
A31: 148001400 | B31: Profil H 4000 mm | C31: =_xlfn.XLOOKUP(A31,'[1]Worksheet 1'!$A$2:$A$18880,'[1]Worksheet 1'!$C$2:$C$18880) -> 14 | D31: 14 | E31: Winchester | F31: ks
A32: 148023400 | B32: Profil H 4000 mm | C32: =_xlfn.XLOOKUP(A32,'[1]Worksheet 1'!$A$2:$A$18880,'[1]Worksheet 1'!$C$2:$C$18880) -> 14 | D32: 14 | E32: Zlatý dub | F32: ks
A33: 149010300 | B33: Profil J 4000 mm | C33: =_xlfn.XLOOKUP(A33,'[1]Worksheet 1'!$A$2:$A$18880,'[1]Worksheet 1'!$C$2:$C$18880) -> 7.2 | D33: 7.2 | E33: Biela | F33: ks
A34: 149020300 | B34: Profil J 4000 mm | C34: =_xlfn.XLOOKUP(A34,'[1]Worksheet 1'!$A$2:$A$18880,'[1]Worksheet 1'!$C$2:$C$18880) -> 11.5 | D34: 11.5 | E34: Biely dub | F34: ks
A35: 149005300 | B35: Profil J 4000 mm | C35: =_xlfn.XLOOKUP(A35,'[1]Worksheet 1'!$A$2:$A$18880,'[1]Worksheet 1'!$C$2:$C$18880) -> 7.2 | D35: 7.2 | E35: Čierný | F35: ks
A36: 147021300 | B36: Profil J 4000 mm | C36: =_xlfn.XLOOKUP(A36,'[1]Worksheet 1'!$A$2:$A$18880,'[1]Worksheet 1'!$C$2:$C$18880) -> 7.2 | D36: 7.2 | E36: Grafitový | F36: ks
A37: 148019300 | B37: Profil J 4000 mm | C37: =_xlfn.XLOOKUP(A37,'[1]Worksheet 1'!$A$2:$A$18880,'[1]Worksheet 1'!$C$2:$C$18880) -> 7.2 | D37: 7.2 | E37: Hnedý | F37: ks
A38: 148002300 | B38: Profil J 4000 mm | C38: =_xlfn.XLOOKUP(A38,'[1]Worksheet 1'!$A$2:$A$18880,'[1]Worksheet 1'!$C$2:$C$18880) -> 11.5 | D38: 11.5 | E38: Orech | F38: ks
A39: 148001300 | B39: Profil J 4000 mm | C39: =_xlfn.XLOOKUP(A39,'[1]Worksheet 1'!$A$2:$A$18880,'[1]Worksheet 1'!$C$2:$C$18880) -> 11.5 | D39: 11.5 | E39: Winchester | F39: ks
A40: 148023300 | B40: Profil J 4000 mm | C40: =_xlfn.XLOOKUP(A40,'[1]Worksheet 1'!$A$2:$A$18880,'[1]Worksheet 1'!$C$2:$C$18880) -> 11.5 | D40: 11.5 | E40: Zlatý dub | F40: ks
A41: 149010500 | B41: Vonkajší roh 4000 mm | C41: =_xlfn.XLOOKUP(A41,'[1]Worksheet 1'!$A$2:$A$18880,'[1]Worksheet 1'!$C$2:$C$18880) -> 17 | D41: 17 | E41: Biela | F41: ks
A42: 149020500 | B42: Vonkajší roh 4000 mm | C42: =_xlfn.XLOOKUP(A42,'[1]Worksheet 1'!$A$2:$A$18880,'[1]Worksheet 1'!$C$2:$C$18880) -> 18 | D42: 18 | E42: Biely dub | F42: ks
A43: 149005500 | B43: Vonkajší roh 4000 mm | C43: =_xlfn.XLOOKUP(A43,'[1]Worksheet 1'!$A$2:$A$18880,'[1]Worksheet 1'!$C$2:$C$18880) -> 17 | D43: 17 | E43: Čierný | F43: ks
A44: 147021500 | B44: Vonkajší roh 4000 mm | C44: =_xlfn.XLOOKUP(A44,'[1]Worksheet 1'!$A$2:$A$18880,'[1]Worksheet 1'!$C$2:$C$18880) -> 17 | D44: 17 | E44: Grafitový | F44: ks
A45: 148002500 | B45: Vonkajší roh 4000 mm | C45: =_xlfn.XLOOKUP(A45,'[1]Worksheet 1'!$A$2:$A$18880,'[1]Worksheet 1'!$C$2:$C$18880) -> 18 | D45: 18 | E45: Hnedý | F45: ks
A46: 148002500 | B46: Vonkajší roh 4000 mm | C46: =_xlfn.XLOOKUP(A46,'[1]Worksheet 1'!$A$2:$A$18880,'[1]Worksheet 1'!$C$2:$C$18880) -> 18 | D46: 18 | E46: Orech | F46: ks
A47: 148001500 | B47: Vonkajší roh 4000 mm | C47: =_xlfn.XLOOKUP(A47,'[1]Worksheet 1'!$A$2:$A$18880,'[1]Worksheet 1'!$C$2:$C$18880) -> 18 | D47: 18 | E47: Winchester | F47: ks
A48: 148023500 | B48: Vonkajší roh 4000 mm | C48: =_xlfn.XLOOKUP(A48,'[1]Worksheet 1'!$A$2:$A$18880,'[1]Worksheet 1'!$C$2:$C$18880) -> 18 | D48: 18 | E48: Zlatý dub | F48: ks

Sheet GALECO PVC2
H1: Vaša zľava v %
H2: 0
H3: Ceny sú uvádzané bez DPH.
B7: GALECO PVC2
A8: PLU | B8: Model | C8: Cena | D8: Cena po zľave | E8: Farba | F8: MJ | G8: Objednané množstvá | H8: Obrázok
A9: 167021013 | B9: Hranatý žľab 135 3bm | C9: =_xlfn.XLOOKUP(A9,'[1]Worksheet 1'!$A$2:$A$18880,'[1]Worksheet 1'!$C$2:$C$18880) -> 24 | D9: =C9*(1-$H$2/100) -> 24 | E9: RAL 7021 | F9: ks
A10: 169005013 | B10: Hranatý žľab 135 3bm | C10: 24 | D10: =C10*(1-$H$2/100) -> 24 | E10: RAL 9005 | F10: ks
A11: 167021014 | B11: Hranatý žľab 135 4bm | C11: 31.5 | D11: 31.5 | E11: RAL 7021 | F11: ks
A12: 169005014 | B12: Hranatý žľab 135 4bm | C12: 31.5 | D12: 31.5 | E12: RAL 9005 | F12: ks
A13: 167021071 | B13: Hranatá rúra 70x80 1bm | C13: 6.5 | D13: 6.5 | E13: RAL 7021 | F13: ks
A14: 169005071 | B14: Hranatá rúra 70x80 1bm | C14: 6.5 | D14: 6.5 | E14: RAL 9005 | F14: ks
A15: 167021073 | B15: Hranatá rúra 70x80 3bm | C15: 19.5 | D15: 19.5 | E15: RAL 7021 | F15: ks
A16: 169005073 | B16: Hranatá rúra 70x80 3bm | C16: 19.5 | D16: 19.5 | E16: RAL 9005 | F16: ks
A17: 167021074 | B17: Hranatá rúra 70x80 4bm | C17: 26 | D17: 26 | E17: RAL 7021 | F17: ks
A18: 169005074 | B18: Hranatá rúra 70x80 4bm | C18: 26 | D18: 26 | E18: RAL 9005 | F18: ks
A19: 167021141 | B19: Hranatý čelový hák PVC 135 | C19: 2.5 | D19: 2.5 | E19: RAL 7021 | F19: ks
A20: 169005141 | B20: Hranatý čelový hák PVC 136 | C20: 2.5 | D20: 2.5 | E20: RAL 9005 | F20: ks
A21: 167021151 | B21: Hranatý kotlík 135/70x80 | C21: 14 | D21: 14 | E21: RAL 7021 | F21: ks
A22: 169005151 | B22: Hranatý kotlík 135/70x81 | C22: 14 | D22: 14 | E22: RAL 9005 | F22: ks
A23: 167021161 | B23: Hranatá žľabová spojka 135 | C23: 18.6 | D23: 18.6 | E23: RAL 7021 | F23: ks
A24: 169005161 | B24: Hranatá žľabová spojka 135 | C24: 18.6 | D24: 18.6 | E24: RAL 9005 | F24: ks
A25: 167021171 | B25: Hranatý roh vnútorný 135 | C25: 33 | D25: 33 | E25: RAL 7021 | F25: ks
A26: 169005171 | B26: Hranatý roh vnútorný 135 | C26: 33 | D26: 33 | E26: RAL 9005 | F26: ks
A27: 167021181 | B27: Hranatý roh vonkajší 135 | C27: 33 | D27: 33 | E27: RAL 7021 | F27: ks
A28: 169005181 | B28: Hranatý roh vonkajší 135 | C28: 33 | D28: 33 | E28: RAL 9005 | F28: ks
A29: 167021201 | B29: Hranaté čelo pravé 135 | C29: 10.6 | D29: 10.6 | E29: RAL 7021 | F29: ks
A30: 169005201 | B30: Hranaté čelo pravé 135 | C30: 10.6 | D30: 10.6 | E30: RAL 9005 | F30: ks
A31: 167021211 | B31: Hranaté čelo ľavé 135 | C31: 10.6 | D31: 10.6 | E31: RAL 7021 | F31: ks
A32: 169005211 | B32: Hranaté čelo ľavé 135 | C32: 10.6 | D32: 10.6 | E32: RAL 9005 | F32: ks
A33: 167021301 | B33: Hranaté koleno 67° 70x80 | C33: 6.6 | D33: 6.6 | E33: RAL 7021 | F33: ks
A34: 169005301 | B34: Hranaté koleno 67° 70x80 | C34: 6.6 | D34: 6.6 | E34: RAL 9005 | F34: ks
A35: 167021311 | B35: Hranatá spojka rúr 70x80 | C35: 6.9 | D35: 6.9 | E35: RAL 7021 | F35: ks
A36: 169005311 | B36: Hranatá spojka rúr 70x80 | C36: 6.9 | D36: 6.9 | E36: RAL 9005 | F36: ks
A37: 167021321 | B37: Hranatá objímka 70x80 | C37: 5 | D37: 5 | E37: RAL 7021 | F37: ks
A38: 169005321 | B38: Hranatá objímka 70x80 | C38: 5 | D38: 5 | E38: RAL 9005 | F38: ks

Sheet GALECO PVC
H1: Vaša zľava v %
H2: 0
H3: Ceny sú uvádzané bez DPH.
B7: GALECO PVC | G7: Objednané množstvá
A8: PLU | B8: Model | C8: Cena | D8: Cena po zľave | E8: Rozmer | F8: MJ | G8: 7021 | H8: 8019 | I8: 9005 | J8: Obrázok
A9: 15ffff013 | B9: Žľab 3bm | C9: =_xlfn.XLOOKUP(VALUE(REPLACE(A9,3,4,7021)),'[1]Worksheet 1'!$A$2:$A$18880,'[1]Worksheet 1'!$C$2:$C$18880) -> 8.2 | D9: =C9*(1-$H$2/100) -> 8.2 | E9: 90 | F9: ks
A10: 15ffff014 | B10: Žľab 4bm | C10: =_xlfn.XLOOKUP(VALUE(REPLACE(A10,3,4,7021)),'[1]Worksheet 1'!$A$2:$A$18880,'[1]Worksheet 1'!$C$2:$C$18880) -> 10.95 | D10: =C10*(1-$H$2/100) -> 10.95 | E10: 90 | F10: ks
A11: 15ffff023 | B11: Žľab 3bm | C11: =_xlfn.XLOOKUP(VALUE(REPLACE(A11,3,4,7021)),'[1]Worksheet 1'!$A$2:$A$18880,'[1]Worksheet 1'!$C$2:$C$18880) -> 9 | D11: =C11*(1-$H$2/100) -> 9 | E11: 110 | F11: ks
A12: 15ffff024 | B12: Žľab 4bm | C12: =_xlfn.XLOOKUP(VALUE(REPLACE(A12,3,4,7021)),'[1]Worksheet 1'!$A$2:$A$18880,'[1]Worksheet 1'!$C$2:$C$18880) -> 12 | D12: 12 | E12: 110 | F12: ks
A13: 15ffff033 | B13: Žľab 3bm | C13: =_xlfn.XLOOKUP(VALUE(REPLACE(A13,3,4,7021)),'[1]Worksheet 1'!$A$2:$A$18880,'[1]Worksheet 1'!$C$2:$C$18880) -> 11.25 | D13: 11.25 | E13: 130 | F13: ks
A14: 15ffff034 | B14: Žľab 4bm | C14: =_xlfn.XLOOKUP(VALUE(REPLACE(A14,3,4,7021)),'[1]Worksheet 1'!$A$2:$A$18880,'[1]Worksheet 1'!$C$2:$C$18880) -> 15 | D14: 15 | E14: 130 | F14: ks
A15: 15ffff043 | B15: Žľab 4bm | C15: =_xlfn.XLOOKUP(VALUE(REPLACE(A15,3,4,7021)),'[1]Worksheet 1'!$A$2:$A$18880,'[1]Worksheet 1'!$C$2:$C$18880) -> 20 | D15: 20 | E15: 150 | F15: ks
A16: 15ffff061 | B16: Rúra 1bm | C16: =_xlfn.XLOOKUP(VALUE(REPLACE(A16,3,4,7021)),'[1]Worksheet 1'!$A$2:$A$18880,'[1]Worksheet 1'!$C$2:$C$18880) -> 2.7 | D16: 2.7 | E16: 50 | F16: ks
A17: 15ffff063 | B17: Rúra 3bm | C17: =_xlfn.XLOOKUP(VALUE(REPLACE(A17,3,4,7021)),'[1]Worksheet 1'!$A$2:$A$18880,'[1]Worksheet 1'!$C$2:$C$18880) -> 8.1 | D17: 8.1 | E17: 50 | F17: ks
A18: 15ffff064 | B18: Rúra 4bm | C18: =_xlfn.XLOOKUP(VALUE(REPLACE(A18,3,4,7021)),'[1]Worksheet 1'!$A$2:$A$18880,'[1]Worksheet 1'!$C$2:$C$18880) -> 10.8 | D18: 10.8 | E18: 50 | F18: ks
A19: 15ffff071 | B19: Rúra 1bm | C19: =_xlfn.XLOOKUP(VALUE(REPLACE(A19,3,4,7021)),'[1]Worksheet 1'!$A$2:$A$18880,'[1]Worksheet 1'!$C$2:$C$18880) -> 3.9 | D19: 3.9 | E19: 80 | F19: ks
A20: 15ffff073 | B20: Rúra 3bm | C20: =_xlfn.XLOOKUP(VALUE(REPLACE(A20,3,4,7021)),'[1]Worksheet 1'!$A$2:$A$18880,'[1]Worksheet 1'!$C$2:$C$18880) -> 11.7 | D20: 11.7 | E20: 80 | F20: ks
A21: 15ffff074 | B21: Rúra 4bm | C21: =_xlfn.XLOOKUP(VALUE(REPLACE(A21,3,4,7021)),'[1]Worksheet 1'!$A$2:$A$18880,'[1]Worksheet 1'!$C$2:$C$18880) -> 15.6 | D21: 15.6 | E21: 80 | F21: ks
A22: 15ffff081 | B22: Rúra 1bm | C22: =_xlfn.XLOOKUP(VALUE(REPLACE(A22,3,4,7021)),'[1]Worksheet 1'!$A$2:$A$18880,'[1]Worksheet 1'!$C$2:$C$18880) -> 4.7 | D22: 4.7 | E22: 100 | F22: ks
A23: 15ffff083 | B23: Rúra 3bm | C23: =_xlfn.XLOOKUP(VALUE(REPLACE(A23,3,4,7021)),'[1]Worksheet 1'!$A$2:$A$18880,'[1]Worksheet 1'!$C$2:$C$18880) -> 14.1 | D23: 14.1 | E23: 100 | F23: ks
A24: 15ffff084 | B24: Rúra 4bm | C24: =_xlfn.XLOOKUP(VALUE(REPLACE(A24,3,4,7021)),'[1]Worksheet 1'!$A$2:$A$18880,'[1]Worksheet 1'!$C$2:$C$18880) -> 18.8 | D24: 18.8 | E24: 100 | F24: ks
A25: 15ffff111 | B25: Hák rovný oceľový | C25: =_xlfn.XLOOKUP(VALUE(REPLACE(A25,3,4,7021)),'[1]Worksheet 1'!$A$2:$A$18880,'[1]Worksheet 1'!$C$2:$C$18880) -> 4.5 | D25: 4.5 | E25: 90 | F25: ks
A26: 15ffff112 | B26: Hák rovný oceľový | C26: =_xlfn.XLOOKUP(VALUE(REPLACE(A26,3,4,7021)),'[1]Worksheet 1'!$A$2:$A$18880,'[1]Worksheet 1'!$C$2:$C$18880) -> 5.7 | D26: 5.7 | E26: 110 | F26: ks
A27: 15ffff113 | B27: Hák rovný oceľový | C27: =_xlfn.XLOOKUP(VALUE(REPLACE(A27,3,4,7021)),'[1]Worksheet 1'!$A$2:$A$18880,'[1]Worksheet 1'!$C$2:$C$18880) -> 5.4 | D27: 5.4 | E27: 130 | F27: ks
A28: 15ffff114 | B28: Hák rovný oceľový | C28: =_xlfn.XLOOKUP(VALUE(REPLACE(A28,3,4,7021)),'[1]Worksheet 1'!$A$2:$A$18880,'[1]Worksheet 1'!$C$2:$C$18880) -> 5.9 | D28: 5.9 | E28: 150 | F28: ks
A29: 15ffff141 | B29: Čelový hák PVC | C29: =_xlfn.XLOOKUP(VALUE(REPLACE(A29,3,4,7021)),'[1]Worksheet 1'!$A$2:$A$18880,'[1]Worksheet 1'!$C$2:$C$18880) -> 1 | D29: 1 | E29: 90 | F29: ks
A30: 15ffff142 | B30: Čelový hák PVC | C30: =_xlfn.XLOOKUP(VALUE(REPLACE(A30,3,4,7021)),'[1]Worksheet 1'!$A$2:$A$18880,'[1]Worksheet 1'!$C$2:$C$18880) -> 1.6 | D30: 1.6 | E30: 110 | F30: ks
A31: 15ffff143 | B31: Čelový hák PVC | C31: =_xlfn.XLOOKUP(VALUE(REPLACE(A31,3,4,7021)),'[1]Worksheet 1'!$A$2:$A$18880,'[1]Worksheet 1'!$C$2:$C$18880) -> 2 | D31: 2 | E31: 130 | F31: ks
A32: 15ffff144 | B32: Čelový hák PVC | C32: =_xlfn.XLOOKUP(VALUE(REPLACE(A32,3,4,7021)),'[1]Worksheet 1'!$A$2:$A$18880,'[1]Worksheet 1'!$C$2:$C$18880) -> 3.3 | D32: 3.3 | E32: 150 | F32: ks
A33: 15ffff151 | B33: Kotlík | C33: =_xlfn.XLOOKUP(VALUE(REPLACE(A33,3,4,7021)),'[1]Worksheet 1'!$A$2:$A$18880,'[1]Worksheet 1'!$C$2:$C$18880) -> 5.3 | D33: 5.3 | E33: 90/50 | F33: ks
A34: 15ffff152 | B34: Kotlík | C34: =_xlfn.XLOOKUP(VALUE(REPLACE(A34,3,4,7021)),'[1]Worksheet 1'!$A$2:$A$18880,'[1]Worksheet 1'!$C$2:$C$18880) -> 9.9 | D34: 9.9 | E34: 110/80 | F34: ks
A35: 15ffff153 | B35: Kotlík | C35: =_xlfn.XLOOKUP(VALUE(REPLACE(A35,3,4,7021)),'[1]Worksheet 1'!$A$2:$A$18880,'[1]Worksheet 1'!$C$2:$C$18880) -> 8.8 | D35: 8.8 | E35: 130/80 | F35: ks
A36: 15ffff154 | B36: Kotlík | C36: =_xlfn.XLOOKUP(VALUE(REPLACE(A36,3,4,7021)),'[1]Worksheet 1'!$A$2:$A$18880,'[1]Worksheet 1'!$C$2:$C$18880) -> 8.8 | D36: 8.8 | E36: 130/100 | F36: ks
A37: 15ffff155 | B37: Kotlík | C37: =_xlfn.XLOOKUP(VALUE(REPLACE(A37,3,4,7021)),'[1]Worksheet 1'!$A$2:$A$18880,'[1]Worksheet 1'!$C$2:$C$18880) -> 16.9 | D37: 16.9 | E37: 150/100 | F37: ks
A38: 15ffff161 | B38: Žľabová spojka | C38: =_xlfn.XLOOKUP(VALUE(REPLACE(A38,3,4,7021)),'[1]Worksheet 1'!$A$2:$A$18880,'[1]Worksheet 1'!$C$2:$C$18880) -> 4.4 | D38: 4.4 | E38: 90 | F38: ks
A39: 15ffff162 | B39: Žľabová spojka | C39: =_xlfn.XLOOKUP(VALUE(REPLACE(A39,3,4,7021)),'[1]Worksheet 1'!$A$2:$A$18880,'[1]Worksheet 1'!$C$2:$C$18880) -> 7 | D39: 7 | E39: 110 | F39: ks
A40: 15ffff163 | B40: Žľabová spojka | C40: =_xlfn.XLOOKUP(VALUE(REPLACE(A40,3,4,7021)),'[1]Worksheet 1'!$A$2:$A$18880,'[1]Worksheet 1'!$C$2:$C$18880) -> 6.5 | D40: 6.5 | E40: 130 | F40: ks
A41: 15ffff164 | B41: Žľabová spojka | C41: =_xlfn.XLOOKUP(VALUE(REPLACE(A41,3,4,7021)),'[1]Worksheet 1'!$A$2:$A$18880,'[1]Worksheet 1'!$C$2:$C$18880) -> 10.4 | D41: 10.4 | E41: 150 | F41: ks
A42: 15ffff171 | B42: Roh vnútorný | C42: =_xlfn.XLOOKUP(VALUE(REPLACE(A42,3,4,7021)),'[1]Worksheet 1'!$A$2:$A$18880,'[1]Worksheet 1'!$C$2:$C$18880) -> 7.5 | D42: 7.5 | E42: 90 | F42: ks
A43: 15ffff172 | B43: Roh vnútorný | C43: =_xlfn.XLOOKUP(VALUE(REPLACE(A43,3,4,7021)),'[1]Worksheet 1'!$A$2:$A$18880,'[1]Worksheet 1'!$C$2:$C$18880) -> 7.2 | D43: 7.2 | E43: 110 | F43: ks
A44: 15ffff173 | B44: Roh vnútorný | C44: =_xlfn.XLOOKUP(VALUE(REPLACE(A44,3,4,7021)),'[1]Worksheet 1'!$A$2:$A$18880,'[1]Worksheet 1'!$C$2:$C$18880) -> 9.8 | D44: 9.8 | E44: 130 | F44: ks
A45: 15ffff174 | B45: Roh vnútorný | C45: =_xlfn.XLOOKUP(VALUE(REPLACE(A45,3,4,7021)),'[1]Worksheet 1'!$A$2:$A$18880,'[1]Worksheet 1'!$C$2:$C$18880) -> 15 | D45: 15 | E45: 150 | F45: ks
A46: 15ffff181 | B46: Roh vonkajší | C46: =_xlfn.XLOOKUP(VALUE(REPLACE(A46,3,4,7021)),'[1]Worksheet 1'!$A$2:$A$18880,'[1]Worksheet 1'!$C$2:$C$18880) -> 7.5 | D46: 7.5 | E46: 90 | F46: ks
A47: 15ffff182 | B47: Roh vonkajší | C47: =_xlfn.XLOOKUP(VALUE(REPLACE(A47,3,4,7021)),'[1]Worksheet 1'!$A$2:$A$18880,'[1]Worksheet 1'!$C$2:$C$18880) -> 7.2 | D47: 7.2 | E47: 110 | F47: ks
A48: 15ffff183 | B48: Roh vonkajší | C48: =_xlfn.XLOOKUP(VALUE(REPLACE(A48,3,4,7021)),'[1]Worksheet 1'!$A$2:$A$18880,'[1]Worksheet 1'!$C$2:$C$18880) -> 9.6 | D48: 9.6 | E48: 130 | F48: ks
A49: 15ffff184 | B49: Roh vonkajší | C49: =_xlfn.XLOOKUP(VALUE(REPLACE(A49,3,4,7021)),'[1]Worksheet 1'!$A$2:$A$18880,'[1]Worksheet 1'!$C$2:$C$18880) -> 15 | D49: 15 | E49: 150 | F49: ks
A50: 15ffff191 | B50: Roh vonkajší nastavitelný | C50: =_xlfn.XLOOKUP(VALUE(REPLACE(A50,3,4,7021)),'[1]Worksheet 1'!$A$2:$A$18880,'[1]Worksheet 1'!$C$2:$C$18880) -> 0 | D50: 0 | E50: 90 | F50: ks
A51: 15ffff192 | B51: Roh vonkajší nastavitelný | C51: =_xlfn.XLOOKUP(VALUE(REPLACE(A51,3,4,7021)),'[1]Worksheet 1'!$A$2:$A$18880,'[1]Worksheet 1'!$C$2:$C$18880) -> 0 | D51: 0 | E51: 110 | F51: ks
A52: 15ffff193 | B52: Roh vonkajší nastavitelný | C52: =_xlfn.XLOOKUP(VALUE(REPLACE(A52,3,4,7021)),'[1]Worksheet 1'!$A$2:$A$18880,'[1]Worksheet 1'!$C$2:$C$18880) -> 21 | D52: 21 | E52: 130 | F52: ks
A53: 15ffff194 | B53: Roh vonkajší nastavitelný | C53: =_xlfn.XLOOKUP(VALUE(REPLACE(A53,3,4,7021)),'[1]Worksheet 1'!$A$2:$A$18880,'[1]Worksheet 1'!$C$2:$C$18880) -> 0 | D53: 0 | E53: 150 | F53: ks
A54: 15ffff201 | B54: Čelo pravé | C54: =_xlfn.XLOOKUP(VALUE(REPLACE(A54,3,4,7021)),'[1]Worksheet 1'!$A$2:$A$18880,'[1]Worksheet 1'!$C$2:$C$18880) -> 2.3 | D54: 2.3 | E54: 90 | F54: ks
A55: 15ffff202 | B55: Čelo pravé | C55: =_xlfn.XLOOKUP(VALUE(REPLACE(A55,3,4,7021)),'[1]Worksheet 1'!$A$2:$A$18880,'[1]Worksheet 1'!$C$2:$C$18880) -> 2.8 | D55: 2.8 | E55: 110 | F55: ks
A56: 15ffff203 | B56: Čelo pravé | C56: =_xlfn.XLOOKUP(VALUE(REPLACE(A56,3,4,7021)),'[1]Worksheet 1'!$A$2:$A$18880,'[1]Worksheet 1'!$C$2:$C$18880) -> 3.4 | D56: 3.4 | E56: 130 | F56: ks
A57: 15ffff204 | B57: Čelo pravé | C57: =_xlfn.XLOOKUP(VALUE(REPLACE(A57,3,4,7021)),'[1]Worksheet 1'!$A$2:$A$18880,'[1]Worksheet 1'!$C$2:$C$18880) -> 4.4 | D57: 4.4 | E57: 150 | F57: ks
A58: 15ffff211 | B58: Čelo ľavé | C58: =_xlfn.XLOOKUP(VALUE(REPLACE(A58,3,4,7021)),'[1]Worksheet 1'!$A$2:$A$18880,'[1]Worksheet 1'!$C$2:$C$18880) -> 2.3 | D58: 2.3 | E58: 90 | F58: ks
A59: 15ffff212 | B59: Čelo ľavé | C59: =_xlfn.XLOOKUP(VALUE(REPLACE(A59,3,4,7021)),'[1]Worksheet 1'!$A$2:$A$18880,'[1]Worksheet 1'!$C$2:$C$18880) -> 2.8 | D59: 2.8 | E59: 110 | F59: ks
A60: 15ffff213 | B60: Čelo ľavé | C60: =_xlfn.XLOOKUP(VALUE(REPLACE(A60,3,4,7021)),'[1]Worksheet 1'!$A$2:$A$18880,'[1]Worksheet 1'!$C$2:$C$18880) -> 3.4 | D60: 3.4 | E60: 130 | F60: ks
A61: 15ffff214 | B61: Čelo ľavé | C61: =_xlfn.XLOOKUP(VALUE(REPLACE(A61,3,4,7021)),'[1]Worksheet 1'!$A$2:$A$18880,'[1]Worksheet 1'!$C$2:$C$18880) -> 4.5 | D61: 4.5 | E61: 150 | F61: ks
A62: 15ffff301 | B62: Koleno 67° | C62: =_xlfn.XLOOKUP(VALUE(REPLACE(A62,3,4,7021)),'[1]Worksheet 1'!$A$2:$A$18880,'[1]Worksheet 1'!$C$2:$C$18880) -> 3.2 | D62: 3.2 | E62: 50 | F62: ks
A63: 15ffff302 | B63: Koleno 67° | C63: =_xlfn.XLOOKUP(VALUE(REPLACE(A63,3,4,7021)),'[1]Worksheet 1'!$A$2:$A$18880,'[1]Worksheet 1'!$C$2:$C$18880) -> 3.9 | D63: 3.9 | E63: 80 | F63: ks
A64: 15ffff303 | B64: Koleno 67° | C64: =_xlfn.XLOOKUP(VALUE(REPLACE(A64,3,4,7021)),'[1]Worksheet 1'!$A$2:$A$18880,'[1]Worksheet 1'!$C$2:$C$18880) -> 5 | D64: 5 | E64: 100 | F64: ks
A65: 15ffff311 | B65: Spojka rúr | C65: =_xlfn.XLOOKUP(VALUE(REPLACE(A65,3,4,7021)),'[1]Worksheet 1'!$A$2:$A$18880,'[1]Worksheet 1'!$C$2:$C$18880) -> 2.2 | D65: 2.2 | E65: 50 | F65: ks
A66: 15ffff312 | B66: Spojka rúr | C66: =_xlfn.XLOOKUP(VALUE(REPLACE(A66,3,4,7021)),'[1]Worksheet 1'!$A$2:$A$18880,'[1]Worksheet 1'!$C$2:$C$18880) -> 3.9 | D66: 3.9 | E66: 80 | F66: ks
A67: 15ffff313 | B67: Spojka rúr | C67: =_xlfn.XLOOKUP(VALUE(REPLACE(A67,3,4,7021)),'[1]Worksheet 1'!$A$2:$A$18880,'[1]Worksheet 1'!$C$2:$C$18880) -> 3.6 | D67: 3.6 | E67: 100 | F67: ks
A68: 15ffff321 | B68: Objímka (oceľ) | C68: =_xlfn.XLOOKUP(VALUE(REPLACE(A68,3,4,7021)),'[1]Worksheet 1'!$A$2:$A$18880,'[1]Worksheet 1'!$C$2:$C$18880) -> 3.2 | D68: 3.2 | E68: 50 | F68: ks
A69: 15ffff322 | B69: Objímka | C69: =_xlfn.XLOOKUP(VALUE(REPLACE(A69,3,4,7021)),'[1]Worksheet 1'!$A$2:$A$18880,'[1]Worksheet 1'!$C$2:$C$18880) -> 2.7 | D69: =C69*(1-$H$2/100) -> 2.7 | E69: 80 | F69: ks
A70: 15ffff323 | B70: Objímka | C70: =_xlfn.XLOOKUP(VALUE(REPLACE(A70,3,4,7021)),'[1]Worksheet 1'!$A$2:$A$18880,'[1]Worksheet 1'!$C$2:$C$18880) -> 2.6 | D70: 2.6 | E70: 100 | F70: ks
A71: 15ffff331 | B71: Odbočka 67° | C71: =_xlfn.XLOOKUP(VALUE(REPLACE(A71,3,4,7021)),'[1]Worksheet 1'!$A$2:$A$18880,'[1]Worksheet 1'!$C$2:$C$18880) -> 0 | D71: 0 | E71: 50 | F71: ks
A72: 15ffff332 | B72: Odbočka 67° | C72: =_xlfn.XLOOKUP(VALUE(REPLACE(A72,3,4,7021)),'[1]Worksheet 1'!$A$2:$A$18880,'[1]Worksheet 1'!$C$2:$C$18880) -> 0 | D72: 0 | E72: 80 | F72: ks
A73: 15ffff333 | B73: Odbočka 67° | C73: =_xlfn.XLOOKUP(VALUE(REPLACE(A73,3,4,7021)),'[1]Worksheet 1'!$A$2:$A$18880,'[1]Worksheet 1'!$C$2:$C$18880) -> 13.2 | D73: 13.2 | E73: 100 | F73: ks

Sheet KRONOPLAST-hlavice, priechodky
H1: Vaša zľava v %
H2: 0
H3: Ceny sú uvádzané bez DPH.
B7: Ventilačné hlavice ECOLINE a ROTOLINE | H7: Objednané množstvá
A8: PLU | B8: Model | C8: Cena | D8: Cena po zľave | E8: Priemer | G8: MJ | H8: 3009 | I8: 6020 | J8: 7016 | K8: 7024 | L8: 7036 | M8: 8004 | N8: 8017 | O8: 8019 | P8: 9005 | Q8: Obrázok
A9: 2000 | B9: Ecoline Premium | C9: 40.7 | D9: =C9*(1-$H$2/100) -> 40.7 | E9: 125 | G9: ks
A10: 2019 | B10: Ecoline Premium | C10: =230/4.4718 -> 51.43342726 | D10: =C10*(1-$H$2/100) -> 51.43342726 | E10: 150 | G10: ks
A11: 2052 | B11: Rotoline podlhovastý | C11: 68 | D11: 68 | E11: 150 | G11: ks
B12: Rotoline guľový | C12: 68 | D12: 68 | E12: 150 | G12: ks
A13: 2070 | B13: Rotoline-S - kohút | C13: 68 | D13: 68 | E13: 150 | G13: ks
B14: Strešné priechodky | H14: Objednané množstvá
B15: Model | C15: Cena | D15: Cena pre nás | G15: MJ | H15: 3009 | I15: 6020 | J15: 7016 | K15: 7024 | L15: 7036 | M15: 8004 | N15: 8017 | O15: 8019 | P15: 9005 | Q15: Obrázok
A16: 2130 | B16: Anténne priechodky | C16: 41.8 | D16: =C16*(1-$H$2/100) -> 41.8 | G16: ks
A17: 2100 | B17: Priechodky pre solárne systémy | C17: 41.8 | D17: =C17*(1-$H$2/100) -> 41.8 | G17: ks
B18: Podstavce pod hlavice a priechodky
B19: podstavec je v cene ventilačnej hlavice alebo strešnej priechodky, | C19: vyberte si podstavec podľa typu vašej strechy | H19: Objednané množstvá
B20: Model | C20: Poznámka | G20: MJ | H20: 3009 | I20: 6020 | J20: 7016 | K20: 7024 | L20: 7036 | M20: 8004 | N20: 8017 | O20: 8019 | P20: 9005 | Q20: Obrázok
B21: Podstavec PG | C21: pre strešné krytiny zo šindľa alebo lepenky | G21: ks
B22: Podstavec Profil PI | C22: šindeľ, lepenka, ploché plechové strešné krytiny a škridoplechy | G22: ks
B23: Podstavec Škridloplechy | C23: ploché plechové strešné krytiny ( A, B, F, G, H, E, M, N, C, W, X, R ) vyber typ -> | G23: ks
B24: Podstavec Profil T18 | C24: pre trapézové plechy s výškou 18 mm od väčšiny výrobcov | G24: ks
B25: Podstavec Profil T35 | C25: pre trapézové plechy s výškou 35 mm od väčšiny výrobcov | G25: ks
B26: Univerzálny podstavec U | C26: pre akékoľvek škridloplechy a trapézové plechy s výškou vlny do 35 mm | G26: ks
B27: Podstavec Betónové škridly | C27: ( A, B, C, D, J, E, I ) vyber typ -> | G27: ks
B28: Podstavec Keramické škridly | C28: ( A, B, C, D, E, F, G, H, I, J, KK ) vyber typ -> | G28: ks
B29: Hroty proti vtákom | H29: Objednané množstvá
B30: Model | C30: Cena | D30: Cena pre nás | E30: Dĺžka/výška | F30: Balenie | G30: MJ | H30: 1002 | I30: 6020 | J30: 7016 | K30: 8004 | L30: 8017 | M30: 9003 | N30: 9005 | Q30: Obrázok
A31: 2456 | B31: Hroty proti vtákom - typ 1 | C31: =437.5/4.4718 -> 97.83532358 | D31: =C31*(1-$J$2/100) -> 97.83532358 | E31: 500/40 mm | F31: 50 ks | G31: bal.
A32: 2463 | B32: Hroty proti vtákom - typ 2 | C32: =210/4.4718 -> 46.96095532 | D32: 46.96095532 | E32: 500/80 mm | F32: 30 ks | G32: bal.

Sheet KRONOPLAST-ostatné
H1: Vaša zľava v %
H2: 0
H3: Ceny sú uvádzané bez DPH.
B7: Spojovacie rúry
A8: PLU | B8: Model | C8: Cena | D8: Cena pre nás | E8: Priemer | F8: Dĺžka v cm | G8: MJ | H8: Objednané množstvá | I8: Obrázok
A9: 2221 | B9: Pripojovacia rúra Kronoflex | C9: =65/4.4718 -> 14.53553379 | D9: =C9*(1-$H$2/100) -> 14.53553379 | E9: 125 | F9: 50 | G9: ks
B10: Pripojovacia rúra Kronoflex | C10: =95/4.4718 -> 21.24424169 | D10: =C10*(1-$H$2/100) -> 21.24424169 | E10: 125 | F10: 100 | G10: ks
A11: 2222 | B11: Pripojovacia rúra Kronoflex | C11: =88/4.4718 -> 19.67887652 | D11: 19.67887652 | E11: 150 | F11: 50 | G11: ks
B12: Pripojovacia rúra Kronoflex | C12: =110/4.4718 -> 24.59859564 | D12: 24.59859564 | E12: 150 | F12: 100 | G12: ks
A13: 2230 | B13: Pripojovacia rúra Kronoflex Plus | C13: =65/4.4718 -> 14.53553379 | D13: 14.53553379 | E13: 125 | F13: 50 | G13: ks
B14: Pripojovacia rúra Kronoflex Plus | C14: =95/4.4718 -> 21.24424169 | D14: 21.24424169 | E14: 125 | F14: 100 | G14: ks
B15: Pripojovacia rúra Kronoflex Plus | C15: =88/4.4718 -> 19.67887652 | D15: 19.67887652 | E15: 150 | F15: 50 | G15: ks
B16: Pripojovacia rúra Kronoflex Plus | C16: =110/4.4718 -> 24.59859564 | D16: 24.59859564 | E16: 150 | F16: 100 | G16: ks
A17: 2210 | B17: Pripojovacia rúra Kronoflex Premium | C17: =72/4.4718 -> 16.10089897 | D17: 16.10089897 | E17: 125 | F17: 50 | G17: ks
B18: Pripojovacia rúra Kronoflex Premium | C18: =105/4.4718 -> 23.48047766 | D18: 23.48047766 | E18: 125 | F18: 100 | G18: ks
A19: 2220 | B19: Pripojovacia rúra Kronoflex Premium | C19: =94/4.4718 -> 21.0206181 | D19: 21.0206181 | E19: 150 | F19: 50 | G19: ks
B20: Pripojovacia rúra Kronoflex Premium | C20: =120/4.4718 -> 26.83483161 | D20: 26.83483161 | E20: 150 | F20: 100 | G20: ks
B21: Rúra Kronoflex s priechodom na systémovú vetraciu tvárnicu | C21: =200/4.4718 -> 44.72471935 | D21: 44.72471935 | F21: 50 | G21: ks
B22: Rúra Kronoflex s priechodom na systémovú vetraciu tvárnicu | C22: =230/4.4718 -> 51.43342726 | D22: 51.43342726 | F22: 100 | G22: ks
B23: Redukcie
B24: Model | C24: Cena | D24: Cena pre nás | E24: Priemer | G24: MJ | H24: Objednané množstvá | I24: Obrázok
A25: 2250 | B25: R-1 | C25: =13/4.4718 -> 2.907106758 | D25: =C25*(1-$H$2/100) -> 2.907106758 | E25: 150-110 | G25: ks
A26: 2251 | B26: R-2 | C26: =13/4.4718 -> 2.907106758 | D26: =C26*(1-$H$2/100) -> 2.907106758 | E26: 110-100 | G26: ks
A27: 2252 | B27: R-3 | C27: =13/4.4718 -> 2.907106758 | D27: 2.907106758 | E27: 110-100 redukcia pre ohnuté rúry | G27: ks
A28: 2253 | B28: R-4 | C28: =13/4.4718 -> 2.907106758 | D28: 2.907106758 | E28: 125-110 | G28: ks
A29: 2254 | B29: R-5 | C29: =13/4.4718 -> 2.907106758 | D29: 2.907106758 | E29: 150-125 | G29: ks
A30: 2256 | B30: Pyramída-1 | C30: =25/4.4718 -> 5.590589919 | D30: 5.590589919 | E30: 125-110-110-75 | G30: ks
B31: Ventilačné hlavice FLATLINE REGULAR
B32: Model | C32: Cena | D32: Cena pre nás | E32: Rozmer | G32: MJ | H32: Objednané množstvá | I32: Obrázok
B33: Flatline Regular nízky | C33: =110/4.4718 -> 24.59859564 | D33: =C33*(1-$H$2/100) -> 24.59859564 | E33: 120x170 | G33: ks
B34: Flatline Regular vysoký | C34: =110/4.4718 -> 24.59859564 | D34: =C34*(1-$H$2/100) -> 24.59859564 | E34: 120x170 | G34: ks
B35: Flatline Basic | C35: =110/4.4718 -> 24.59859564 | D35: 24.59859564 | E35: 150 | G35: ks
B36: Flatline Regular | C36: =48/4.4718 -> 10.73393264 | D36: 10.73393264 | E36: 167x118 | G36: ks
B37: Ventilačný prívod kruh/kruh | C37: =48/4.4718 -> 10.73393264 | D37: 10.73393264 | E37: 150 | G37: ks
B38: Ventilačný prívod kruh/štvorec | C38: =48/4.4718 -> 10.73393264 | D38: 10.73393264 | E38: 140x140 | G38: ks
B39: Ventilačné turbíny FLATLINE ROTO
B40: Model | C40: Cena | D40: Cena pre nás | E40: Priemer | G40: MJ | H40: Objednané množstvá | I40: Obrázok
B41: Ventilačná turbína Flatline ROTO | C41: =300/4.4718 -> 67.08707903 | D41: =C41*(1-$H$2/100) -> 67.08707903 | E41: 200 | F41: podlhovasté/guľaté | G41: ks
B42: Ventilačná turbína Flatline ROTO s podstavcom | C42: =350/4.4718 -> 78.26825887 | D42: =C42*(1-$H$2/100) -> 78.26825887 | E42: 200 | F42: podlhovasté/guľaté | G42: ks
B43: Ventilačná turbína Flatline ROTO s redukciou | C43: =350/4.4718 -> 78.26825887 | D43: 78.26825887 | E43: 160 | F43: podlhovasté/guľaté | G43: ks
B44: Podstavec PP | C44: =48/4.4718 -> 10.73393264 | D44: 10.73393264 | E44: 200 | G44: ks
B45: Kryt typu "kohút" Flatline ROTO-S | C45: =235/4.4718 -> 52.55154524 | D45: 52.55154524 | E45: 150 | G45: ks
B46: Kryt typu "kohút" Flatline ROTO-S s podstavcom | C46: =250/4.4718 -> 55.90589919 | D46: 55.90589919 | E46: 150 | G46: ks
B47: Kryt typu "kohút" Flatline ROTO-S s redukciou na 125 mm | C47: =250/4.4718 -> 55.90589919 | D47: 55.90589919 | E47: 125 | G47: ks
B48: Kryt typu "kohút" Flatline ROTO-S s redukciou na 110 mm | C48: =250/4.4718 -> 55.90589919 | D48: 55.90589919 | E48: 110 | G48: ks
B49: Kryt typu "kohút" Flatline ROTO-S s manžetou | C49: =250/4.4718 -> 55.90589919 | D49: 55.90589919 | E49: 150 | G49: ks
B50: Príslušenstvo
B51: Model | C51: Cena | D51: Cena pre nás | E51: Rozmer | G51: MJ | H51: Objednané množstvá | I51: Obrázok
A52: 2200 | B52: Priechod cez membránu | C52: =29/4.4718 -> 6.485084306 | D52: =C52*(1-$H$2/100) -> 6.485084306 | G52: ks
B53: Držiak hrebeňovej laty | C53: =4.5/4.4718 -> 1.006306185 | D53: =C53*(1-$H$2/100) -> 1.006306185 | G53: ks
B54: Medený drôt | C54: =290/4.4718 -> 64.85084306 | D54: 64.85084306 | E54: 150 bm | G54: ks
B55: Spätný ventil | C55: =48/4.4718 -> 10.73393264 | D55: 10.73393264 | E55: 125 | G55: ks
B56: Spätný ventil | C56: =48/4.4718 -> 10.73393264 | D56: 10.73393264 | E56: 150 | G56: ks
B57: Kondenzátor
B58: Model | C58: Cena | D58: Cena pre nás | E58: Priemer | G58: MJ | H58: Objednané množstvá | I58: Obrázok
A59: 2201 | B59: Kondenzátor | C59: =115/4.4718 -> 25.71671363 | D59: =C59*(1-$H$2/100) -> 25.71671363 | E59: 125 | G59: ks
A60: 2202 | B60: Kondenzátor | C60: =140/4.4718 -> 31.30730355 | D60: =C60*(1-$H$2/100) -> 31.30730355 | E60: 150 | G60: ks
A61: 2203 | B61: Kondenzátor s ventilátorom | C61: =480/4.4718 -> 107.3393264 | D61: 107.3393264 | E61: 125 | G61: ks
A62: 2204 | B62: Kondenzátor s ventilátorom | C62: =520/4.4718 -> 116.2842703 | D62: 116.2842703 | E62: 150 | G62: ks
A63: 2205 | B63: Kondenzátor so spätným ventilom | C63: =163/4.4718 -> 36.45064627 | D63: 36.45064627 | E63: 125 | G63: ks
A64: 2206 | B64: Kondenzátor so spätným ventilom | C64: =188/4.4718 -> 42.04123619 | D64: 42.04123619 | E64: 150 | G64: ks
A65: 2207 | B65: Kondenzátor s ventilátorom a spätným ventilom | C65: =528/4.4718 -> 118.0732591 | D65: 118.0732591 | E65: 125 | G65: ks
A66: 2208 | B66: Kondenzátor s ventilátorom a spätným ventilom | C66: =568/4.4718 -> 127.018203 | D66: 127.018203 | E66: 150 | G66: ks
B67: Dištančné podložky a vyrovnávacie kliny
B68: Model | C68: Cena | D68: Cena pre nás | E68: Rozmer | F68: Balenie | G68: MJ | H68: Objednané množstvá | I68: Obrázok
B69: Klin 1 | C69: =900/4.4718 -> 201.2612371 | D69: =C69*(1-$H$2/100) -> 201.2612371 | E69: 25x43x140 mm | F69: 500 ks | G69: bal.
B70: Klin 2 | C70: =1030/4.4718 -> 230.3323047 | D70: =C70*(1-$H$2/100) -> 230.3323047 | E70: 15x43x88 mm | F70: 1000 ks | G70: bal.
B71: Klin 3 | C71: =680/4.4718 -> 152.0640458 | D71: 152.0640458 | E71: 10x38x77 mm | F71: 1000 ks | G71: bal.
B72: Klin 4 | C72: =530/4.4718 -> 118.5205063 | D72: 118.5205063 | E72: 10x35x70 mm | F72: 1000 ks | G72: bal.
B73: Klin - mix L | C73: =188.7/4.4718 -> 42.19777271 | D73: 42.19777271 | E73: Klin 1 - 20 ks | F73: 140 ks | G73: bal.
B74: Klin - mix L | C74: =188.7/4.4718 -> 42.19777271 | D74: 42.19777271 | E74: Klin 2 - 40 ks | F74: 140 ks | G74: bal.
B75: Klin - mix L | C75: 42.19777271 | D75: 42.19777271 | E75: Klin 3 - 40 ks | F75: 140 ks | G75: bal.
B76: Klin - mix L | C76: 42.19777271 | D76: 42.19777271 | E76: Klin 4 - 40 ks | F76: 140 ks | G76: bal.
B77: Klin - 1-2 mix L | C77: =164.3/4.4718 -> 36.74135695 | D77: 36.74135695 | E77: Klin 1 - 30 ks | F77: 80 ks | G77: bal.
B78: Klin - 1-2 mix L | C78: =164.3/4.4718 -> 36.74135695 | D78: 36.74135695 | E78: Klin 2 - 50 ks | F78: 80 ks | G78: bal.
B79: Klin - 3-4 mix L | C79: =202.7/4.4718 -> 45.32850306 | D79: 45.32850306 | E79: Klin 3 - 100 ks | F79: 230 ks | G79: bal.
B80: Klin - 3-4 mix L | C80: =202.7/4.4718 -> 45.32850306 | D80: 45.32850306 | E80: Klin 4 - 130 ks | F80: 230 ks | G80: bal.
B81: Klin 1 L | C81: =134.7/4.4718 -> 30.12209848 | D81: 30.12209848 | F81: 45 ks | G81: bal.
B82: Klin 2 L | C82: =161.5/4.4718 -> 36.11521088 | D82: 36.11521088 | F82: 100 ks | G82: bal.
B83: Klin 2 S | C83: =134.55/4.4718 -> 30.08855494 | D83: 30.08855494 | F83: 70 ks | G83: bal.
B84: Klin 3 L | C84: =201.5/4.4718 -> 45.06015475 | D84: 45.06015475 | F84: 200 ks | G84: bal.
B85: Klin 3 S | C85: =128.5/4.4718 -> 28.73563218 | D85: 28.73563218 | F85: 100 ks | G85: bal.
B86: Klin 4 L | C86: =197.5/4.4718 -> 44.16566036 | D86: 44.16566036 | F86: 250 ks | G86: bal.
B87: Klin 4 S | C87: =144.75/4.4718 -> 32.36951563 | D87: 32.36951563 | F87: 150 ks | G87: bal.
A88: 2209 | B88: Dištančné podložky 02 | C88: =11/4.4718 -> 2.459859564 | D88: 2.459859564 | E88: 50x50x2 mm | F88: 50 ks | G88: bal.
A89: 2211 | B89: Dištančné podložky 03 | C89: =11.5/4.4718 -> 2.571671363 | D89: 2.571671363 | E89: 50x50x3 mm | F89: 50 ks | G89: bal.
B90: Dištančné podložky 04 | C90: =12.88/4.4718 -> 2.880271926 | D90: 2.880271926 | E90: 50x50x4 mm | F90: 50 ks | G90: bal.
A91: 2212 | B91: Dištančné podložky 05 | C91: =14.63/4.4718 -> 3.271613221 | D91: 3.271613221 | E91: 50x50x5 mm | F91: 50 ks | G91: bal.
A92: 2213 | B92: Dištančné podložky 08 | C92: =20.75/4.4718 -> 4.640189633 | D92: 4.640189633 | E92: 50x50x8 mm | F92: 50 ks | G92: bal.
B93: Dištančné podložky 10 | C93: =24/4.4718 -> 5.366966322 | D93: 5.366966322 | E93: 50x50x10 mm | F93: 50 ks | G93: bal.
B94: Dištančné podložky 15 | C94: =30.63/4.4718 -> 6.849590769 | D94: 6.849590769 | E94: 50x50x15 mm | F94: 50 ks | G94: bal.

Sheet BAUDER - asfaltové pásy
A1: 1.75 | I1: Vaša zľava v %
I2: 0
I3: Ceny sú uvádzané bez DPH.
B7: Vrchné pásy
A8: PLU | B8: Produkt | C8: Cena | D8: Cena po zľave | E8: Kód | F8: bal/pal | G8: Rozmer | H8: MJ | I8: Objednané množstvá
A9: =CONCATENATE(2,E9) -> 217732000 | B9: PYE PV 200 S5 EN | C9: =_xlfn.XLOOKUP(E9,'[2]ASFALTOVÉ PÁSY '!$C$7:$C$78,'[2]ASFALTOVÉ PÁSY '!$G$7:$G$78,"-")*$A$1 -> 9.415 | D9: =C9*(1-$I$2/100) -> 9.415 | E9: 17732000 | F9: 5/120 | G9: 5,2 mm | H9: m2
A10: =CONCATENATE(2,E10) -> 217652000 | B10: PYE PV 200 S4 EN natursch. | C10: =_xlfn.XLOOKUP(E10,'[2]ASFALTOVÉ PÁSY '!$C$7:$C$78,'[2]ASFALTOVÉ PÁSY '!$G$7:$G$78,"-")*$A$1 -> 8.05 | D10: =C10*(1-$I$2/100) -> 8.05 | E10: 17652000 | F10: 7,5/150 | G10: 4,2 mm | H10: m2
A11: =CONCATENATE(2,E11) -> 219380000 | B11: Bauder FLEX WF 5 | C11: =_xlfn.XLOOKUP(E11,'[2]ASFALTOVÉ PÁSY '!$C$7:$C$78,'[2]ASFALTOVÉ PÁSY '!$G$7:$G$78,"-")*$A$1 -> 10.99 | D11: 10.99 | E11: 19380000 | F11: 5/120 | G11: 5,2 mm | H11: m2
A12: 219370000 | B12: Bauder FLEX WF 4 | C12: =_xlfn.XLOOKUP(E12,'[2]ASFALTOVÉ PÁSY '!$C$7:$C$78,'[2]ASFALTOVÉ PÁSY '!$G$7:$G$78,"-")*$A$1 -> 9.17 | D12: 9.17 | E12: 19370000 | F12: 8/160 | G12: 4 mm | H12: m2
A13: 219320000 | B13: Bauder EP 4 ard | C13: =_xlfn.XLOOKUP(E13,'[2]ASFALTOVÉ PÁSY '!$C$7:$C$78,'[2]ASFALTOVÉ PÁSY '!$G$7:$G$78,"-")*$A$1 -> 7.385 | D13: 7.385 | E13: 19320000 | F13: 8/160 | G13: 4 mm | H13: m2
A14: 219410000 | B14: Bauder EP 5 ard | C14: =_xlfn.XLOOKUP(E14,'[2]ASFALTOVÉ PÁSY '!$C$7:$C$78,'[2]ASFALTOVÉ PÁSY '!$G$7:$G$78,"-")*$A$1 -> 9.24 | D14: 9.24 | E14: 19410000 | F14: 8/120 | G14: 5 mm | H14: m2
A15: 219350000 | B15: Bauder EP 4 WF ard | C15: =_xlfn.XLOOKUP(E15,'[2]ASFALTOVÉ PÁSY '!$C$7:$C$78,'[2]ASFALTOVÉ PÁSY '!$G$7:$G$78,"-")*$A$1 -> 7.805 | D15: 7.805 | E15: 19350000 | F15: 8/160 | G15: 4 mm | H15: m2
A16: 217214000 | B16: Baukubit K5K grauschiefer | C16: =_xlfn.XLOOKUP(E16,'[2]ASFALTOVÉ PÁSY '!$C$7:$C$78,'[2]ASFALTOVÉ PÁSY '!$G$7:$G$78,"-")*$A$1 -> 11.865 | D16: 11.865 | E16: 17214000 | F16: 5/120 | G16: 5,2 mm | H16: m2
A17: 217183000 | B17: Baukubit K5K grafitschw. | C17: =_xlfn.XLOOKUP(E17,'[2]ASFALTOVÉ PÁSY '!$C$7:$C$78,'[2]ASFALTOVÉ PÁSY '!$G$7:$G$78,"-")*$A$1 -> 12.425 | D17: 12.425 | E17: 17183000 | F17: 5/120 | G17: 5,2 mm | H17: m2
A18: 217220000 | B18: Baukubit K5K rottsch. | C18: =_xlfn.XLOOKUP(E18,'[2]ASFALTOVÉ PÁSY '!$C$7:$C$78,'[2]ASFALTOVÉ PÁSY '!$G$7:$G$78,"-")*$A$1 -> 11.865 | D18: 11.865 | E18: 17220000 | F18: 5/120 | G18: 5,2 mm | H18: m2
A19: 217190000 | B19: Baukubit K5K herbstbraun | C19: =_xlfn.XLOOKUP(E19,'[2]ASFALTOVÉ PÁSY '!$C$7:$C$78,'[2]ASFALTOVÉ PÁSY '!$G$7:$G$78,"-")*$A$1 -> 12.425 | D19: 12.425 | E19: 17190000 | F19: 5/120 | G19: 5,2 mm | H19: m2
A20: 217170000 | B20: Bauder KARAT grunweisssch. | C20: =_xlfn.XLOOKUP(E20,'[2]ASFALTOVÉ PÁSY '!$C$7:$C$78,'[2]ASFALTOVÉ PÁSY '!$G$7:$G$78,"-")*$A$1 -> 15.26 | D20: 15.26 | E20: 17170000 | F20: 5/120 | G20: 5,2 mm | H20: m2
A21: 217163000 | B21: Bauder KARAT graphitschw. | C21: =_xlfn.XLOOKUP(E21,'[2]ASFALTOVÉ PÁSY '!$C$7:$C$78,'[2]ASFALTOVÉ PÁSY '!$G$7:$G$78,"-")*$A$1 -> 15.225 | D21: 15.225 | E21: 17163000 | F21: 5/120 | G21: 5,2 mm | H21: m2
A22: 217324000 | B22: Bauder PRO F grauschiefer | C22: =_xlfn.XLOOKUP(E22,'[2]ASFALTOVÉ PÁSY '!$C$7:$C$78,'[2]ASFALTOVÉ PÁSY '!$G$7:$G$78,"-")*$A$1 -> 13.16 | D22: 13.16 | E22: 17324000 | F22: 5,5/132 | G22: 5,2 mm | H22: m2
A23: 217330000 | B23: Bauder PRO F grunweisssch. | C23: =_xlfn.XLOOKUP(E23,'[2]ASFALTOVÉ PÁSY '!$C$7:$C$78,'[2]ASFALTOVÉ PÁSY '!$G$7:$G$78,"-")*$A$1 -> 13.51 | D23: 13.51 | E23: 17330000 | F23: 5,5/132 | G23: 5,2 mm | H23: m2
A24: 217150000 | B24: Bauder SMARAGD | C24: =_xlfn.XLOOKUP(E24,'[2]ASFALTOVÉ PÁSY '!$C$7:$C$78,'[2]ASFALTOVÉ PÁSY '!$G$7:$G$78,"-")*$A$1 -> 15.89 | D24: 15.89 | E24: 17150000 | F24: 5/120 | G24: 5,2 mm | H24: m2
A25: 217240000 | B25: Bauder PLANT E | C25: =_xlfn.XLOOKUP(E25,'[2]ASFALTOVÉ PÁSY '!$C$7:$C$78,'[2]ASFALTOVÉ PÁSY '!$G$7:$G$78,"-")*$A$1 -> 12.495 | D25: 12.495 | E25: 17240000 | F25: 5/120 | G25: 5,2 mm | H25: m2
A26: 216354000 | B26: BauderTHERM SL500, sivá bridl. | C26: =_xlfn.XLOOKUP(E26,'[2]ASFALTOVÉ PÁSY '!$C$7:$C$78,'[2]ASFALTOVÉ PÁSY '!$G$7:$G$78,"-")*$A$1 -> 10.885 | D26: 10.885 | E26: 16354000 | F26: 5/120 | G26: 5,2 mm | H26: m2
A27: 218400007 | B27: Bauder PP 4 ARD | C27: =_xlfn.XLOOKUP(E27,'[2]ASFALTOVÉ PÁSY '!$C$7:$C$78,'[2]ASFALTOVÉ PÁSY '!$G$7:$G$78,"-")*$A$1 -> 7.0875 | D27: 7.0875 | E27: 18400007 | F27: 8/160 | G27: 4 mm | H27: m2
A28: =CONCATENATE(2,E28) -> 216184000 | B28: Bauder KSO SN sivá bridlica | C28: =_xlfn.XLOOKUP(E28,'[2]ASFALTOVÉ PÁSY '!$C$7:$C$78,'[2]ASFALTOVÉ PÁSY '!$G$7:$G$78,"-")*$A$1 -> 10.255 | D28: 10.255 | E28: 16184000 | F28: 5/140 | G28: 4 mm | H28: m2
B29: Spodné pásy
B30: Produkt | C30: Cena | D30: Cena po zľave | E30: Kód | F30: bal/pal | G30: Rozmer | H30: MJ | I30: Objednané množstvá
A31: =CONCATENATE(2,E31) -> 217540000 | B31: Bauder PYE PV 200 S4 mineral | C31: =_xlfn.XLOOKUP(E31,'[2]ASFALTOVÉ PÁSY '!$C$7:$C$78,'[2]ASFALTOVÉ PÁSY '!$G$7:$G$78,"-")*$A$1 -> 8.05 | D31: =C31*(1-$I$2/100) -> 8.05 | E31: 17540000 | F31: 10/150 | G31: 4 mm | H31: m2
A32: =CONCATENATE(2,E32) -> 217450000 | B32: Bauder PYE G 200 S4 | C32: =_xlfn.XLOOKUP(E32,'[2]ASFALTOVÉ PÁSY '!$C$7:$C$78,'[2]ASFALTOVÉ PÁSY '!$G$7:$G$78,"-")*$A$1 -> 7.91 | D32: =C32*(1-$I$2/100) -> 7.91 | E32: 17450000 | F32: 5/150 | G32: 4 mm | H32: m2
A33: 216060000 | B33: BauderTEC KSA DUO | C33: =_xlfn.XLOOKUP(E33,'[2]ASFALTOVÉ PÁSY '!$C$7:$C$78,'[2]ASFALTOVÉ PÁSY '!$G$7:$G$78,"-")*$A$1 -> 8.575 | D33: 8.575 | E33: 16060000 | F33: 7,5/180 | G33: 3 mm | H33: m2
A34: 215990000 | B34: BauderTEC KSA | C34: =_xlfn.XLOOKUP(E34,'[2]ASFALTOVÉ PÁSY '!$C$7:$C$78,'[2]ASFALTOVÉ PÁSY '!$G$7:$G$78,"-")*$A$1 -> 8.365 | D34: 8.365 | E34: 15990000 | F34: 10/200 | G34: 3 mm | H34: m2
A35: 219310000 | B35: Bauder EP 4 flam | C35: =_xlfn.XLOOKUP(E35,'[2]ASFALTOVÉ PÁSY '!$C$7:$C$78,'[2]ASFALTOVÉ PÁSY '!$G$7:$G$78,"-")*$A$1 -> 7.735 | D35: 7.735 | E35: 19310000 | F35: 8/160 | G35: 4 mm | H35: m2
A36: 216250000 | B36: Bauder SPRINT DUO | C36: =_xlfn.XLOOKUP(E36,'[2]ASFALTOVÉ PÁSY '!$C$7:$C$78,'[2]ASFALTOVÉ PÁSY '!$G$7:$G$78,"-")*$A$1 -> 7.175 | D36: 7.175 | E36: 16250000 | F36: 15/? | G36: 2 mm | H36: m2
A37: 216170000 | B37: BauderTEC ELWS DUO | C37: =_xlfn.XLOOKUP(E37,'[2]ASFALTOVÉ PÁSY '!$C$7:$C$78,'[2]ASFALTOVÉ PÁSY '!$G$7:$G$78,"-")*$A$1 -> 9.205 | D37: 9.205 | E37: 16170000 | F37: 7,5/180 | G37: 3 mm | H37: m2
A38: 216330000 | B38: BauderTHERM UL 50 | C38: =_xlfn.XLOOKUP(E38,'[2]ASFALTOVÉ PÁSY '!$C$7:$C$78,'[2]ASFALTOVÉ PÁSY '!$G$7:$G$78,"-")*$A$1 -> 10.325 | D38: 10.325 | E38: 16330000 | F38: 7,5/150 | G38: 4,2 mm | H38: m2
A39: 218400005 | B39: Bauder PP 4 t | C39: =_xlfn.XLOOKUP(E39,'[2]ASFALTOVÉ PÁSY '!$C$7:$C$78,'[2]ASFALTOVÉ PÁSY '!$G$7:$G$78,"-")*$A$1 -> 7.245 | D39: 7.245 | E39: 18400005 | G39: 4 mm
B40: Parozábrana
B41: Produkt | C41: Cena | D41: Cena po zľave | E41: Kód | F41: bal/pal | G41: Rozmer | H41: MJ | I41: Objednané množstvá
A42: =CONCATENATE(2,E42) -> 216010000 | B42: BauderTEC KSD | C42: =_xlfn.XLOOKUP(E42,'[2]ASFALTOVÉ PÁSY '!$C$7:$C$78,'[2]ASFALTOVÉ PÁSY '!$G$7:$G$78,"-")*$A$1 -> 6.51 | D42: =C42*(1-$I$2/100) -> 6.51 | E42: 16010000 | F42: 15/360 | G42: 1,5 mm | H42: m2
A43: 216280000 | B43: BauderTEC KSD minerál posyp | C43: =_xlfn.XLOOKUP(E43,'[2]ASFALTOVÉ PÁSY '!$C$7:$C$78,'[2]ASFALTOVÉ PÁSY '!$G$7:$G$78,"-")*$A$1 -> 8.4875 | D43: =C43*(1-$I$2/100) -> 8.4875 | E43: 16280000 | F43: 10,8/ | G43: 2,5 mm | H43: m2
A44: 216610000 | B44: BauderTHERM DS1 DUO | C44: =_xlfn.XLOOKUP(E44,'[2]ASFALTOVÉ PÁSY '!$C$7:$C$78,'[2]ASFALTOVÉ PÁSY '!$G$7:$G$78,"-")*$A$1 -> 9.695 | D44: 9.695 | E44: 16610000 | F44: 8,1/162 | G44: 4 mm | H44: m2
A45: 216300000 | B45: BauderTHERM DS2 | C45: =_xlfn.XLOOKUP(E45,'[2]ASFALTOVÉ PÁSY '!$C$7:$C$78,'[2]ASFALTOVÉ PÁSY '!$G$7:$G$78,"-")*$A$1 -> 8.61 | D45: 8.61 | E45: 16300000 | F45: 8,1/162 | G45: 4 mm | H45: m2
A46: 213290000 | B46: Bauder Super AL-E | C46: =_xlfn.XLOOKUP(E46,'[2]ASFALTOVÉ PÁSY '!$C$7:$C$78,'[2]ASFALTOVÉ PÁSY '!$G$7:$G$78,"-")*$A$1 -> 7.035 | D46: 7.035 | E46: 13290000 | F46: 7,5/180 | G46: 3,5 mm | H46: m2
A47: 213330000 | B47: Bauder Super AL-E PLUS, 4 mm | C47: =_xlfn.XLOOKUP(E47,'[2]ASFALTOVÉ PÁSY '!$C$7:$C$78,'[2]ASFALTOVÉ PÁSY '!$G$7:$G$78,"-")*$A$1 -> 8.33 | D47: 8.33 | E47: 13330000 | F47: 5/150 | G47: 3,7 mm | H47: m2
A48: 215970000 | B48: BauderTEC DBR | C48: =_xlfn.XLOOKUP(E48,'[2]ASFALTOVÉ PÁSY '!$C$7:$C$78,'[2]ASFALTOVÉ PÁSY '!$G$7:$G$78,"-")*$A$1 -> 5.46 | D48: 5.46 | E48: 15970000 | F48: 75/1500 | G48: 0,4 mm | H48: m2
A49: 213270000 | B49: Bauder FLEX DNA | C49: =_xlfn.XLOOKUP(E49,'[2]ASFALTOVÉ PÁSY '!$C$7:$C$78,'[2]ASFALTOVÉ PÁSY '!$G$7:$G$78,"-")*$A$1 -> 9.975 | D49: 9.975 | E49: 13270000 | F49: 5/150 | G49: 4 mm | H49: m2
A50: 213280000 | B50: Bauder E-VA 35 | C50: =_xlfn.XLOOKUP(E50,'[2]ASFALTOVÉ PÁSY '!$C$7:$C$78,'[2]ASFALTOVÉ PÁSY '!$G$7:$G$78,"-")*$A$1 -> 6.545 | D50: 6.545 | E50: 13280000 | F50: 8/192 | H50: m2
B51: Oxid
B52: Produkt | C52: Cena | D52: Cena po zľave | E52: Kód | F52: bal/pal | G52: Rozmer | H52: MJ | I52: Objednané množstvá
A53: =CONCATENATE(2,E53) -> 214130000 | B53: Bauder V60 S35 | C53: =_xlfn.XLOOKUP(E53,'[2]ASFALTOVÉ PÁSY '!$C$7:$C$78,'[2]ASFALTOVÉ PÁSY '!$G$7:$G$78,"-")*$A$1 -> 3.955 | D53: =C53*(1-$I$2/100) -> 3.955 | E53: 14130000 | F53: 5/150 | H53: m2
A54: 213310000 | B54: Bauder VA 4 | C54: =_xlfn.XLOOKUP(E54,'[2]ASFALTOVÉ PÁSY '!$C$7:$C$78,'[2]ASFALTOVÉ PÁSY '!$G$7:$G$78,"-")*$A$1 -> 6.44 | D54: =C54*(1-$I$2/100) -> 6.44 | E54: 13310000 | F54: 5/150 | H54: m2
A55: 213140000 | B55: G 200 S4 | C55: =_xlfn.XLOOKUP(E55,'[2]ASFALTOVÉ PÁSY '!$C$7:$C$78,'[2]ASFALTOVÉ PÁSY '!$G$7:$G$78,"-")*$A$1 -> 6.755 | D55: 6.755 | E55: 13140000 | F55: 5/150 | H55: m2
B56: Iné
B57: Produkt | C57: Cena | D57: Cena po zľave | E57: Kód | F57: bal | G57: Rozmer | H57: MJ | I57: Objednané množstvá
A58: =CONCATENATE(2,E58) -> 275040015 | B58: Burkolit PLUS | C58: =_xlfn.XLOOKUP(E58,'[2]ASFALTOVÉ PÁSY '!$C$7:$C$78,'[2]ASFALTOVÉ PÁSY '!$G$7:$G$78,"-")*$A$1 -> 120.925 | D58: =C58*(1-$I$2/100) -> 120.925 | E58: 75040015 | F58: 30 litrov/balenie | H58: bal.
A59: 275360000 | B59: Bauder Schaumkleber | C59: =_xlfn.XLOOKUP(E59,'[2]ASFALTOVÉ PÁSY '!$C$7:$C$78,'[2]ASFALTOVÉ PÁSY '!$G$7:$G$78,"-")*$A$1 -> 11.795 | D59: =C59*(1-$I$2/100) -> 11.795 | E59: 75360000 | F59: 12 dóz/balenie | H59: ks

Sheet BAUDER - PVC,TPO fólie
A1: 1.75 | H1: Vaša zľava v %
H2: 0
H3: Ceny sú uvádzané bez DPH.
B7: PVC fólie
A8: PLU | B8: Produkt | C8: Cena | D8: Cena po zľave | E8: Kód | F8: MJ | G8: Rozmer, balenie | H8: Objednané množstvá
A9: =CONCATENATE(2,E9) -> 261150000 | B9: Thermofol U 15 | C9: =_xlfn.XLOOKUP(E9,'[2]PVC TPO FÓLIE'!$C$7:$C$71,'[2]PVC TPO FÓLIE'!$D$7:$D$71,"-")*$A$1 -> 9.345 | D9: =C9*(1-$H$2/100) -> 9.345 | E9: 61150000 | F9: m2 | G9: (hr.:1,5mm; 30m2/bal.; 480m2/pal.)
A10: =CONCATENATE(2,E10) -> 261180000 | B10: Thermofol U 18 | C10: =_xlfn.XLOOKUP(E10,'[2]PVC TPO FÓLIE'!$C$7:$C$71,'[2]PVC TPO FÓLIE'!$D$7:$D$71,"-")*$A$1 -> 11.025 | D10: =C10*(1-$H$2/100) -> 11.025 | E10: 61180000 | F10: m2 | G10: (hr.:1,8mm; 30m2/bal.; 480m2/pal.)
A11: 261200000 | B11: Thermofol U 20 | C11: =_xlfn.XLOOKUP(E11,'[2]PVC TPO FÓLIE'!$C$7:$C$71,'[2]PVC TPO FÓLIE'!$D$7:$D$71,"-")*$A$1 -> 12.88 | D11: 12.88 | E11: 61200000 | F11: m2 | G11: (hr.:2,0mm; 30m2/bal.; 360m2/pal.)
B12: Thermofol U 15 antracit | C12: =_xlfn.XLOOKUP(E12,'[2]PVC TPO FÓLIE'!$C$7:$C$71,'[2]PVC TPO FÓLIE'!$D$7:$D$71,"-")*$A$1 -> 10.115 | D12: 10.115 | E12: 61154000 | F12: m2 | G12: (hr.:1,5mm; 30m2/bal.; 480m2/pal.)
B13: Thermofol U 18 antracit | C13: =_xlfn.XLOOKUP(E13,'[2]PVC TPO FÓLIE'!$C$7:$C$71,'[2]PVC TPO FÓLIE'!$D$7:$D$71,"-")*$A$1 -> 11.935 | D13: 11.935 | E13: 61184000 | F13: m2 | G13: (hr.:1,8mm; 30m2/bal.; 480m2/pal.)
B14: Thermofol U 20 antracit | C14: =_xlfn.XLOOKUP(E14,'[2]PVC TPO FÓLIE'!$C$7:$C$71,'[2]PVC TPO FÓLIE'!$D$7:$D$71,"-")*$A$1 -> 13.825 | D14: 13.825 | E14: 61204000 | F14: m2 | G14: (hr.:2,0mm; 30m2/bal.; 360m2/pal.)
A15: 263150000 | B15: Thermofol M15 | C15: =_xlfn.XLOOKUP(E15,'[2]PVC TPO FÓLIE'!$C$7:$C$71,'[2]PVC TPO FÓLIE'!$D$7:$D$71,"-")*$A$1 -> 9.17 | D15: 9.17 | E15: 63150000 | F15: m2 | G15: (hr.:1,5mm; 30m2/bal.; 480m2/pal.)
A16: 263180000 | B16: Thermofol M18 | C16: =_xlfn.XLOOKUP(E16,'[2]PVC TPO FÓLIE'!$C$7:$C$71,'[2]PVC TPO FÓLIE'!$D$7:$D$71,"-")*$A$1 -> 10.85 | D16: 10.85 | E16: 63180000 | F16: m2 | G16: (hr.:1,8mm; 30m2/bal.; 480m2/pal.)
A17: 263200000 | B17: Thermofol M20 | C17: =_xlfn.XLOOKUP(E17,'[2]PVC TPO FÓLIE'!$C$7:$C$71,'[2]PVC TPO FÓLIE'!$D$7:$D$71,"-")*$A$1 -> 12.705 | D17: 12.705 | E17: 63200000 | F17: m2 | G17: (hr.:2,0mm; 30m2/bal.; 360m2/pal.)
A18: 262150000 | B18: Thermofol U 15 V | C18: =_xlfn.XLOOKUP(E18,'[2]PVC TPO FÓLIE'!$C$7:$C$71,'[2]PVC TPO FÓLIE'!$D$7:$D$71,"-")*$A$1 -> 14.7 | D18: 14.7 | E18: 62150000 | F18: m2
A19: 261010150 | B19: Thermofol D18 | C19: =_xlfn.XLOOKUP(E19,'[2]PVC TPO FÓLIE'!$C$7:$C$71,'[2]PVC TPO FÓLIE'!$D$7:$D$71,"-")*$A$1 -> 15.295 | D19: 15.295 | E19: 61010150 | F19: m2 | G19: (hr.: 1,8 mm; 15 m2/bal)
B20: Thermofol D18 antracit | C20: =_xlfn.XLOOKUP(E20,'[2]PVC TPO FÓLIE'!$C$7:$C$71,'[2]PVC TPO FÓLIE'!$D$7:$D$71,"-")*$A$1 -> 15.575 | D20: 15.575 | E20: 61014150 | F20: m2 | G20: (hr.: 1,8 mm; 15 m2/bal)
A21: 260100012 | B21: BauderPVC VBL 12 (PVC plech svetlosivý) | C21: =_xlfn.XLOOKUP(E21,'[2]PVC TPO FÓLIE'!$C$7:$C$71,'[2]PVC TPO FÓLIE'!$D$7:$D$71,"-")*$A$1 -> 27.72 | D21: 27.72 | E21: 60100012 | F21: m2 | G21: (tab.: 2m x1m, 60 m2/pal) 0,6 mm plech, 0,6 mm poplast.
A22: 260100019 | B22: BauderPVC VBL 14 (PVC plech antracit) | C22: =_xlfn.XLOOKUP(E22,'[2]PVC TPO FÓLIE'!$C$7:$C$71,'[2]PVC TPO FÓLIE'!$D$7:$D$71,"-")*$A$1 -> 28.35 | D22: 28.35 | E22: 60100019 | F22: m2 | G22: (tab.: 2m x1m, 60 m2/pal) 0,6 mm plech, 0,8 mm poplast.
A23: 260010000 | B23: BauderPVC IE (Vnútorný roh 90° svetlosivý) | C23: =_xlfn.XLOOKUP(E23,'[2]PVC TPO FÓLIE'!$C$7:$C$71,'[2]PVC TPO FÓLIE'!$D$7:$D$71,"-")*$A$1 -> 2.0825 | D23: 2.0825 | E23: 60010000 | F23: ks | G23: bal. 25 ks
A24: 260020000 | B24: BauderPVC AE (Vonkajší roh 90° svetlosivý) | C24: =_xlfn.XLOOKUP(E24,'[2]PVC TPO FÓLIE'!$C$7:$C$71,'[2]PVC TPO FÓLIE'!$D$7:$D$71,"-")*$A$1 -> 2.31 | D24: 2.31 | E24: 60020000 | F24: ks | G24: bal. 25 ks
A25: 260010001 | B25: BauderPVC UE (Univerzálny roh/vlnovec svetlosivý) | C25: =_xlfn.XLOOKUP(E25,'[2]PVC TPO FÓLIE'!$C$7:$C$71,'[2]PVC TPO FÓLIE'!$D$7:$D$71,"-")*$A$1 -> 2.9225 | D25: 2.9225 | E25: 60010001 | F25: ks | G25: bal. 25 ks
B26: BauderPVC IE (Vnútorný roh 90° antracit) | C26: =_xlfn.XLOOKUP(E26,'[2]PVC TPO FÓLIE'!$C$7:$C$71,'[2]PVC TPO FÓLIE'!$D$7:$D$71,"-")*$A$1 -> 2.0825 | D26: 2.0825 | E26: 60014000 | F26: ks | G26: bal. 25 ks
B27: BauderPVC AE (Vonkajší roh 90° antracit) | C27: =_xlfn.XLOOKUP(E27,'[2]PVC TPO FÓLIE'!$C$7:$C$71,'[2]PVC TPO FÓLIE'!$D$7:$D$71,"-")*$A$1 -> 2.31 | D27: 2.31 | E27: 60024000 | F27: ks | G27: bal. 25 ks
B28: BauderPVC UE (Univerzálny roh/vlnovec antracit( | C28: =_xlfn.XLOOKUP(E28,'[2]PVC TPO FÓLIE'!$C$7:$C$71,'[2]PVC TPO FÓLIE'!$D$7:$D$71,"-")*$A$1 -> 2.9225 | D28: 2.9225 | E28: 60014001 | F28: ks | G28: bal. 25 ks
A29: 260500005 | B29: BauderPVC RG - PVC čistič 5 litrov balenie | C29: =_xlfn.XLOOKUP(E29,'[2]PVC TPO FÓLIE'!$C$7:$C$71,'[2]PVC TPO FÓLIE'!$D$7:$D$71,"-")*$A$1 -> 8.015 | D29: 8.015 | E29: 60500005 | F29: l | G29: 5 liter/balenie
B30: BauderPVC RG - PVC čistič 1 liter balenie (6 ks v kartóne) | C30: =_xlfn.XLOOKUP(E30,'[2]PVC TPO FÓLIE'!$C$7:$C$71,'[2]PVC TPO FÓLIE'!$D$7:$D$71,"-")*$A$1 -> 15.05 | D30: 15.05 | E30: 60500001 | F30: l | G30: balenie: 6x1 liter
A31: 260560001 | B31: BauderPVC NSM zálievka spojov 1 liter (6 ks v kartóne) | C31: =_xlfn.XLOOKUP(E31,'[2]PVC TPO FÓLIE'!$C$7:$C$71,'[2]PVC TPO FÓLIE'!$D$7:$D$71,"-")*$A$1 -> 22.505 | D31: 22.505 | E31: 60560001 | F31: l | G31: 1 liter/balenie
A32: 269001310 | B32: BauderSYN SVL-WB 300 | C32: =_xlfn.XLOOKUP(E32,'[2]PVC TPO FÓLIE'!$C$7:$C$71,'[2]PVC TPO FÓLIE'!$D$7:$D$71,"-")*$A$1 -> 2.03 | D32: 2.03 | E32: 69001310 | F32: m2
A33: 260980000 | B33: BauderSYN GV 120 | C33: =_xlfn.XLOOKUP(E33,'[2]PVC TPO FÓLIE'!$C$7:$C$71,'[2]PVC TPO FÓLIE'!$D$7:$D$71,"-")*$A$1 -> 1.225 | D33: 1.225 | E33: 60980000 | F33: m2
B34: TPO/FPO fólie
B35: Produkt | C35: Cena | D35: Cena po zľave | E35: Kód | F35: MJ | G35: Rozmer, balenie | H35: Objednané množstvá
A36: =CONCATENATE(2,E36) -> 267158200 | B36: Thermoplex P15 biela | C36: =_xlfn.XLOOKUP(E36,'[2]PVC TPO FÓLIE'!$C$7:$C$71,'[2]PVC TPO FÓLIE'!$D$7:$D$71,"-")*$A$1 -> 10.115 | D36: =C36*(1-$H$2/100) -> 10.115 | E36: 67158200 | F36: m2 | G36: (hr.:1,5mm; 40m2/bal.; 840 m2/pal.)
B37: Thermoplex P18 biela | C37: =_xlfn.XLOOKUP(E37,'[2]PVC TPO FÓLIE'!$C$7:$C$71,'[2]PVC TPO FÓLIE'!$D$7:$D$71,"-")*$A$1 -> 11.55 | D37: 11.55 | E37: 67188200 | F37: m2 | G37: (hr.:1,8mm; 30m2/bal.; 630m2/pal.)
B38: Thermoplex P20 biela | C38: =_xlfn.XLOOKUP(E38,'[2]PVC TPO FÓLIE'!$C$7:$C$71,'[2]PVC TPO FÓLIE'!$D$7:$D$71,"-")*$A$1 -> 12.6 | D38: 12.6 | E38: 67208200 | F38: m2 | G38: (hr.:2,0mm; 30m2/bal.; 630m2/pal.)
A39: =CONCATENATE(2,E39) -> 266150150 | B39: Thermoplan T 15 Perlovobiela | C39: =_xlfn.XLOOKUP(E39,'[2]PVC TPO FÓLIE'!$C$7:$C$71,'[2]PVC TPO FÓLIE'!$D$7:$D$71,"-")*$A$1 -> 11.865 | D39: =C39*(1-$H$2/100) -> 11.865 | E39: 66150150 | F39: m2 | G39: (hr.:1,5mm; 30m2/bal.; 480m2/pal.)
A40: 266151150 | B40: Thermoplan T 15 šedá | C40: =_xlfn.XLOOKUP(E40,'[2]PVC TPO FÓLIE'!$C$7:$C$71,'[2]PVC TPO FÓLIE'!$D$7:$D$71,"-")*$A$1 -> 11.865 | D40: 11.865 | E40: 66151150 | F40: m2 | G40: (hr.:1,5mm; 30m2/bal.; 480m2/pal.)
A41: 266180150 | B41: Thermoplan T 18 Perlovobiela | C41: =_xlfn.XLOOKUP(E41,'[2]PVC TPO FÓLIE'!$C$7:$C$71,'[2]PVC TPO FÓLIE'!$D$7:$D$71,"-")*$A$1 -> 13.7375 | D41: 13.7375 | E41: 66180150 | F41: m2 | G41: (hr.:1,8mm; 30m2/bal.; 480m2/pal.)
A42: 266181150 | B42: Thermoplan T 18 šedá | C42: =_xlfn.XLOOKUP(E42,'[2]PVC TPO FÓLIE'!$C$7:$C$71,'[2]PVC TPO FÓLIE'!$D$7:$D$71,"-")*$A$1 -> 13.7375 | D42: 13.7375 | E42: 66181150 | F42: m2 | G42: (hr.:1,8mm; 30m2/bal.; 480m2/pal.)
A43: 266200150 | B43: Thermoplan T 20 Perlovobiela | C43: =_xlfn.XLOOKUP(E43,'[2]PVC TPO FÓLIE'!$C$7:$C$71,'[2]PVC TPO FÓLIE'!$D$7:$D$71,"-")*$A$1 -> 15.12 | D43: 15.12 | E43: 66200150 | F43: m2 | G43: (hr.:2,0mm; 30m2/bal.; 420m2/pal.)
A44: 266201150 | B44: Thermoplan T 20 šedá | C44: =_xlfn.XLOOKUP(E44,'[2]PVC TPO FÓLIE'!$C$7:$C$71,'[2]PVC TPO FÓLIE'!$D$7:$D$71,"-")*$A$1 -> 15.12 | D44: 15.12 | E44: 66201150 | F44: m2 | G44: (hr.:2,0mm; 30m2/bal.; 420m2/pal.)
A45: 266010150 | B45: Thermplan T TL 18 Perlovobiela | C45: =_xlfn.XLOOKUP(E45,'[2]PVC TPO FÓLIE'!$C$7:$C$71,'[2]PVC TPO FÓLIE'!$D$7:$D$71,"-")*$A$1 -> 14.105 | D45: 14.105 | E45: 66010150 | F45: m2 | G45: (hr.: 1,8 mm; 15 m2/bal)
A46: 266011150 | B46: Thermplan T TL 18 šedá | C46: =_xlfn.XLOOKUP(E46,'[2]PVC TPO FÓLIE'!$C$7:$C$71,'[2]PVC TPO FÓLIE'!$D$7:$D$71,"-")*$A$1 -> 14.105 | D46: 14.105 | E46: 66011150 | F46: m2 | G46: (hr.: 1,8 mm; 15 m2/bal)
B47: Thermplan T TL 18 biela | C47: =_xlfn.XLOOKUP(E47,'[2]PVC TPO FÓLIE'!$C$7:$C$71,'[2]PVC TPO FÓLIE'!$D$7:$D$71,"-")*$A$1 -> 14.105 | D47: 14.105 | E47: 66014150 | F47: m2 | G47: (hr.: 1,8 mm; 15 m2/bal)
A48: 268150150 | B48: Thermofin F 15 šedá | C48: =_xlfn.XLOOKUP(E48,'[2]PVC TPO FÓLIE'!$C$7:$C$71,'[2]PVC TPO FÓLIE'!$D$7:$D$71,"-")*$A$1 -> 10.15 | D48: 10.15 | E48: 68150150 | F48: m2 | G48: (hr.:1,5mm; 30m2/bal.; 480m2/pal.)
A49: 268180150 | B49: Thermofin F 18 šedá | C49: =_xlfn.XLOOKUP(E49,'[2]PVC TPO FÓLIE'!$C$7:$C$71,'[2]PVC TPO FÓLIE'!$D$7:$D$71,"-")*$A$1 -> 11.69 | D49: 11.69 | E49: 68180150 | F49: m2 | G49: (hr.:1,8mm; 30m2/bal.; 480m2/pal.)
A50: 268200150 | B50: Thermofin F 20 šedá | C50: =_xlfn.XLOOKUP(E50,'[2]PVC TPO FÓLIE'!$C$7:$C$71,'[2]PVC TPO FÓLIE'!$D$7:$D$71,"-")*$A$1 -> 12.775 | D50: 12.775 | E50: 68200150 | F50: m2 | G50: (hr.:2,0mm; 30m2/bal.; 420m2/pal.)
A51: 265100016 | B51: BauderFPO VBL 14 biely (k Thermoplexu) | C51: =_xlfn.XLOOKUP(E51,'[2]PVC TPO FÓLIE'!$C$7:$C$71,'[2]PVC TPO FÓLIE'!$D$7:$D$71,"-")*$A$1 -> 31.465 | D51: 31.465 | E51: 65100016 | F51: m2 | G51: (tab.: 2m x1m, 60 m2/pal) 0,6 mm plech, 0,8 mm poplast.
A52: 265300014 | B52: BauderFPO VBL 14 striebornosivý | C52: =_xlfn.XLOOKUP(E52,'[2]PVC TPO FÓLIE'!$C$7:$C$71,'[2]PVC TPO FÓLIE'!$D$7:$D$71,"-")*$A$1 -> 30.555 | D52: 30.555 | E52: 65300014 | F52: m2 | G52: (tab.: 2m x1m, 60 m2/pal) 0,6 mm plech, 0,8 mm poplast.
B53: BauderFPO VBL 14 perlovobiela | C53: =_xlfn.XLOOKUP(E53,'[2]PVC TPO FÓLIE'!$C$7:$C$71,'[2]PVC TPO FÓLIE'!$D$7:$D$71,"-")*$A$1 -> 30.555 | D53: 30.555 | E53: 65100014 | F53: m2 | G53: (tab.: 2m x1m, 60 m2/pal) 0,6 mm plech, 0,8 mm poplast.
A54: 265010000 | B54: BauderFPO IE perlovobiely (vnútorný kút) | C54: =_xlfn.XLOOKUP(E54,'[2]PVC TPO FÓLIE'!$C$7:$C$71,'[2]PVC TPO FÓLIE'!$D$7:$D$71,"-")*$A$1 -> 4.34 | D54: 4.34 | E54: 65010000 | F54: ks | G54: bal. 25 ks
A55: 265010003 | B55: BauderFPO IE striebornosivý | C55: =_xlfn.XLOOKUP(E55,'[2]PVC TPO FÓLIE'!$C$7:$C$71,'[2]PVC TPO FÓLIE'!$D$7:$D$71,"-")*$A$1 -> 4.34 | D55: 4.34 | E55: 65010003 | F55: ks | G55: bal. 25 ks
B56: BauderFPO IE biely | C56: =_xlfn.XLOOKUP(E56,'[2]PVC TPO FÓLIE'!$C$7:$C$71,'[2]PVC TPO FÓLIE'!$D$7:$D$71,"-")*$A$1 -> 5.145 | D56: 5.145 | E56: 65010005 | F56: ks | G56: bal. 25 ks
A57: 265020000 | B57: BauderFPO AE perlovobiely (vonkajší roh) | C57: =_xlfn.XLOOKUP(E57,'[2]PVC TPO FÓLIE'!$C$7:$C$71,'[2]PVC TPO FÓLIE'!$D$7:$D$71,"-")*$A$1 -> 5.075 | D57: 5.075 | E57: 65020000 | F57: ks | G57: bal. 25 ks
A58: 265020003 | B58: BauderFPO AE striebornosivý | C58: =_xlfn.XLOOKUP(E58,'[2]PVC TPO FÓLIE'!$C$7:$C$71,'[2]PVC TPO FÓLIE'!$D$7:$D$71,"-")*$A$1 -> 5.075 | D58: 5.075 | E58: 65020003 | F58: ks | G58: bal. 25 ks
A59: 265020005 | B59: BauderFPO AE biely | C59: =_xlfn.XLOOKUP(E59,'[2]PVC TPO FÓLIE'!$C$7:$C$71,'[2]PVC TPO FÓLIE'!$D$7:$D$71,"-")*$A$1 -> 5.215 | D59: 5.215 | E59: 65020005 | F59: ks | G59: bal. 25 ks
B60: BauderFPO UE perlovobiely (univerzálny roh/vlnovec) | C60: =_xlfn.XLOOKUP(E60,'[2]PVC TPO FÓLIE'!$C$7:$C$71,'[2]PVC TPO FÓLIE'!$D$7:$D$71,"-")*$A$1 -> 3.255 | D60: 3.255 | E60: 65021000 | F60: ks | G60: bal. 25 ks
A61: 265021003 | B61: BauderFPO UE striebornosivý (univerzálny roh/vlnovec) | C61: =_xlfn.XLOOKUP(E61,'[2]PVC TPO FÓLIE'!$C$7:$C$71,'[2]PVC TPO FÓLIE'!$D$7:$D$71,"-")*$A$1 -> 3.255 | D61: 3.255 | E61: 65021003 | F61: ks | G61: bal. 25 ks
A62: 265500007 | B62: BauderFPO RG čistič | C62: =_xlfn.XLOOKUP(E62,'[2]PVC TPO FÓLIE'!$C$7:$C$71,'[2]PVC TPO FÓLIE'!$D$7:$D$71,"-")*$A$1 -> 13.825 | D62: 13.825 | E62: 65500007 | F62: l | G62: 5 litrové balenie
A63: 265510000 | B63: BauderSYN RET-N čistiaca utierka | C63: =_xlfn.XLOOKUP(E63,'[2]PVC TPO FÓLIE'!$C$7:$C$71,'[2]PVC TPO FÓLIE'!$D$7:$D$71,"-")*$A$1 -> 77.315 | D63: 77.315 | E63: 65510000 | F63: bal. | G63: 450 ks v balení

Sheet BAUDER - PIR
A1: 1.75 | H1: Vaša zľava v %
H2: 0
H3: Ceny sú uvádzané bez DPH.
B7: Produkt | C7: Cena | D7: Cena po zľave | E7: Kód | F7: Balenie | G7: MJ
A8: PLU | B8: PIR FA | H8: Objednané množstvá
A9: =CONCATENATE(2,E9) -> 245190060 | B9: Bauder PIR FA 60 | C9: =_xlfn.XLOOKUP(E9,'[2]PIR '!$A$8:$A$160,'[2]PIR '!$F$8:$F$160,"-")*$A$1 -> 16.5025 | D9: =C9*(1-$H$2/100) -> 16.5025 | E9: 45190060 | F9: 14.4 | G9: m2
A10: =CONCATENATE(2,E10) -> 245190080 | B10: Bauder PIR FA 80 | C10: =_xlfn.XLOOKUP(E10,'[2]PIR '!$A$8:$A$160,'[2]PIR '!$F$8:$F$160,"-")*$A$1 -> 19.81 | D10: =C10*(1-$H$2/100) -> 19.81 | E10: 45190080 | F10: 11.52 | G10: m2
A11: 245190100 | B11: Bauder PIR FA 100 | C11: =_xlfn.XLOOKUP(E11,'[2]PIR '!$A$8:$A$160,'[2]PIR '!$F$8:$F$160,"-")*$A$1 -> 23.45 | D11: 23.45 | E11: 45190100 | F11: 8.64 | G11: m2
A12: 245190120 | B12: Bauder PIR FA 120 | C12: =_xlfn.XLOOKUP(E12,'[2]PIR '!$A$8:$A$160,'[2]PIR '!$F$8:$F$160,"-")*$A$1 -> 26.95 | D12: 26.95 | E12: 45190120 | F12: 8.64 | G12: m2
A13: 245190140 | B13: Bauder PIR FA 140 | C13: =_xlfn.XLOOKUP(E13,'[2]PIR '!$A$8:$A$160,'[2]PIR '!$F$8:$F$160,"-")*$A$1 -> 30.975 | D13: 30.975 | E13: 45190140 | F13: 8.64 | G13: m2
A14: 245190160 | B14: Bauder PIR FA 160 | C14: =_xlfn.XLOOKUP(E14,'[2]PIR '!$A$8:$A$160,'[2]PIR '!$F$8:$F$160,"-")*$A$1 -> 34.7375 | D14: 34.7375 | E14: 45190160 | F14: 8.64 | G14: m2
A15: 245190180 | B15: Bauder PIR FA 180 | C15: =_xlfn.XLOOKUP(E15,'[2]PIR '!$A$8:$A$160,'[2]PIR '!$F$8:$F$160,"-")*$A$1 -> 39.375 | D15: 39.375 | E15: 45190180 | F15: 5.76 | G15: m2
A16: 245190200 | B16: Bauder PIR FA 200 | C16: =_xlfn.XLOOKUP(E16,'[2]PIR '!$A$8:$A$160,'[2]PIR '!$F$8:$F$160,"-")*$A$1 -> 43.015 | D16: 43.015 | E16: 45190200 | F16: 5.76 | G16: m2
A17: 245190220 | B17: Bauder PIR FA 220 | C17: =_xlfn.XLOOKUP(E17,'[2]PIR '!$A$8:$A$160,'[2]PIR '!$F$8:$F$160,"-")*$A$1 -> 46.8475 | D17: 46.8475 | E17: 45190220 | F17: 5.76 | G17: m2
A18: 245190240 | B18: Bauder PIR FA 240 | C18: =_xlfn.XLOOKUP(E18,'[2]PIR '!$A$8:$A$160,'[2]PIR '!$F$8:$F$160,"-")*$A$1 -> 50.96 | D18: 50.96 | E18: 45190240 | F18: 5.76 | G18: m2
B19: PIR M/MF | H19: Objednané množstvá
A20: 248000020 | B20: Bauder PIR M 20 | C20: =_xlfn.XLOOKUP(E20,'[2]PIR '!$A$8:$A$160,'[2]PIR '!$F$8:$F$160,"-")*$A$1 -> 8.9775 | D20: =C20*(1-$H$2/100) -> 8.9775 | E20: 48000020 | F20: 16.56 | G20: m2
A21: 248000030 | B21: Bauder PIR M 30 | C21: =_xlfn.XLOOKUP(E21,'[2]PIR '!$A$8:$A$160,'[2]PIR '!$F$8:$F$160,"-")*$A$1 -> 10.8675 | D21: =C21*(1-$H$2/100) -> 10.8675 | E21: 48000030 | F21: 11.52 | G21: m2
A22: 248000040 | B22: Bauder PIR M 40 | C22: =_xlfn.XLOOKUP(E22,'[2]PIR '!$A$8:$A$160,'[2]PIR '!$F$8:$F$160,"-")*$A$1 -> 12.8625 | D22: 12.8625 | E22: 48000040 | F22: 8.64 | G22: m2
A23: 248000050 | B23: Bauder PIR M 50 | C23: =_xlfn.XLOOKUP(E23,'[2]PIR '!$A$8:$A$160,'[2]PIR '!$F$8:$F$160,"-")*$A$1 -> 14.6125 | D23: 14.6125 | E23: 48000050 | F23: 7.2 | G23: m2
A24: 248000060 | B24: Bauder PIR M 60 | C24: =_xlfn.XLOOKUP(E24,'[2]PIR '!$A$8:$A$160,'[2]PIR '!$F$8:$F$160,"-")*$A$1 -> 16.1 | D24: 16.1 | E24: 48000060 | F24: 5.76 | G24: m2
A25: 248000080 | B25: Bauder PIR M 80 | C25: =_xlfn.XLOOKUP(E25,'[2]PIR '!$A$8:$A$160,'[2]PIR '!$F$8:$F$160,"-")*$A$1 -> 19.4775 | D25: 19.4775 | E25: 48000080 | F25: 4.32 | G25: m2
A26: 248000100 | B26: Bauder PIR M 100 | C26: =_xlfn.XLOOKUP(E26,'[2]PIR '!$A$8:$A$160,'[2]PIR '!$F$8:$F$160,"-")*$A$1 -> 23.135 | D26: 23.135 | E26: 48000100 | F26: 3.6 | G26: m2
A27: 248100040 | B27: Bauder PIR MF 40 | C27: =_xlfn.XLOOKUP(E27,'[2]PIR '!$A$8:$A$160,'[2]PIR '!$F$8:$F$160,"-")*$A$1 -> 12.8638125 | D27: 12.8638125 | E27: 48100040 | F27: 8.64 | G27: m2
A28: 248100050 | B28: Bauder PIR MF 50 | C28: =_xlfn.XLOOKUP(E28,'[2]PIR '!$A$8:$A$160,'[2]PIR '!$F$8:$F$160,"-")*$A$1 -> 14.61075 | D28: 14.61075 | E28: 48100050 | F28: 7.2 | G28: m2
A29: 248100060 | B29: Bauder PIR MF 60 | C29: =_xlfn.XLOOKUP(E29,'[2]PIR '!$A$8:$A$160,'[2]PIR '!$F$8:$F$160,"-")*$A$1 -> 16.093 | D29: 16.093 | E29: 48100060 | F29: 5.76 | G29: m2
A30: 248100080 | B30: Bauder PIR MF 80 | C30: =_xlfn.XLOOKUP(E30,'[2]PIR '!$A$8:$A$160,'[2]PIR '!$F$8:$F$160,"-")*$A$1 -> 19.481 | D30: 19.481 | E30: 48100080 | F30: 4.32 | G30: m2
A31: 248100100 | B31: Bauder PIR MF 100 | C31: =_xlfn.XLOOKUP(E31,'[2]PIR '!$A$8:$A$160,'[2]PIR '!$F$8:$F$160,"-")*$A$1 -> 23.1336875 | D31: 23.1336875 | E31: 48100100 | F31: 3.6 | G31: m2
A32: 248100120 | B32: Bauder PIR MF 120 | C32: =_xlfn.XLOOKUP(E32,'[2]PIR '!$A$8:$A$160,'[2]PIR '!$F$8:$F$160,"-")*$A$1 -> 26.786375 | D32: 26.786375 | E32: 48100120 | F32: 2.88 | G32: m2
A33: 248100140 | B33: Bauder PIR MF 140 | C33: =_xlfn.XLOOKUP(E33,'[2]PIR '!$A$8:$A$160,'[2]PIR '!$F$8:$F$160,"-")*$A$1 -> 30.9684375 | D33: 30.9684375 | E33: 48100140 | F33: 2.16 | G33: m2
A34: 248100160 | B34: Bauder PIR MF 160 | C34: =_xlfn.XLOOKUP(E34,'[2]PIR '!$A$8:$A$160,'[2]PIR '!$F$8:$F$160,"-")*$A$1 -> 34.727 | D34: 34.727 | E34: 48100160 | F34: 2.16 | G34: m2
A35: 248100180 | B35: Bauder PIR MF 180 | C35: =_xlfn.XLOOKUP(E35,'[2]PIR '!$A$8:$A$160,'[2]PIR '!$F$8:$F$160,"-")*$A$1 -> 39.3325625 | D35: 39.3325625 | E35: 48100180 | F35: 2.16 | G35: m2
A36: 248100200 | B36: Bauder PIR MF 200 | C36: =_xlfn.XLOOKUP(E36,'[2]PIR '!$A$8:$A$160,'[2]PIR '!$F$8:$F$160,"-")*$A$1 -> 43.197 | D36: 43.197 | E36: 48100200 | F36: 1.44 | G36: m2
A37: 248100220 | B37: Bauder PIR MF 220 | C37: =_xlfn.XLOOKUP(E37,'[2]PIR '!$A$8:$A$160,'[2]PIR '!$F$8:$F$160,"-")*$A$1 -> 47.0614375 | D37: 47.0614375 | E37: 48100220 | F37: 1.44 | G37: m2
A38: 248100240 | B38: Bauder PIR MF 240 | C38: =_xlfn.XLOOKUP(E38,'[2]PIR '!$A$8:$A$160,'[2]PIR '!$F$8:$F$160,"-")*$A$1 -> 51.2435 | D38: 51.2435 | E38: 48100240 | F38: 1.44 | G38: m2
B39: PIR FA TE/ FA TE F | H39: Objednané množstvá
A40: 244104060 | B40: BauderPIR FA TE /BauderPIR FA TE F 60 | C40: =_xlfn.XLOOKUP(E40,'[2]PIR '!$A$8:$A$160,'[2]PIR '!$F$8:$F$160,"-")*$A$1 -> 16.667525 | D40: =C40*(1-$H$2/100) -> 16.667525 | E40: 44104060 | F40: 5.76 | G40: m2
A41: 244104080 | B41: BauderPIR FA TE /BauderPIR FA TE F 80 | C41: =_xlfn.XLOOKUP(E41,'[2]PIR '!$A$8:$A$160,'[2]PIR '!$F$8:$F$160,"-")*$A$1 -> 20.0081 | D41: =C41*(1-$H$2/100) -> 20.0081 | E41: 44104080 | F41: 4.32 | G41: m2
A42: 244104100 | B42: BauderPIR FA TE /BauderPIR FA TE F 100 | C42: =_xlfn.XLOOKUP(E42,'[2]PIR '!$A$8:$A$160,'[2]PIR '!$F$8:$F$160,"-")*$A$1 -> 23.6845 | D42: 23.6845 | E42: 44104100 | F42: 3.6 | G42: m2
A43: 244104120 | B43: BauderPIR FA TE /BauderPIR FA TE F 120 | C43: =_xlfn.XLOOKUP(E43,'[2]PIR '!$A$8:$A$160,'[2]PIR '!$F$8:$F$160,"-")*$A$1 -> 27.37 | D43: 27.37 | E43: 44104120 | F43: 2.88 | G43: m2
A44: 244104140 | B44: BauderPIR FA TE /BauderPIR FA TE F 140 | C44: =_xlfn.XLOOKUP(E44,'[2]PIR '!$A$8:$A$160,'[2]PIR '!$F$8:$F$160,"-")*$A$1 -> 31.535 | D44: 31.535 | E44: 44104140 | F44: 2.16 | G44: m2
A45: 244104160 | B45: BauderPIR FA TE /BauderPIR FA TE F 160 | C45: =_xlfn.XLOOKUP(E45,'[2]PIR '!$A$8:$A$160,'[2]PIR '!$F$8:$F$160,"-")*$A$1 -> 35.385 | D45: 35.385 | E45: 44104160 | F45: 2.16 | G45: m2
A46: 244004020 | B46: Bauder PIR FA TE 20 | C46: =_xlfn.XLOOKUP(E46,'[2]PIR '!$A$8:$A$160,'[2]PIR '!$F$8:$F$160,"-")*$A$1 -> 9.5816875 | D46: 9.5816875 | E46: 44004020 | F46: 16.56 | G46: m2
A47: 244004030 | B47: Bauder PIR FA TE 30 | C47: =_xlfn.XLOOKUP(E47,'[2]PIR '!$A$8:$A$160,'[2]PIR '!$F$8:$F$160,"-")*$A$1 -> 11.4874375 | D47: 11.4874375 | E47: 44004030 | F47: 11.52 | G47: m2
A48: 244004040 | B48: Bauder PIR FA TE 40 | C48: =_xlfn.XLOOKUP(E48,'[2]PIR '!$A$8:$A$160,'[2]PIR '!$F$8:$F$160,"-")*$A$1 -> 13.3 | D48: 13.3 | E48: 44004040 | F48: 8.64 | G48: m2
A49: 244004050 | B49: Bauder PIR FA TE 50 | C49: =_xlfn.XLOOKUP(E49,'[2]PIR '!$A$8:$A$160,'[2]PIR '!$F$8:$F$160,"-")*$A$1 -> 15.05 | D49: 15.05 | E49: 44004050 | F49: 7.2 | G49: m2
A50: 244004060 | B50: Bauder PIR FA TE 60 | C50: =_xlfn.XLOOKUP(E50,'[2]PIR '!$A$8:$A$160,'[2]PIR '!$F$8:$F$160,"-")*$A$1 -> 16.5025 | D50: 16.5025 | E50: 44004060 | F50: 5.76 | G50: m2
A51: 244004070 | B51: Bauder PIR FA TE 70 | C51: =_xlfn.XLOOKUP(E51,'[2]PIR '!$A$8:$A$160,'[2]PIR '!$F$8:$F$160,"-")*$A$1 -> 18.4625 | D51: 18.4625 | E51: 44004070 | F51: 5.04 | G51: m2
A52: 244004080 | B52: Bauder PIR FA TE 80 | C52: =_xlfn.XLOOKUP(E52,'[2]PIR '!$A$8:$A$160,'[2]PIR '!$F$8:$F$160,"-")*$A$1 -> 19.81 | D52: 19.81 | E52: 44004080 | F52: 4.32 | G52: m2
A53: 244004100 | B53: Bauder PIR FA TE 100 | C53: =_xlfn.XLOOKUP(E53,'[2]PIR '!$A$8:$A$160,'[2]PIR '!$F$8:$F$160,"-")*$A$1 -> 23.45 | D53: 23.45 | E53: 44004100 | F53: 3.6 | G53: m2
A54: 244004120 | B54: Bauder PIR FA TE 120 | C54: =_xlfn.XLOOKUP(E54,'[2]PIR '!$A$8:$A$160,'[2]PIR '!$F$8:$F$160,"-")*$A$1 -> 26.95 | D54: 26.95 | E54: 44004120 | F54: 2.88 | G54: m2
A55: 244004140 | B55: Bauder PIR FA TE 140 | C55: =_xlfn.XLOOKUP(E55,'[2]PIR '!$A$8:$A$160,'[2]PIR '!$F$8:$F$160,"-")*$A$1 -> 30.975 | D55: 30.975 | E55: 44004140 | F55: 2.16 | G55: m2
A56: 244004160 | B56: Bauder PIR FA TE 160 | C56: =_xlfn.XLOOKUP(E56,'[2]PIR '!$A$8:$A$160,'[2]PIR '!$F$8:$F$160,"-")*$A$1 -> 34.7375 | D56: 34.7375 | E56: 44004160 | F56: 2.16 | G56: m2

Sheet BAUDER - PIR SD
A1: 1.75 | H1: Vaša zľava v %
H2: 0
H3: Ceny sú uvádzané bez DPH.
A7: PLU | B7: Produkt | C7: Cena | D7: Cena po zľave | E7: Kód | F7: Rozmer/balenie | G7: MJ
B8: Bauder PIR PLUS | H8: Objednané množstvá
A9: =CONCATENATE(2,E9) -> 240380080 | B9: BauderPIR PLUS 80 | C9: =_xlfn.XLOOKUP(E9,'[2]PIR SD'!$B$6:$B$56,'[2]PIR SD'!$G$6:$G$56,"-")*$A$1 -> 31.36 | D9: =C9*(1-$H$2/100) -> 31.36 | E9: 40380080 | F9: 10,5 m2 v balení | G9: m2
A10: =CONCATENATE(2,E10) -> 240380100 | B10: BauderPIR PLUS 100 | C10: =_xlfn.XLOOKUP(E10,'[2]PIR SD'!$B$6:$B$56,'[2]PIR SD'!$G$6:$G$56,"-")*$A$1 -> 35.49 | D10: =C10*(1-$H$2/100) -> 35.49 | E10: 40380100 | F10: 8,4 m2 v balení | G10: m2
A11: 240380120 | B11: BauderPIR PLUS 120 | C11: =_xlfn.XLOOKUP(E11,'[2]PIR SD'!$B$6:$B$56,'[2]PIR SD'!$G$6:$G$56,"-")*$A$1 -> 39.9 | D11: 39.9 | E11: 40380120 | F11: 8,4 m2 v balení | G11: m2
A12: 240380140 | B12: BauderPIR PLUS 140 | C12: =_xlfn.XLOOKUP(E12,'[2]PIR SD'!$B$6:$B$56,'[2]PIR SD'!$G$6:$G$56,"-")*$A$1 -> 44.345 | D12: 44.345 | E12: 40380140 | F12: 6,3 m2 v balení | G12: m2
A13: 240380160 | B13: BauderPIR PLUS 160 | C13: =_xlfn.XLOOKUP(E13,'[2]PIR SD'!$B$6:$B$56,'[2]PIR SD'!$G$6:$G$56,"-")*$A$1 -> 48.37 | D13: 48.37 | E13: 40380160 | F13: 6,3 m2 v balení | G13: m2
A14: 240380180 | B14: BauderPIR PLUS 180 | C14: =_xlfn.XLOOKUP(E14,'[2]PIR SD'!$B$6:$B$56,'[2]PIR SD'!$G$6:$G$56,"-")*$A$1 -> 53.4275 | D14: 53.4275 | E14: 40380180 | F14: 4,2 m2 v balení | G14: m2
A15: 240380200 | B15: BauderPIR PLUS 200 | C15: =_xlfn.XLOOKUP(E15,'[2]PIR SD'!$B$6:$B$56,'[2]PIR SD'!$G$6:$G$56,"-")*$A$1 -> 57.575 | D15: 57.575 | E15: 40380200 | F15: 4,2 m2 v balení | G15: m2
B16: Bauder PIR PSF | H16: Objednané množstvá
A17: 240190080 | B17: BauderPIR SF 80 | C17: =_xlfn.XLOOKUP(E17,'[2]PIR SD'!$B$6:$B$56,'[2]PIR SD'!$G$6:$G$56,"-")*$A$1 -> 29.4 | D17: =C17*(1-$H$2/100) -> 29.4 | E17: 40190080 | F17: 10,5 m2 v balení | G17: m2
A18: 240190100 | B18: BauderPIR SF 100 | C18: =_xlfn.XLOOKUP(E18,'[2]PIR SD'!$B$6:$B$56,'[2]PIR SD'!$G$6:$G$56,"-")*$A$1 -> 33.495 | D18: =C18*(1-$H$2/100) -> 33.495 | E18: 40190100 | F18: 8,4 m2 v balení | G18: m2
A19: 240190120 | B19: BauderPIR SF 120 | C19: =_xlfn.XLOOKUP(E19,'[2]PIR SD'!$B$6:$B$56,'[2]PIR SD'!$G$6:$G$56,"-")*$A$1 -> 37.975 | D19: 37.975 | E19: 40190120 | F19: 8,4 m2 v balení | G19: m2
A20: 240190140 | B20: BauderPIR SF 140 | C20: =_xlfn.XLOOKUP(E20,'[2]PIR SD'!$B$6:$B$56,'[2]PIR SD'!$G$6:$G$56,"-")*$A$1 -> 42.175 | D20: 42.175 | E20: 40190140 | F20: 6,3 m2 v balení | G20: m2
A21: 240190160 | B21: BauderPIR SF 160 | C21: =_xlfn.XLOOKUP(E21,'[2]PIR SD'!$B$6:$B$56,'[2]PIR SD'!$G$6:$G$56,"-")*$A$1 -> 45.85 | D21: 45.85 | E21: 40190160 | F21: 6,3 m2 v balení | G21: m2
A22: 240190180 | B22: BauderPIR SF 180 | C22: =_xlfn.XLOOKUP(E22,'[2]PIR SD'!$B$6:$B$56,'[2]PIR SD'!$G$6:$G$56,"-")*$A$1 -> 51.275 | D22: 51.275 | E22: 40190180 | F22: 4,2 m2 v balení | G22: m2
A23: 240190200 | B23: BauderPIR SF 200 | C23: =_xlfn.XLOOKUP(E23,'[2]PIR SD'!$B$6:$B$56,'[2]PIR SD'!$G$6:$G$56,"-")*$A$1 -> 55.545 | D23: 55.545 | E23: 40190200 | F23: 4,2 m2 v balení | G23: m2
A24: 240190220 | B24: BauderPIR SF 220 | C24: =_xlfn.XLOOKUP(E24,'[2]PIR SD'!$B$6:$B$56,'[2]PIR SD'!$G$6:$G$56,"-")*$A$1 -> 60.55 | D24: 60.55 | E24: 40190220 | F24: 4,2 m2 v balení | G24: m2
A25: 240190240 | B25: BauderPIR SF 240 | C25: =_xlfn.XLOOKUP(E25,'[2]PIR SD'!$B$6:$B$56,'[2]PIR SD'!$G$6:$G$56,"-")*$A$1 -> 64.8375 | D25: 64.8375 | E25: 40190240 | F25: 4,2 m2 v balení | G25: m2
B26: Bauder PIR SDS | H26: Objednané množstvá
A27: 240680080 | B27: BauderPIR SDS 080 | C27: =_xlfn.XLOOKUP(E27,'[2]PIR SD'!$B$6:$B$56,'[2]PIR SD'!$G$6:$G$56,"-")*$A$1 -> 30.8875 | D27: =C27*(1-$H$2/100) -> 30.8875 | E27: 40680080 | F27: 10,5 m2 v balení | G27: m2
A28: 240680100 | B28: BauderPIR SDS 100 | C28: =_xlfn.XLOOKUP(E28,'[2]PIR SD'!$B$6:$B$56,'[2]PIR SD'!$G$6:$G$56,"-")*$A$1 -> 34.965 | D28: =C28*(1-$H$2/100) -> 34.965 | E28: 40680100 | F28: 8,4 m2 v balení | G28: m2
A29: 240680120 | B29: BauderPIR SDS 120 | C29: =_xlfn.XLOOKUP(E29,'[2]PIR SD'!$B$6:$B$56,'[2]PIR SD'!$G$6:$G$56,"-")*$A$1 -> 39.375 | D29: 39.375 | E29: 40680120 | F29: 8,4 m2 v balení | G29: m2
A30: 240680140 | B30: BauderPIR SDS 140 | C30: =_xlfn.XLOOKUP(E30,'[2]PIR SD'!$B$6:$B$56,'[2]PIR SD'!$G$6:$G$56,"-")*$A$1 -> 43.645 | D30: 43.645 | E30: 40680140 | F30: 6,3 m2 v balení | G30: m2
A31: 240680160 | B31: BauderPIR SDS 160 | C31: =_xlfn.XLOOKUP(E31,'[2]PIR SD'!$B$6:$B$56,'[2]PIR SD'!$G$6:$G$56,"-")*$A$1 -> 47.6525 | D31: 47.6525 | E31: 40680160 | F31: 6,3 m2 v balení | G31: m2
A32: 240680180 | B32: BauderPIR SDS 180 | C32: =_xlfn.XLOOKUP(E32,'[2]PIR SD'!$B$6:$B$56,'[2]PIR SD'!$G$6:$G$56,"-")*$A$1 -> 52.64 | D32: 52.64 | E32: 40680180 | F32: 4,2 m2 v balení | G32: m2
A33: 240680200 | B33: BauderPIR SDS 200 | C33: =_xlfn.XLOOKUP(E33,'[2]PIR SD'!$B$6:$B$56,'[2]PIR SD'!$G$6:$G$56,"-")*$A$1 -> 56.7175 | D33: 56.7175 | E33: 40680200 | F33: 4,2 m2 v balení | G33: m2
B34: Bauder PIR AZS | H34: Objednané množstvá
A35: 240290050 | B35: BauderPIR AZS 50 | C35: =_xlfn.XLOOKUP(E35,'[2]PIR SD'!$B$6:$B$56,'[2]PIR SD'!$G$6:$G$56,"-")*$A$1 -> 24.7975 | D35: =C35*(1-$H$2/100) -> 24.7975 | E35: 40290050 | F35: 18,9 m2 v balení | G35: m2
B36: Bauder PIR MDE* | H36: Objednané množstvá
A37: 241190102 | B37: BauderPIR MDE 102 | C37: =_xlfn.XLOOKUP(E37,'[2]PIR SD'!$B$6:$B$56,'[2]PIR SD'!$G$6:$G$56,"-")*$A$1 -> 52.675 | D37: =C37*(1-$H$2/100) -> 52.675 | E37: 41190102 | F37: 2,1 m2 v balení | G37: m2
A38: 241190122 | B38: BauderPIR MDE 122 | C38: =_xlfn.XLOOKUP(E38,'[2]PIR SD'!$B$6:$B$56,'[2]PIR SD'!$G$6:$G$56,"-")*$A$1 -> 56.525 | D38: =C38*(1-$H$2/100) -> 56.525 | E38: 41190122 | F38: 2,1 m2 v balení | G38: m2
A39: 241190142 | B39: BauderPIR MDE 142 | C39: =_xlfn.XLOOKUP(E39,'[2]PIR SD'!$B$6:$B$56,'[2]PIR SD'!$G$6:$G$56,"-")*$A$1 -> 60.9 | D39: 60.9 | E39: 41190142 | F39: 2,1 m2 v balení | G39: m2
A40: 241190162 | B40: BauderPIR MDE 162 | C40: =_xlfn.XLOOKUP(E40,'[2]PIR SD'!$B$6:$B$56,'[2]PIR SD'!$G$6:$G$56,"-")*$A$1 -> 65.8 | D40: 65.8 | E40: 41190162 | F40: 2,1 m2 v balení | G40: m2
A41: 241190182 | B41: BauderPIR MDE 182 | C41: =_xlfn.XLOOKUP(E41,'[2]PIR SD'!$B$6:$B$56,'[2]PIR SD'!$G$6:$G$56,"-")*$A$1 -> 70.35 | D41: 70.35 | E41: 41190182 | F41: 2,1 m2 v balení | G41: m2
A42: 241190202 | B42: BauderPIR MDE 202 | C42: =_xlfn.XLOOKUP(E42,'[2]PIR SD'!$B$6:$B$56,'[2]PIR SD'!$G$6:$G$56,"-")*$A$1 -> 75.425 | D42: 75.425 | E42: 41190202 | F42: 2,1 m2 v balení | G42: m2
B43: Bauder ostatné | H43: Objednané množstvá
A44: 216140000 | B44: Bauder pásky pod kontry | C44: =_xlfn.XLOOKUP(E44,'[2]PIR SD'!$J$3:$J$42,'[2]PIR SD'!$N$3:$N$42,"-")*$A$1 -> 1.225 | D44: =C44*(1-$H$2/100) -> 1.225 | E44: 16140000 | F44: 15 m v balení | G44: m
A45: 212250001 | B45: Bauder TOP VENT NSK | C45: =_xlfn.XLOOKUP(E45,'[2]PIR SD'!$J$3:$J$42,'[2]PIR SD'!$N$3:$N$42,"-")*$A$1 -> 9.975 | D45: =C45*(1-$H$2/100) -> 9.975 | E45: 12250001 | F45: 25 m2 v balení | G45: m2
A46: 278450000 | B46: Bauder VAP | C46: =_xlfn.XLOOKUP(E46,'[2]PIR SD'!$J$3:$J$42,'[2]PIR SD'!$N$3:$N$42,"-")*$A$1 -> 6.37 | D46: 6.37 | E46: 78450000 | F46: 75 m2 v balení | G46: m2
A47: 217860000 | B47: BauderTOP TS 40 NSK | C47: =_xlfn.XLOOKUP(E47,'[2]PIR SD'!$J$3:$J$42,'[2]PIR SD'!$N$3:$N$42,"-")*$A$1 -> 3.92 | D47: 3.92 | E47: 17860000 | F47: 40 m2 v balení | G47: m2
A48: 216040000 | B48: BauderTOP UDS 1,5 | C48: =_xlfn.XLOOKUP(E48,'[2]PIR SD'!$J$3:$J$42,'[2]PIR SD'!$N$3:$N$42,"-")*$A$1 -> 5.11 | D48: 5.11 | E48: 16040000 | F48: 20 m2 v balení | G48: m2
A49: 217900000 | B49: BauderTOP UDS 3 | C49: =_xlfn.XLOOKUP(E49,'[2]PIR SD'!$J$3:$J$42,'[2]PIR SD'!$N$3:$N$42,"-")*$A$1 -> 8.365 | D49: 8.365 | E49: 17900000 | F49: 10 m2 v balení | G49: m2
A50: 278570000 | B50: Bauder TEC SDK | C50: =_xlfn.XLOOKUP(E50,'[2]PIR SD'!$J$3:$J$42,'[2]PIR SD'!$N$3:$N$42,"-")*$A$1 -> 7.35 | D50: 7.35 | E50: 78570000 | F50: 30 cm/25m | G50: m
A51: 212210007 | B51: BauderTOP BuZi NSK | C51: =_xlfn.XLOOKUP(E51,'[2]PIR SD'!$J$3:$J$42,'[2]PIR SD'!$N$3:$N$42,"-")*$A$1 -> 3.1325 | D51: 3.1325 | E51: 12210007 | F51: 64 m2 v balení | G51: m2
B52: Skrutky | H52: Objednané množstvá
A53: 271800160 | B53: BauderPIR Systemschraube (bal. 50 ks) | C53: =_xlfn.XLOOKUP(E53,'[2]PIR SD'!$J$14:$J$39,'[2]PIR SD'!$O$14:$O$39,"-")*$A$1 -> 49.525 | D53: =C53*(1-$H$2/100) -> 49.525 | E53: 71800160 | F53: 7,0 x 160 | G53: bal.
A54: 271800180 | B54: BauderPIR Systemschraube (bal. 50 ks) | C54: =_xlfn.XLOOKUP(E54,'[2]PIR SD'!$J$14:$J$39,'[2]PIR SD'!$O$14:$O$39,"-")*$A$1 -> 62.125 | D54: =C54*(1-$H$2/100) -> 62.125 | E54: 71800180 | F54: 7,0 x 180 | G54: bal.
A55: 271800200 | B55: BauderPIR Systemschraube (bal. 50 ks) | C55: =_xlfn.XLOOKUP(E55,'[2]PIR SD'!$J$14:$J$39,'[2]PIR SD'!$O$14:$O$39,"-")*$A$1 -> 67.55 | D55: 67.55 | E55: 71800200 | F55: 7,0 x 200 | G55: bal.
A56: 271800220 | B56: BauderPIR Systemschraube (bal. 50 ks) | C56: =_xlfn.XLOOKUP(E56,'[2]PIR SD'!$J$14:$J$39,'[2]PIR SD'!$O$14:$O$39,"-")*$A$1 -> 72.625 | D56: 72.625 | E56: 71800220 | F56: 7,0 x 220 | G56: bal.
A57: 271800240 | B57: BauderPIR Systemschraube (bal. 50 ks) | C57: =_xlfn.XLOOKUP(E57,'[2]PIR SD'!$J$14:$J$39,'[2]PIR SD'!$O$14:$O$39,"-")*$A$1 -> 79.41925026 | D57: 79.41925026 | E57: 71800240 | F57: 7,0 x 240 | G57: bal.
A58: 271800260 | B58: BauderPIR Systemschraube (bal. 50 ks) | C58: =_xlfn.XLOOKUP(E58,'[2]PIR SD'!$J$14:$J$39,'[2]PIR SD'!$O$14:$O$39,"-")*$A$1 -> 80.4727938 | D58: 80.4727938 | E58: 71800260 | F58: 7,0 x 260 | G58: bal.
A59: 271800280 | B59: BauderPIR Systemschraube (bal. 50 ks) | C59: =_xlfn.XLOOKUP(E59,'[2]PIR SD'!$J$14:$J$39,'[2]PIR SD'!$O$14:$O$39,"-")*$A$1 -> 82.19881194 | D59: 82.19881194 | E59: 71800280 | F59: 7,0 x 280 | G59: bal.
A60: 271800300 | B60: BauderPIR Systemschraube (bal. 50 ks) | C60: =_xlfn.XLOOKUP(E60,'[2]PIR SD'!$J$14:$J$39,'[2]PIR SD'!$O$14:$O$39,"-")*$A$1 -> 100.1762996 | D60: 100.1762996 | E60: 71800300 | F60: 7,0 x 300 | G60: bal.
A61: 271800320 | B61: BauderPIR Systemschraube (bal. 50 ks) | C61: =_xlfn.XLOOKUP(E61,'[2]PIR SD'!$J$14:$J$39,'[2]PIR SD'!$O$14:$O$39,"-")*$A$1 -> 105.3095224 | D61: 105.3095224 | E61: 71800320 | F61: 7,0 x 320 | G61: bal.
A62: 271800340 | B62: BauderPIR Systemschraube (bal. 50 ks) | C62: =_xlfn.XLOOKUP(E62,'[2]PIR SD'!$J$14:$J$39,'[2]PIR SD'!$O$14:$O$39,"-")*$A$1 -> 109.2771225 | D62: 109.2771225 | E62: 71800340 | F62: 7,0 x 340 | G62: bal.
A63: 271800360 | B63: BauderPIR Systemschraube (bal. 50 ks) | C63: =_xlfn.XLOOKUP(E63,'[2]PIR SD'!$J$14:$J$39,'[2]PIR SD'!$O$14:$O$39,"-")*$A$1 -> 113.6257916 | D63: 113.6257916 | E63: 71800360 | F63: 7,0 x 360 | G63: bal.
A64: 271800380 | B64: BauderPIR Systemschraube (bal. 50 ks) | C64: =_xlfn.XLOOKUP(E64,'[2]PIR SD'!$J$14:$J$39,'[2]PIR SD'!$O$14:$O$39,"-")*$A$1 -> 119.7004788 | D64: 119.7004788 | E64: 71800380 | F64: 7,0 x 380 | G64: bal.
A65: 271800400 | B65: BauderPIR Systemschraube (bal. 50 ks) | C65: =_xlfn.XLOOKUP(E65,'[2]PIR SD'!$J$14:$J$39,'[2]PIR SD'!$O$14:$O$39,"-")*$A$1 -> 125.0802756 | D65: 125.0802756 | E65: 71800400 | F65: 7,0 x 400 | G65: bal.
A66: 271800420 | B66: BauderPIR Systemschraube (bal. 50 ks) | C66: =IFERROR(_xlfn.XLOOKUP(E66,'[2]PIR SD'!$J$14:$J$39,'[2]PIR SD'!$O$14:$O$39,"-")*$A$1,"-") -> - | D66: =IFERROR(C66*(1-$H$2/100),"-") -> - | E66: 71800420 | F66: 7,0 x 420 | G66: bal.
A67: 271800440 | B67: BauderPIR Systemschraube (bal. 50 ks) | C67: =_xlfn.XLOOKUP(E67,'[2]PIR SD'!$J$14:$J$39,'[2]PIR SD'!$O$14:$O$39,"-")*$A$1 -> 166.5495426 | D67: 166.5495426 | E67: 71800440 | F67: 7,0 x 440 | G67: bal.
A68: 271800460 | B68: BauderPIR Systemschraube (bal. 50 ks) | C68: =IFERROR(_xlfn.XLOOKUP(E68,'[2]PIR SD'!$J$14:$J$39,'[2]PIR SD'!$O$14:$O$39,"-")*$A$1,"-") -> - | D68: =IFERROR(C68*(1-$H$2/100),"-") -> - | E68: 71800460 | F68: 7,0 x 460 | G68: bal.
A69: 271800480 | B69: BauderPIR Systemschraube (bal. 50 ks) | C69: =_xlfn.XLOOKUP(E69,'[2]PIR SD'!$J$14:$J$39,'[2]PIR SD'!$O$14:$O$39,"-")*$A$1 -> 201.2044003 | D69: 201.2044003 | E69: 71800480 | F69: 7,0 x 480 | G69: bal.
A70: 271800500 | B70: BauderPIR Systemschraube (bal. 50 ks) | C70: =_xlfn.XLOOKUP(E70,'[2]PIR SD'!$J$14:$J$39,'[2]PIR SD'!$O$14:$O$39,"-")*$A$1 -> 203 | D70: 203 | E70: 71800500 | F70: 7,0 x 500 | G70: bal.

Sheet BAUDER - LES
A1: 1.75 | H1: Vaša zľava v %
H2: 0
H3: Ceny sú uvádzané bez DPH.
B7: Produkt | C7: Cena | D7: Cena po zľave | E7: MJ
A8: PLU | B8: Bauder LES SET | F8: Objednané množstvá
B9: PIR LES SET 1 | C9: =_xlfn.XLOOKUP(B9,[2]LES!$B$3:$B$8,[2]LES!$C$3:$C$8,"-")*$A$1 -> 28.7 | D9: =C9*(1-$H$2/100) -> 28.7 | E9: sada
B10: PIR LES SET 2 | C10: =_xlfn.XLOOKUP(B10,[2]LES!$B$3:$B$8,[2]LES!$C$3:$C$8,"-")*$A$1 -> 64.75 | D10: =C10*(1-$H$2/100) -> 64.75 | E10: sada
B11: PIR LES SET 3 | C11: =_xlfn.XLOOKUP(B11,[2]LES!$B$3:$B$8,[2]LES!$C$3:$C$8,"-")*$A$1 -> 105.525 | D11: 105.525 | E11: sada
B12: PIR LES SET 4 | C12: =_xlfn.XLOOKUP(B12,[2]LES!$B$3:$B$8,[2]LES!$C$3:$C$8,"-")*$A$1 -> 140 | D12: 140 | E12: sada
B13: PIR LES SET 5 | C13: =_xlfn.XLOOKUP(B13,[2]LES!$B$3:$B$8,[2]LES!$C$3:$C$8,"-")*$A$1 -> 176.75 | D13: 176.75 | E13: sada

Sheet PLECHY
A1: 1.75 | H1: Vaša zľava v %
H2: 0
H3: Ceny sú uvádzané bez DPH.
A7: PLU | B7: Produkt | C7: Cena | D7: Cena po zľave | E7: Hrúbka | F7: Rozmer | G7: MJ | H7: Objednané množstvá | S7: Obrázok
B8: Lakoplastované plechy a pozinkované plechy | H8: 3009 | I8: 3011 | J8: 7016 | K8: 8004 | L8: 8017 | M8: 8019 | N8: 9002 | O8: 9005 | P8: 9006 | Q8: 9007 | R8: 9010
A9: ffff268 | B9: Lakoplastovaný plech, d. 2000 mm, tabuľový STANDARD | C9: =_xlfn.XLOOKUP(VALUE(REPLACE(A9,1,4,7016)),'[1]Worksheet 1'!$A$2:$A$18880,'[1]Worksheet 1'!$C$2:$C$18880) -> 24.5 | D9: =C9*(1-$H$2/100) -> 24.5 | E9: 0,50 mm | F9: š. 1250 mm | G9: ks
A10: ffff269 | B10: Lakoplastovaný plech, d. 30000 mm, zvitkový STANDARD | C10: =_xlfn.XLOOKUP(VALUE(REPLACE(A10,1,4,7016)),'[1]Worksheet 1'!$A$2:$A$18880,'[1]Worksheet 1'!$C$2:$C$18880) -> 367.5 | D10: 367.5 | E10: 0,50 mm | F10: š. 1250 mm | G10: ks
A11: ffff270 | B11: Lakoplastovaný plech STANDARD | C11: =_xlfn.XLOOKUP(VALUE(REPLACE(A11,1,4,7016)),'[1]Worksheet 1'!$A$2:$A$18880,'[1]Worksheet 1'!$C$2:$C$18880) -> 9.8 | D11: 9.8 | E11: 0,50 mm | F11: š. 1250 mm | G11: m2
A12: 2ffff268 | B12: Lakoplastovaný plech, d. 2000 mm, tabuľový ELEGANZ | C12: =_xlfn.XLOOKUP(VALUE(REPLACE(A12,2,4,7016)),'[1]Worksheet 1'!$A$2:$A$18880,'[1]Worksheet 1'!$C$2:$C$18880) -> 26.75 | D12: 26.75 | E12: 0,50 mm | F12: š. 1250 mm | G12: ks
A13: 2ffff269 | B13: Lakoplastovaný plech, d. 30000 mm, zvitkový ELEGANZ | C13: =_xlfn.XLOOKUP(VALUE(REPLACE(A13,2,4,7016)),'[1]Worksheet 1'!$A$2:$A$18880,'[1]Worksheet 1'!$C$2:$C$18880) -> 401.25 | D13: 401.25 | E13: 0,50 mm | F13: š. 1250 mm | G13: ks
A14: ffff285 | B14: Lakoplastovaný plech ELEGANZ | C14: =_xlfn.XLOOKUP(VALUE(REPLACE(A14,1,4,7016)),'[1]Worksheet 1'!$A$2:$A$18880,'[1]Worksheet 1'!$C$2:$C$18880) -> 10.7 | D14: 10.7 | E14: 0,50 mm | F14: š. 1250 mm | G14: m2
A15: 3ffff268 | B15: Lakoplastovaný plech, d. 2000 mm, tabuľový STRONG | C15: =_xlfn.XLOOKUP(VALUE(REPLACE(A15,2,4,7016)),'[1]Worksheet 1'!$A$2:$A$18880,'[1]Worksheet 1'!$C$2:$C$18880) -> 30.5 | D15: 30.5 | E15: 0,50 mm | F15: š. 1250 mm | G15: ks
A16: 3ffff269 | B16: Lakoplastovaný plech, d. 30000 mm, zvitkový STRONG | C16: =_xlfn.XLOOKUP(VALUE(REPLACE(A16,2,4,7016)),'[1]Worksheet 1'!$A$2:$A$18880,'[1]Worksheet 1'!$C$2:$C$18880) -> 457.5 | D16: 457.5 | E16: 0,50 mm | F16: š. 1250 mm | G16: ks
A17: ffff275 | B17: Lakoplastovaný plech STRONG | C17: =_xlfn.XLOOKUP(VALUE(REPLACE(A17,1,4,7016)),'[1]Worksheet 1'!$A$2:$A$18880,'[1]Worksheet 1'!$C$2:$C$18880) -> 12.2 | D17: 12.2 | E17: 0,50 mm | F17: š. 1250 mm | G17: m2
A18: 1001 | B18: PZ plech tabuľový d. 2000 mm | C18: =_xlfn.XLOOKUP(A18,'[1]Worksheet 1'!$A$2:$A$18880,'[1]Worksheet 1'!$C$2:$C$18880) -> 18 | D18: 18 | E18: 0,50 mm | F18: š. 1000 mm | G18: ks
A19: 1015 | B19: PZ plech tabuľový d. 2000 mm | C19: =_xlfn.XLOOKUP(A19,'[1]Worksheet 1'!$A$2:$A$18880,'[1]Worksheet 1'!$C$2:$C$18880) -> 39.4 | D19: 39.4 | E19: 0,80 mm | F19: š. 1000 mm | G19: ks
A20: 1020 | B20: PZ plech tabuľový d. 2000 mm | C20: =_xlfn.XLOOKUP(A20,'[1]Worksheet 1'!$A$2:$A$18880,'[1]Worksheet 1'!$C$2:$C$18880) -> 51 | D20: 51 | E20: 1,00 mm | F20: š. 1000 mm | G20: ks
A21: 1024 | B21: PZ plech tabuľový d. 2000 mm | C21: =_xlfn.XLOOKUP(A21,'[1]Worksheet 1'!$A$2:$A$18880,'[1]Worksheet 1'!$C$2:$C$18880) -> 50 | D21: 50 | E21: 1,50 mm | F21: š. 1000 mm | G21: ks
A22: 1002 | B22: PZ plech tabuľový d. 2000 mm | C22: =_xlfn.XLOOKUP(A22,'[1]Worksheet 1'!$A$2:$A$18880,'[1]Worksheet 1'!$C$2:$C$18880) -> 22.5 | D22: 22.5 | E22: 0,50 mm | F22: š. 1250 mm | G22: ks
A23: 1016 | B23: PZ plech tabuľový d. 2000 mm | C23: =_xlfn.XLOOKUP(A23,'[1]Worksheet 1'!$A$2:$A$18880,'[1]Worksheet 1'!$C$2:$C$18880) -> 49.25 | D23: 49.25 | E23: 0,80 mm | F23: š. 1250 mm | G23: ks
A24: 1021 | B24: PZ plech tabuľový d. 2000 mm | C24: =_xlfn.XLOOKUP(A24,'[1]Worksheet 1'!$A$2:$A$18880,'[1]Worksheet 1'!$C$2:$C$18880) -> 63.75 | D24: 63.75 | E24: 1,00 mm | F24: š. 1250 mm | G24: ks
A25: 1030 | B25: PZ plech zvitkový d. 30000 mm | C25: =_xlfn.XLOOKUP(A25,'[1]Worksheet 1'!$A$2:$A$18880,'[1]Worksheet 1'!$C$2:$C$18880) -> 270 | D25: 270 | E25: 0,50 mm | F25: š. 1000 mm | G25: ks
A26: 1045 | B26: PZ plech zvitkový d. 30000 mm | C26: =_xlfn.XLOOKUP(A26,'[1]Worksheet 1'!$A$2:$A$18880,'[1]Worksheet 1'!$C$2:$C$18880) -> 591 | D26: 591 | E26: 0,80 mm | F26: š. 1000 mm | G26: ks
A27: 1050 | B27: PZ plech zvitkový d. 30000 mm | C27: =_xlfn.XLOOKUP(A27,'[1]Worksheet 1'!$A$2:$A$18880,'[1]Worksheet 1'!$C$2:$C$18880) -> 765 | D27: 765 | E27: 1,00 mm | F27: š. 1000 mm | G27: ks
A28: 1054 | B28: PZ plech zvitkový d. 30000 mm | C28: =_xlfn.XLOOKUP(A28,'[1]Worksheet 1'!$A$2:$A$18880,'[1]Worksheet 1'!$C$2:$C$18880) -> 930 | D28: 930 | E28: 1,50 mm | F28: š. 1000 mm | G28: ks
A29: 1031 | B29: PZ plech zvitkový d. 30000 mm | C29: =_xlfn.XLOOKUP(A29,'[1]Worksheet 1'!$A$2:$A$18880,'[1]Worksheet 1'!$C$2:$C$18880) -> 337.5 | D29: 337.5 | E29: 0,50 mm | F29: š. 1250 mm | G29: ks
A30: 1046 | B30: PZ plech zvitkový d. 30000 mm | C30: =_xlfn.XLOOKUP(A30,'[1]Worksheet 1'!$A$2:$A$18880,'[1]Worksheet 1'!$C$2:$C$18880) -> 738 | D30: 738 | E30: 0,80 mm | F30: š. 1250 mm | G30: ks
A31: 1051 | B31: PZ plech zvitkový d. 30000 mm | C31: =_xlfn.XLOOKUP(A31,'[1]Worksheet 1'!$A$2:$A$18880,'[1]Worksheet 1'!$C$2:$C$18880) -> 956.25 | D31: 956.25 | E31: 1,00 mm | F31: š. 1250 mm | G31: ks
A32: 1055 | B32: PZ plech zvitkový d. 30000 mm | C32: =_xlfn.XLOOKUP(A32,'[1]Worksheet 1'!$A$2:$A$18880,'[1]Worksheet 1'!$C$2:$C$18880) -> 1162.5 | D32: 1162.5 | E32: 2,00 mm | F32: š. 1250 mm | G32: ks
A33: 1093 | B33: PZ plech hladký | C33: =_xlfn.XLOOKUP(A33,'[1]Worksheet 1'!$A$2:$A$18880,'[1]Worksheet 1'!$C$2:$C$18880) -> 9 | D33: 9 | E33: 0,50 mm | F33: š. 1000 mm | G33: m2
A34: 1098 | B34: PZ plech hladký | C34: =_xlfn.XLOOKUP(A34,'[1]Worksheet 1'!$A$2:$A$18880,'[1]Worksheet 1'!$C$2:$C$18880) -> 19.7 | D34: 19.7 | E34: 0,80 mm | F34: š. 1000 mm | G34: m2
A35: 1100 | B35: PZ plech hladký | C35: =_xlfn.XLOOKUP(A35,'[1]Worksheet 1'!$A$2:$A$18880,'[1]Worksheet 1'!$C$2:$C$18880) -> 24 | D35: 24 | E35: 1,00 mm | F35: š. 1000 mm | G35: m2
A36: 1101 | B36: PZ plech hladký | C36: =_xlfn.XLOOKUP(A36,'[1]Worksheet 1'!$A$2:$A$18880,'[1]Worksheet 1'!$C$2:$C$18880) -> 25 | D36: 25 | E36: 1,50 mm | F36: š. 1000 mm | G36: m2
B37: Titanzinkové, medené, nerezové, hliníkové plechy
A38: 1125 | B38: Perforovaný PZ plech, 1000 mm x 2000 mm, tabuľový | D38: =C38*(1-$H$2/100) -> 0 | E38: 0,75 mm | F38: Ø 5 | G38: m2
B39: Medený plech, tabuľový, zvitkový | D39: =C39*(1-$H$2/100) -> 0 | E39: 0,55 mm | F39: š. 670-1000 mm | G39: m2
B40: Nerezový plech morený 2B, tabuľový, zvitkový | D40: 0 | E40: 0,60 mm | F40: š. 1000 mm | G40: m2
A41: 1339 | B41: Titanzinkový plech VM ZNIC, 1000 mm, zvitkový - Natural | D41: 0 | E41: 0,60 mm | F41: š. 670 mm | G41: m2
A42: 1340 | B42: Titanzinkový plech VM ZNIC, 1000 mm, zvitkový - Natural | C42: 42 | D42: 42 | E42: 0,65 mm | F42: š. 670 mm | G42: m2
A43: 1342 | B43: Titanzinkový plech VM ZNIC, 1000 mm, zvitkový - Natural | C43: 44 | D43: 44 | E43: 0,70 mm | F43: š. 670 mm | G43: m2
A44: 1360 | B44: Titanzinkový plech VM ZNIC, 1000 mm, zvitkový - Quartz | C44: 56.5 | D44: 56.5 | E44: 0,70 mm | F44: š. 670 mm | G44: m2
A45: 1362 | B45: Titanzinkový plech VM ZNIC, 1000 mm, zvitkový - Quartz | C45: 42 | D45: 42 | E45: 1,00 mm | F45: š. 400 mm | G45: m2
A46: 1350 | B46: Titanzinkový plech VM ZNIC, 1000 mm, zvitkový - Anthra | C46: 58.5 | D46: 58.5 | E46: 0,70 mm | F46: š. 670 mm | G46: m2
B47: Titanzinkový plech VM ZNIC, 1000 mm, zvitkový - Pigmento | C47: 79 | D47: 79 | E47: 0,70 mm | F47: š. 670 mm | G47: m2
B48: Hliníkové plechy | H48: 7016 | I48: 7036 | J48: 8004 | K48: 8016 | L48: 8017 | M48: 9006 | N48: 9010
A49: ffff290 | B49: Hliníkový plech tabuľový d. 2000 mm - farebný Al | C49: =_xlfn.XLOOKUP(VALUE(REPLACE(A49,1,4,8017)),'[1]Worksheet 1'!$A$2:$A$18880,'[1]Worksheet 1'!$C$2:$C$18880) -> 35.8 | D49: =C49*(1-$H$2/100) -> 35.8 | E49: 0,60 mm | F49: š. 1000 mm | G49: ks
A50: ffff292 | B50: Hliníkový plech tabuľový d. 2000 mm - farebný Al | C50: =_xlfn.XLOOKUP(VALUE(REPLACE(A50,1,4,8017)),'[1]Worksheet 1'!$A$2:$A$18880,'[1]Worksheet 1'!$C$2:$C$18880) -> 28.06 | D50: =C50*(1-$H$2/100) -> 28.06 | E50: 0,80 mm | F50: š. 1000 mm | G50: ks
A51: ffff286 | B51: Hliníkový plech PROFAL zvitkový - farebný Al | C51: =_xlfn.XLOOKUP(VALUE(REPLACE(A51,1,4,7016)),'[1]Worksheet 1'!$A$2:$A$18880,'[1]Worksheet 1'!$C$2:$C$18880) -> 17 | D51: 17 | E51: 0,70 mm | F51: š. 600 mm | G51: m
A52: 200700 | B52: Hliníkový plech PROFAL zvitkový - RAL 7016 | C52: =_xlfn.XLOOKUP(A52,'[1]Worksheet 1'!$A$2:$A$18880,'[1]Worksheet 1'!$C$2:$C$18880) -> 15.1 | D52: 15.1 | E52: 0,70 mm | F52: š. 600 mm | G52: kg
B53: Hliníkový plech PROFAL zvitkový - RAL 7016 | C53: 28.5 | D53: =C53*(1-$H$2/100) -> 28.5 | E53: 0,70 mm | F53: š. 600 mm | G53: m2
A54: 200701 | B54: Hliníkový plech PROFAL zvitkový - RAL 7036 | C54: =_xlfn.XLOOKUP(A54,'[1]Worksheet 1'!$A$2:$A$18880,'[1]Worksheet 1'!$C$2:$C$18880) -> 15.1 | D54: 15.1 | E54: 0,70 mm | F54: š. 600 mm | G54: kg
B55: Hliníkový plech PROFAL zvitkový - RAL 7036 | C55: 28.5 | D55: 28.5 | E55: 0,70 mm | F55: š. 600 mm | G55: m2
A56: 200702 | B56: Hliníkový plech PROFAL zvitkový - RAL 8004 | C56: =_xlfn.XLOOKUP(A56,'[1]Worksheet 1'!$A$2:$A$18880,'[1]Worksheet 1'!$C$2:$C$18880) -> 15.1 | D56: 15.1 | E56: 0,70 mm | F56: š. 600 mm | G56: kg
B57: Hliníkový plech PROFAL zvitkový - RAL 8004 | C57: 28.5 | D57: 28.5 | E57: 0,70 mm | F57: š. 600 mm | G57: m2
A58: 200703 | B58: Hliníkový plech PROFAL zvitkový - RAL 8016 | C58: =_xlfn.XLOOKUP(A58,'[1]Worksheet 1'!$A$2:$A$18880,'[1]Worksheet 1'!$C$2:$C$18880) -> 15.1 | D58: 15.1 | E58: 0,70 mm | F58: š. 600 mm | G58: kg
B59: Hliníkový plech PROFAL zvitkový - RAL 8016 | C59: 28.5 | D59: 28.5 | E59: 0,70 mm | F59: š. 600 mm | G59: m2
A60: 200704 | B60: Hliníkový plech PROFAL zvitkový - RAL 9006 | C60: =_xlfn.XLOOKUP(A60,'[1]Worksheet 1'!$A$2:$A$18880,'[1]Worksheet 1'!$C$2:$C$18880) -> 15.1 | D60: 15.1 | E60: 0,70 mm | F60: š. 600 mm | G60: kg
B61: Hliníkový plech PROFAL zvitkový - RAL 9006 | C61: 28.5 | D61: 28.5 | E61: 0,70 mm | F61: š. 600 mm | G61: m2
A62: 1200 | B62: Hliníkový plech tabuľový, d. 2000 mm prírodný Al | C62: =_xlfn.XLOOKUP(A62,'[1]Worksheet 1'!$A$2:$A$18880,'[1]Worksheet 1'!$C$2:$C$18880) -> 32.4 | D62: 32.4 | E62: 0,60 mm | F62: š. 1000 mm | G62: ks
A63: 1205 | B63: Hliníkový plech tabuľový, d. 2000 mm prírodný Al | C63: =_xlfn.XLOOKUP(A63,'[1]Worksheet 1'!$A$2:$A$18880,'[1]Worksheet 1'!$C$2:$C$18880) -> 47.6 | D63: 47.6 | E63: 0,80 mm | F63: š. 1000 mm | G63: ks
A64: 1210 | B64: Hliníkový plech tabuľový, d. 2000 mm prírodný Al | C64: =_xlfn.XLOOKUP(A64,'[1]Worksheet 1'!$A$2:$A$18880,'[1]Worksheet 1'!$C$2:$C$18880) -> 59.4 | D64: 59.4 | E64: 1,00 mm | F64: š. 1000 mm | G64: ks
A65: 1215 | B65: Hliníkový plech tabuľový, d. 2000 mm prírodný Al | C65: =_xlfn.XLOOKUP(A65,'[1]Worksheet 1'!$A$2:$A$18880,'[1]Worksheet 1'!$C$2:$C$18880) -> 120 | D65: 120 | E65: 1,50 mm | F65: š. 1000 mm | G65: ks
A66: 1267 | B66: Hliníkový plech tabuľový, d. 2000 mm prírodný Al | C66: =_xlfn.XLOOKUP(A66,'[1]Worksheet 1'!$A$2:$A$18880,'[1]Worksheet 1'!$C$2:$C$18880) -> 75 | D66: 75 | E66: 2,00 mm | F66: š. 1000 mm | G66: ks
A67: 1198 | B67: Hliníkový plech zvitkový, d. 30000 mm prírodný Al | C67: =_xlfn.XLOOKUP(A67,'[1]Worksheet 1'!$A$2:$A$18880,'[1]Worksheet 1'!$C$2:$C$18880) -> 413.4 | D67: 413.4 | E67: 0,60 mm | F67: š. 1000 mm | G67: ks
A68: 1227 | B68: Hliníkový plech zvitkový, d. 30000 mm prírodný Al | C68: =_xlfn.XLOOKUP(A68,'[1]Worksheet 1'!$A$2:$A$18880,'[1]Worksheet 1'!$C$2:$C$18880) -> 714 | D68: 714 | E68: 0,80 mm | F68: š. 1000 mm | G68: ks
A69: 1229 | B69: Hliníkový plech zvitkový, d. 30000 mm prírodný Al | C69: =_xlfn.XLOOKUP(A69,'[1]Worksheet 1'!$A$2:$A$18880,'[1]Worksheet 1'!$C$2:$C$18880) -> 891 | D69: 891 | E69: 1,00 mm | F69: š. 1000 mm | G69: ks
A70: 1208 | B70: Hliníkový plech zvitkový, d. 30000 mm prírodný Al | C70: =_xlfn.XLOOKUP(A70,'[1]Worksheet 1'!$A$2:$A$18880,'[1]Worksheet 1'!$C$2:$C$18880) -> 607.5 | D70: 607.5 | E70: 0,60 mm | F70: š. 1250 mm | G70: ks
A71: 1228 | B71: Hliníkový plech zvitkový, d. 30000 mm prírodný Al | C71: =_xlfn.XLOOKUP(A71,'[1]Worksheet 1'!$A$2:$A$18880,'[1]Worksheet 1'!$C$2:$C$18880) -> 688.5 | D71: 688.5 | E71: 0,80 mm | F71: š. 1250 mm | G71: ks
A72: 1234 | B72: Hliníkový plech zvitkový, d. 30000 mm prírodný Al | C72: =_xlfn.XLOOKUP(A72,'[1]Worksheet 1'!$A$2:$A$18880,'[1]Worksheet 1'!$C$2:$C$18880) -> 861 | D72: 861 | E72: 1,00 mm | F72: š. 1250 mm | G72: ks
B73: Poplastované plechy
A74: 260100012 | B74: PVC Poplastovaný plech FB12 BAUDER, tabuľový, svetlosivý | C74: =_xlfn.XLOOKUP(VALUE(RIGHT(A74,8)),'[2]PVC_TPO PLECHY'!$G$5:$G$25,'[2]PVC_TPO PLECHY'!$I$5:$I$25,"-",0)*$A$1 -> 27.72 | D74: =C74*(1-$H$2/100) -> 27.72 | E74: 1,2 mm/ poplastovanie 0,60 mm | F74: 2 m x 1 m | G74: m2
A75: 260110014 | B75: PVC Poplastovaný plech FB12 BAUDER zvitok, svetlosivý | C75: =_xlfn.XLOOKUP(VALUE(RIGHT(A75,8)),'[2]PVC_TPO PLECHY'!$G$5:$G$25,'[2]PVC_TPO PLECHY'!$I$5:$I$25,"-",0)*$A$1 -> 26.985 | D75: 26.985 | E75: 1,2 mm/ poplastovanie 0,60 mm | F75: 150 m2 | G75: m2
A76: 260100019 | B76: PVC Poplastovaný plech FB14 BAUDER, tabuľový, antracit | C76: =_xlfn.XLOOKUP(VALUE(RIGHT(A76,8)),'[2]PVC_TPO PLECHY'!$G$5:$G$25,'[2]PVC_TPO PLECHY'!$I$5:$I$25,"-",0)*$A$1 -> 28.35 | D76: 28.35 | E76: 1,4 mm/ poplastovanie 0,80 mm | F76: 2 m x 1 m | G76: m2
A77: 260110020 | B77: PVC Poplastovaný plech FB14 BAUDER, zvitok, antracit | C77: =_xlfn.XLOOKUP(VALUE(RIGHT(A77,8)),'[2]PVC_TPO PLECHY'!$G$5:$G$25,'[2]PVC_TPO PLECHY'!$I$5:$I$25,"-",0)*$A$1 -> 27.86 | D77: 27.86 | E77: 1,4 mm/ poplastovanie 0,80 mm | F77: 150 m2 | G77: m2
A78: 260130015 | B78: PVC Poplastovaný plech FB14 BAUDER, tabuľový, tehlovočervený | C78: =_xlfn.XLOOKUP(VALUE(RIGHT(A78,8)),'[2]PVC_TPO PLECHY'!$G$5:$G$25,'[2]PVC_TPO PLECHY'!$I$5:$I$25,"-",0)*$A$1 -> 32.48 | D78: 32.48 | E78: 1,4 mm/ poplastovanie 0,80 mm | F78: 2 m x 1 m | G78: m2
A79: 260110012 | B79: PVC Poplastovaný plech FB14 BAUDER, zvitok, svetlosivý | C79: =_xlfn.XLOOKUP(VALUE(RIGHT(A79,8)),'[2]PVC_TPO PLECHY'!$G$5:$G$25,'[2]PVC_TPO PLECHY'!$I$5:$I$25,"-",0)*$A$1 -> 27.755 | D79: 27.755 | E79: 1,2 mm/ poplastovanie 0,60 mm | F79: 30 m2 | G79: m2
A80: 260110019 | B80: PVC Poplastovaný plech FB14 BAUDER, zvitok, antracit | C80: =_xlfn.XLOOKUP(VALUE(RIGHT(A80,8)),'[2]PVC_TPO PLECHY'!$G$5:$G$25,'[2]PVC_TPO PLECHY'!$I$5:$I$25,"-",0)*$A$1 -> 28.6125 | D80: 28.6125 | E80: 1,4 mm/ poplastovanie 0,80 mm | F80: 30 m2 | G80: m2
A81: 265100014 | B81: TPO Poplastovaný plech FB14 BAUDER, tabuľový, perlovobiely (maslový) | C81: =_xlfn.XLOOKUP(VALUE(RIGHT(A81,8)),'[2]PVC_TPO PLECHY'!$G$5:$G$25,'[2]PVC_TPO PLECHY'!$I$5:$I$25,"-",0)*$A$1 -> 30.555 | D81: 30.555 | E81: 1,4 mm/ poplastovanie 0,80 mm | F81: 2 m x 1 m | G81: m2
A82: 265300014 | B82: TPO Poplastovaný plech FB14 BAUDER, tabuľový, striebornosivý | C82: =_xlfn.XLOOKUP(VALUE(RIGHT(A82,8)),'[2]PVC_TPO PLECHY'!$G$5:$G$25,'[2]PVC_TPO PLECHY'!$I$5:$I$25,"-",0)*$A$1 -> 30.555 | D82: 30.555 | E82: 1,4 mm/ poplastovanie 0,80 mm | F82: 2 m x 1 m | G82: m2
A83: 265100019 | B83: TPO Poplastovaný plech FB14 BAUDER, tabuľový, granitovo čierny (antracit) | C83: =_xlfn.XLOOKUP(VALUE(RIGHT(A83,8)),'[2]PVC_TPO PLECHY'!$G$5:$G$25,'[2]PVC_TPO PLECHY'!$I$5:$I$25,"-",0)*$A$1 -> 33.0225 | D83: 33.0225 | E83: 1,4 mm/ poplastovanie 0,80 mm | F83: 2 m x 1 m | G83: m2
A84: 265100016 | B84: TPO Poplastovaný plech FB14 BAUDER, biely | C84: =_xlfn.XLOOKUP(VALUE(RIGHT(A84,8)),'[2]PVC_TPO PLECHY'!$G$5:$G$25,'[2]PVC_TPO PLECHY'!$I$5:$I$25,"-",0)*$A$1 -> 31.08 | D84: 31.08 | E84: 1,4 mm/ poplastovanie 0,80 mm | F84: 2 m x 1 m | G84: m2
A85: 265110016 | B85: TPO Poplastovaný plech FB14 BAUDER, zvitok, perlovobiely (maslový) | C85: =_xlfn.XLOOKUP(VALUE(RIGHT(A85,8)),'[2]PVC_TPO PLECHY'!$G$5:$G$25,'[2]PVC_TPO PLECHY'!$I$5:$I$25,"-",0)*$A$1 -> 29.925 | D85: 29.925 | E85: 1,4 mm/ poplastovanie 0,80 mm | F85: 150 m2 | G85: m2
A86: 265110023 | B86: TPO Poplastovaný plech FB14 BAUDER, zvitok, biely | C86: =_xlfn.XLOOKUP(VALUE(RIGHT(A86,8)),'[2]PVC_TPO PLECHY'!$G$5:$G$25,'[2]PVC_TPO PLECHY'!$I$5:$I$25,"-",0)*$A$1 -> 31.85 | D86: 31.85 | E86: 1,4 mm/ poplastovanie 0,80 mm | F86: 150 m2 | G86: m2
A87: 265310016 | B87: TPO Poplastovaný plech FB14 BAUDER, zvitok, striebornosivý | C87: =_xlfn.XLOOKUP(VALUE(RIGHT(A87,8)),'[2]PVC_TPO PLECHY'!$G$5:$G$25,'[2]PVC_TPO PLECHY'!$I$5:$I$25,"-",0)*$A$1 -> 29.925 | D87: 29.925 | E87: 1,4 mm/ poplastovanie 0,80 mm | F87: 150 m2 | G87: m2
A88: 265110014 | B88: TPO Poplastovaný plech FB14 BAUDER, zvitok, perlovobiely (maslový) | C88: =_xlfn.XLOOKUP(VALUE(RIGHT(A88,8)),'[2]PVC_TPO PLECHY'!$G$5:$G$25,'[2]PVC_TPO PLECHY'!$I$5:$I$25,"-",0)*$A$1 -> 30.66 | D88: 30.66 | E88: 1,4 mm/ poplastovanie 0,80 mm | F88: 30 m2 | G88: m2
A89: 265310014 | B89: TPO Poplastovaný plech FB14 BAUDER, zvitok, striebornosivý | C89: =_xlfn.XLOOKUP(VALUE(RIGHT(A89,8)),'[2]PVC_TPO PLECHY'!$G$5:$G$25,'[2]PVC_TPO PLECHY'!$I$5:$I$25,"-",0)*$A$1 -> 30.66 | D89: 30.66 | E89: 1,4 mm/ poplastovanie 0,80 mm | F89: 30 m2 | G89: m2

Sheet STREŠNÉ KRYTINY
A1: 1.75 | H1: Vaša zľava v %
H2: 0
H3: Ceny sú uvádzané bez DPH za m2 krycej plochy krytiny.
A7: PLU | B7: Model | C7: Cena s fóliou | D7: Cena po zľave | E7: Hrúbka (mm) | F7: R.š. (mm) | G7: K.š. (mm) | H7: MJ | I7: Objednané množstvá | J7: Obrázok
B8: Strešná krytina SCHLEBACH
B9: STANDARD (mat. LPL) | C9: 12.2 | D9: =IFERROR(C9*(1-$H$2/100),"-") -> 12.2 | E9: 0,5 mm | F9: 625 | G9: 550 | H9: m2
B10: ELEGANZ (mat. LPL) | C10: 12.6 | D10: 12.6 | E10: 0,5 mm | F10: 625 | G10: 550 | H10: m2
B11: STRONG (mat. LPL) | C11: 14.5 | D11: 14.5 | E11: 0,5 mm | F11: 625 | G11: 550 | H11: m2
B12: POZINK | C12: 12.1 | D12: 12.1 | E12: 0,5 mm | F12: 500 | G12: 430 | H12: m2
B13: POZINK | C13: 12 | D13: 12 | E13: 0,5 mm | F13: 625 | G13: 550 | H13: m2
B14: meď | C14: dopyt | D14: - | E14: 0.55 | F14: 500 | G14: 430 | H14: m2
B15: meď | C15: dopyt | D15: - | E15: 0.55 | F15: 670 | G15: 600 | H15: m2
B16: RAL (mat. Al profal) | C16: dopyt | D16: - | E16: 0.7 | F16: 600 | G16: 530 | H16: m2
B17: Natural (mat. TZ) | C17: dopyt | D17: - | E17: 0.65 | F17: 500 | G17: 430 | H17: m2
B18: Natural (mat. TZ) | C18: dopyt | D18: - | E18: 0.65 | F18: 670 | G18: 600 | H18: m2
B19: Natural (mat. TZ) | C19: dopyt | D19: - | E19: 0.7 | F19: 670 | G19: 600 | H19: m2
B20: Anthra (mat. TZ) | C20: dopyt | D20: - | E20: 0.7 | F20: 670 | G20: 600 | H20: m2
B21: Quartz (mat. TZ) | C21: dopyt | D21: - | E21: 0.7 | F21: 670 | G21: 600 | H21: m2
B22: Ponúkame variantu Schlebach Plus - vyprofilovanie jedného alebo dvoch prelisov pozdĺž pásov.
B28: Strešná krytina CLIP PANEL
B29: POZINK (mat. PZ) | C29: 12.2 | D29: =C29*(1-$H$2/100) -> 12.2 | E29: 0.5 | F29: 625 | G29: 510 | H29: m2
B30: STANDARD (mat. LPL) | C30: 12.6 | D30: =C30*(1-$H$2/100) -> 12.6 | E30: 0.5 | F30: 625 | G30: 510 | H30: m2
B31: ELEGANZ (mat. LPL) | C31: 13 | D31: 13 | E31: 0.5 | F31: 625 | G31: 510 | H31: m2
B32: STRONG (mat. LPL) | C32: 15.5 | D32: 15.5 | E32: 0.5 | F32: 625 | G32: 510 | H32: m2
B33: Ponúkame variantu Clip panel Plus - vyprofilovanie jedného alebo dvoch prelisov pozdĺž pásov.
B39: Strešná krytina LAMINKA
B40: STANDARD (mat. LPL) | C40: 14.5 | D40: =C40*(1-$H$2/100) -> 14.5 | E40: 0.5 | F40: 1200 | G40: 1080 | H40: m2
B41: ELEGANZ (mat. LPL) | C41: 14.8 | D41: =C41*(1-$H$2/100) -> 14.8 | E41: 0.5 | F41: 1200 | G41: 1080 | H41: m2
B42: STRONG (mat. LPL) | C42: 17.5 | D42: 17.5 | E42: 0.5 | F42: 1200 | G42: 1080 | H42: m2

Sheet DOPLNKY KU KRYTINÁM
A1: 1.75 | H1: Vaša zľava v %
H2: 0
H3: Ceny sú uvádzané bez DPH za m2 krycej plochy krytiny.
A7: PLU | B7: Produkt | C7: Cena | D7: Cena po zľave | E7: Rozmer | F7: MJ | G7: Objednané množstvá | H7: Obrázok | I7: Nákres
B8: Oplechovania k strešným krytinám CLIP PANEL a SCHLEBACH
B9: Odkvapové lemovanie - STANDARD | C9: 4.6 | D9: =IFERROR(C9*(1-$H$2/100),"-") -> 4.6 | E9: r.š. 313 mm | F9: m
B10: Odkvapové lemovanie - ELEGANZ | C10: 4.8 | D10: 4.8 | F10: m
B11: Odkvapové lemovanie - STRONG | C11: 5.1 | D11: 5.1 | F11: m
B12: Upevňovací obrysový plech - STANDARD | C12: 2.8 | D12: 2.8 | E12: r.š. 100 mm | F12: m
B13: Upevňovací obrysový plech - ELEGANZ | C13: 2.9 | D13: 2.9 | F13: m
B14: Upevňovací obrysový plech - STRONG | C14: 3 | D14: 3 | F14: m
B15: Spojovací plech - STANDARD | C15: 3.1 | D15: 3.1 | E15: r.š. 150 mm | F15: m
B16: Spojovací plech - ELEGANZ | C16: 3.2 | D16: 3.2 | F16: m
B17: Spojovací plech - STRONG | C17: 3.35 | D17: 3.35 | F17: m
B18: Pultové lemovanie - STANDARD | C18: 6.5 | D18: 6.5 | E18: r.š. 500 mm | F18: m
B19: Pultové lemovanie - ELEGANZ | C19: 6.6 | D19: 6.6 | F19: m
B20: Pultové lemovanie - STRONG | C20: 7 | D20: 7 | F20: m
B21: Napojenie plechu na múr vrchné - STANDARD | C21: 5.9 | D21: 5.9 | E21: r.š. 350 mm | F21: m
B22: Napojenie plechu na múr vrchné - ELEGANZ | C22: 6 | D22: 6 | F22: m
B23: Napojenie plechu na múr vrchné - STRONG | C23: 6.5 | D23: 6.5 | F23: m
B24: Napojenie plechu na múr bočné - STANDARD | C24: 5.3 | D24: 5.3 | E24: r.š. 300 mm | F24: m
B25: Napojenie plechu na múr bočné - ELEGANZ | C25: 5.4 | D25: 5.4 | F25: m
B26: Napojenie plechu na múr bočné - STRONG | C26: 5.8 | D26: 5.8 | F26: m
B27: Štítové lemovanie - STANDARD | C27: 6 | D27: 6 | E27: r.š. 400 mm | F27: m
B28: Štítové lemovanie - ELEGANZ | C28: 6.1 | D28: 6.1 | F28: m
B29: Štítové lemovanie - STRONG | C29: 6.3 | D29: 6.3 | F29: m
B30: Hrebenáč - STANDARD | C30: 6.45 | D30: 6.45 | E30: r.š. 416 mm | F30: m
B31: Hrebenáč - ELEGANZ | C31: 6.55 | D31: 6.55 | F31: m
B32: Hrebenáč - STRONG | C32: 6.8 | D32: 6.8 | F32: m
B33: Úžľabie - STANDARD | C33: 7.8 | D33: 7.8 | E33: r.š. 625 mm | F33: m
B34: Úžľabie - ELEGANZ | C34: 7.9 | D34: 7.9 | F34: m
B35: Úžľabie - STRONG | C35: 8.3 | D35: 8.3 | F35: m
B36: Podkladový pás - STANDARD | C36: 3.2 | D36: 3.2 | E36: r.š. 200 mm | F36: m
B37: Podkladový pás - ELEGANZ | C37: 3.4 | D37: 3.4 | F37: m
B38: Podkladový pás - STRONG | C38: 3.7 | D38: 3.7 | F38: m
B39: Podkladový pás - STANDARD | C39: 3.7 | D39: 3.7 | E39: r.š. 250 mm | F39: m
B40: Podkladový pás - ELEGANZ | C40: 3.9 | D40: 3.9 | F40: m
B41: Podkladový pás - STRONG | C41: 4.2 | D41: 4.2 | F41: m
B42: Vetrací profil - STANDARD | C42: 4 | D42: 4 | F42: m
B43: Vetrací profil - ELEGANZ | C43: 4.2 | D43: 4.2 | F43: m
B44: Vetrací profil - STRONG | C44: 4.4 | D44: 4.4 | F44: m
B45: Vetrací profil CLIP PANEL - STANDARD | C45: 2 | D45: 2 | E45: dĺ. 500 mm | F45: ks
B46: Vetrací profil CLIP PANEL - ELEGANZ | C46: 2.1 | D46: 2.1 | F46: ks
B47: Vetrací profil CLIP PANEL - STRONG | C47: 2.2 | D47: 2.2 | F47: ks
B48: Vetrací profil SCHLEBACH - STANDARD | C48: 2 | D48: 2 | E48: dĺ. 540 mm | F48: ks
B49: Vetrací profil SCHLEBACH - ELEGANZ | C49: 2.1 | D49: 2.1 | F49: ks
B50: Vetrací profil SCHLEBACH - STRONG | C50: 2.2 | D50: 2.2 | F50: ks
B51: Vetrací profil - STANDARD | C51: 12 | D51: 12 | E51: dĺ. 3000 mm | F51: ks
B52: Vetrací profil - ELEGANZ | C52: 12.6 | D52: 12.6 | F52: ks
B53: Vetrací profil - STRONG | C53: 13.2 | D53: 13.2 | F53: ks
B54: Oplechovania k strešnej krytine LAMINKA
B55: Odkvapové lemovanie - STANDARD | C55: 7 | D55: =IFERROR(C55*(1-$H$2/100),"-") -> 7 | E55: r.š. 208 mm /dĺ. 2 m | F55: ks
B56: Odkvapové lemovanie - ELEGANZ | C56: 7.4 | D56: 7.4 | F56: ks
B57: Odkvapové lemovanie - STRONG | C57: 8 | D57: 8 | F57: ks
B58: Záveterná lišta štítová - STANDARD | C58: 11.5 | D58: 11.5 | E58: r.š. 310 mm /dĺ. 2 m | F58: ks
B59: Záveterná lišta štítová - ELEGANZ | C59: 12 | D59: 12 | F59: ks
B60: Záveterná lišta štítová - STRONG | C60: 13 | D60: 13 | F60: ks
B61: Úžľabie - STANDARD | C61: 15.6 | D61: 15.6 | E61: r.š. 625 mm /dĺ. 2 m | F61: ks
B62: Úžľabie - ELEGANZ | C62: 15.8 | D62: 15.8 | F62: ks
B63: Úžľabie - STRONG | C63: 16.6 | D63: 16.6 | F63: ks
B64: Bočné lemovanie - STANDARD | C64: 11.5 | D64: 11.5 | E64: r.š. 310 mm /dĺ. 2 m | F64: ks
B65: Bočné lemovanie - ELEGANZ | C65: 12 | D65: 12 | F65: ks
B66: Bočné lemovanie - STRONG | C66: 13 | D66: 13 | F66: ks
B67: Pultové lemovanie - STANDARD | C67: 10.2 | D67: 10.2 | E67: r.š. 310 mm /dĺ. 2 m | F67: ks
B68: Pultové lemovanie - ELEGANZ | C68: 10.4 | D68: 10.4 | F68: ks
B69: Pultové lemovanie - STRONG | C69: 11 | D69: 11 | F69: ks
B70: Hrebenáč oblý - STANDARD | C70: 16 | D70: 16 | F70: ks
B71: Hrebenáč oblý - ELEGANZ | C71: 16.2 | D71: 16.2 | F71: ks
B72: Hrebenáč oblý - STRONG | C72: 17 | D72: 17 | F72: ks
B73: Čelo hrebenáča - štít - STANDARD | C73: 4.6 | D73: 4.6 | F73: ks
B74: Čelo hrebenáča - štít - ELEGANZ | C74: 4.8 | D74: 4.8 | F74: ks
B75: Čelo hrebenáča - štít - STRONG | C75: 5.3 | D75: 5.3 | F75: ks
B76: Čelo hrebenáča - nárožie - STANDARD | C76: 14.5 | D76: 14.5 | F76: ks
B77: Čelo hrebenáča - nárožie - ELEGANZ | C77: 15 | D77: 15 | F77: ks
B78: Čelo hrebenáča - nárožie - STRONG | C78: 16 | D78: 16 | F78: ks
B79: Sneholap oblúkový - STANDARD | C79: 2.2 | D79: 2.2 | F79: ks
B80: Sneholap oblúkový - ELEGANZ | C80: 2.3 | D80: 2.3 | F80: ks
B81: Sneholap oblúkový - STRONG | C81: 2.4 | D81: 2.4 | F81: ks
B82: Doplnky
B83: Falzgel Prefa | C83: 28 | D83: 28 | F83: ks
B84: ENKOLIT plastická hmota - balenie 11 kg | C84: 8.9 | D84: 8.9 | F84: kg
B85: Prestupové manžety (čierne)
B86: Prestupová manžeta GMF1 | C86: 14.46 | D86: 14.46 | F86: ks
B87: Prestupová manžeta GMF2 | C87: 15.4 | D87: 15.4 | F87: ks
B88: Prestupová manžeta GMF3 | C88: 17.7 | D88: 17.7 | F88: ks
B89: Prestupová manžeta GMF4 | C89: 26.8 | D89: 26.8 | F89: ks
B90: Prestupová manžeta GMF5 | C90: 31.12 | D90: 31.12 | F90: ks
B91: Prestupová manžeta GMF6 | C91: 40.34 | D91: 40.34 | F91: ks
B92: Prestupová manžeta GMF7 | C92: 46.62 | D92: 46.62 | F92: ks
B93: Prestupová manžeta GMF8 | C93: 69.4 | D93: 69.4 | F93: ks
B94: Prestupová manžeta GMF9 | C94: 127.5 | D94: 127.5 | F94: ks
B95: Spojovací a tesniaci materiál
B96: Farmárska skrutka farebná RAL | C96: 0.07 | D96: 0.07 | E96: 4,8 x 20 mm | F96: ks
B97: Farmárska skrutka farebná RAL | C97: 0.07 | D97: 0.07 | E97: 4,8 x 35 mm | F97: ks
B98: Farmárska skrutka farebná RAL | C98: 0.16 | D98: 0.16 | E98: 4,8 x 70 mm | F98: ks
B99: Skrutka (CLIP panel) | C99: 0.12 | D99: 0.12 | E99: 4,2 x 25 mm | F99: ks
B100: Skrutka pozink (SOFIT panel) | C100: 0.04 | D100: 0.04 | E100: 4,2 x 13 mm | F100: ks
B101: Skrutka pozink (SOFIT panel) | C101: 0.05 | D101: 0.05 | E101: 4,2 x 16 mm | F101: ks
B102: Trhací nit farebný | C102: 0.13 | D102: 0.13 | E102: 4 x 8 mm | F102: ks
B103: Klinec krútený | C103: 1.6 | D103: 1.6 | E103: 3x 40 mm | F103: kg
B104: Klinec krútený | C104: 1.6 | D104: 1.6 | E104: 3x 50 mm | F104: kg
B105: Snehové zachytávače
B106: Snehový zachytávač na tegolu lakovaný RAL | C106: 1.66 | D106: 1.66 | F106: ks
B107: Snehový zachytávač na škridľu lakovaný RAL | C107: 1.8 | D107: 1.8 | F107: ks
B108: Doplnky k falcovanej krytine SCHLEBACH
B109: Príponka pevná lakoplastovaná | C109: 0.05 | D109: 0.05 | E109: 25 mm | F109: ks
B110: Príponka pevná medená | C110: 0.35 | D110: 0.35 | E110: 25 mm | F110: ks
B111: Príponka pevná nerezová | C111: 0.11 | D111: 0.11 | E111: 25 mm | F111: ks
B112: Príponka pevná nerezová | C112: 0.19 | D112: 0.19 | E112: 28 mm | F112: ks
B113: Príponka posuvná nerezová | C113: 0.3 | D113: 0.3 | E113: 25 mm | F113: ks
B114: Príponka posuvná nerezová | C114: 0.45 | D114: 0.45 | E114: 28 mm | F114: ks
B115: Príponka pevná DELTA nerezová | C115: 0.55 | D115: 0.55 | E115: 25 mm | F115: ks
B116: Príponka posuvná DELTA nerezová | C116: 0.88 | D116: 0.88 | E116: 25 mm | F116: ks
B117: Klinec krútený | C117: 1.6 | D117: 1.6 | E117: 3 x 40 mm | F117: kg
B118: Klinec krútený | C118: 1.6 | D118: 1.6 | E118: 3 x 50 mm | F118: kg

Sheet EVROMAT strešné krytiny
A1: 1.75 | H1: Vaša zľava v %
H2: 0
H3: Ceny sú uvádzané bez DPH za m2 krycej plochy krytiny.
B8: Strešná krytina EVROVLNA
A9: PLU | B9: Model | C9: Cena | D9: Cena po zľave | E9: Hrúbka (mm) | F9: R.š. (mm) | G9: K.š. (mm) | H9: MJ | I9: Objednané množstvá | J9: Obrázok
B10: EVROVLNA (mat. PES) | C10: 12.2 | D10: =IFERROR(C10*(1-$H$2/100),"-") -> 12.2 | E10: 0,5 mm | F10: 1250 | G10: 1120 | H10: m2
B11: EVROVLNA (mat. QUARTZ) | C11: 14.9 | D11: 14.9 | E11: 0,5 mm | F11: 1250 | G11: 1120 | H11: m2
B12: EVROVLNA (mat. STORM) | C12: 14.9 | D12: 14.9 | E12: 0,5 mm | F12: 1250 | G12: 1120 | H12: m2
B13: EVROVLNA | C13: 16.9 | D13: 16.9 | E13: 0,5 mm | F13: 1250 | G13: 1120 | H13: m2
B14: *strešné krytiny PES sú predávané s ochrannou fóliou.
B20: Strešná krytina EVROMODUL
A21: PLU | B21: Model | C21: Cena | D21: Cena po zľave | E21: Hrúbka (mm) | F21: R.š. (mm) | G21: K.š. (mm) | H21: MJ | I21: Objednané množstvá | J21: Obrázok
B22: EVROMODUL (mat. PES) | C22: 10.7 | D22: =C22*(1-$H$2/100) -> 10.7 | E22: 0.5 | F22: 1250 | G22: 1140 | H22: ks
B23: EVROMODUL (mat. QUARTZ) | C23: 11.4 | D23: =C23*(1-$H$2/100) -> 11.4 | E23: 0.5 | F23: 1250 | G23: 1140 | H23: ks
B24: EVROMODUL (mat. STORM) | C24: 11.4 | D24: 11.4 | E24: 0.5 | F24: 1250 | G24: 1140 | H24: ks
B25: *strešné krytiny PES sú predávané s ochrannou fóliou.
B26: Priečny rez a rozmery
E27: Materiály | F27: Záruka | G27: Vrchná vrstva | H27: Spodná vrstva | J27: Dostupné farebné prevedenia
E28: PES | F28: 20 rokov | G28: 25 μm | H28: 7 μm | J28: Materiály | K28: RAL
E29: QUARTZ | F29: 30 rokov | G29: 45 μm | H29: 10 μm | J29: PES | K29: 3009, 3011, 5010, 7016, 8004, 8017, 8019,9005, 9006, 9010, Testa di Moro
E30: STORM | F30: 40 rokov | G30: 50 μm | H30: 12 μm | J30: QUARTZ | K30: 3009, 7016, 8017, 9005
E31: AL STUCO | F31: 60 rokov | G31: - | H31: - | J31: STORM | K31: 3009, 7016, 8017, 9005
J32: AL STUCO | K32: 7016
B33: Oplechovania k strešným krytinám EVROVLNA a EVROMODUL
B34: Model | C34: Cena | D34: Cena po zľave | E34: Materiál | F34: Dĺžka | G34: MJ | H34: Objednané množstvá | I34: Obrázok | J34: Nákres
B35: Bočné lemovanie, r.š.310 mm | C35: 11.5 | D35: =C35*(1-$H$2/100) -> 11.5 | E35: PES | F35: 2 bm | G35: ks
B36: Bočné lemovanie, r.š.310 mm | C36: 12 | D36: 12 | E36: QUARTZ | F36: 2 bm | G36: ks
B37: Bočné lemovanie, r.š.310 mm | C37: 13 | D37: 13 | E37: STORM | F37: 2 bm | G37: ks
B38: Bočné lemovanie, r.š.310 mm | C38: 14 | D38: 14 | E38: AL STUCO | F38: 2 bm | G38: ks
B39: Čelo hrebenáča - nárožie | C39: 14.5 | D39: 14.5 | E39: PES | G39: ks
B40: Čelo hrebenáča - nárožie | C40: 15 | D40: 15 | E40: QUARTZ | G40: ks
B41: Čelo hrebenáča - nárožie | C41: 16 | D41: 16 | E41: STORM | G41: ks
B42: Čelo hrebenáča - nárožie | C42: 17 | D42: 17 | E42: AL STUCO | G42: ks
B43: Čelo hrebenáča - štít | C43: 4.6 | D43: 4.6 | E43: PES | G43: ks
B44: Čelo hrebenáča - štít | C44: 4.8 | D44: 4.8 | E44: QUARTZ | G44: ks
B45: Čelo hrebenáča - štít | C45: 5.3 | D45: 5.3 | E45: STORM | G45: ks
B46: Čelo hrebenáča - štít | C46: 5.8 | D46: 5.8 | E46: AL STUCO | G46: ks
B47: Hrebenáč oblý, r.š.312,5 mm | C47: 16.5 | D47: 16.5 | E47: PES | F47: 2 bm | G47: ks
B48: Hrebenáč oblý, r.š.312,5 mm | C48: 17 | D48: 17 | E48: QUARTZ | F48: 2 bm | G48: ks
B49: Hrebenáč oblý, r.š.312,5 mm | C49: 18 | D49: 18 | E49: STORM | F49: 2 bm | G49: ks
B50: Hrebenáč oblý, r.š.312,5 mm | C50: 19 | D50: 19 | E50: AL STUCO | F50: 2 bm | G50: ks
B51: Odkvapové lemovanie, r.š.208 mm | C51: 7.5 | D51: 7.5 | E51: PES | F51: 2 bm | G51: ks
B52: Odkvapové lemovanie, r.š.208 mm | C52: 7.8 | D52: 7.8 | E52: QUARTZ | F52: 2 bm | G52: ks
B53: Odkvapové lemovanie, r.š.208 mm | C53: 8.5 | D53: 8.5 | E53: STORM | F53: 2 bm | G53: ks
B54: Odkvapové lemovanie, r.š.208 mm | C54: 9.2 | D54: 9.2 | E54: AL STUCO | F54: 2 bm | G54: ks
B55: Pultové lemovanie, r.š.310 mm | C55: 10.2 | D55: 10.2 | E55: PES | F55: 2 bm | G55: ks
B56: Pultové lemovanie, r.š.310 mm | C56: 10.4 | D56: 10.4 | E56: QUARTZ | F56: 2 bm | G56: ks
B57: Pultové lemovanie, r.š.310 mm | C57: 11.2 | D57: 11.2 | E57: STORM | F57: 2 bm | G57: ks
B58: Pultové lemovanie, r.š.310 mm | C58: 12.4 | D58: 12.4 | E58: AL STUCO | F58: 2 bm | G58: ks
B59: Sneholap oblúkový | C59: 2.2 | D59: 2.2 | E59: PES | G59: ks
B60: Sneholap oblúkový | C60: 2.3 | D60: 2.3 | E60: QUARTZ | G60: ks
B61: Sneholap oblúkový | C61: 2.4 | D61: 2.4 | E61: STORM | G61: ks
B62: Sneholap oblúkový | C62: 2.6 | D62: 2.6 | E62: AL STUCO | G62: ks
B63: Úžľabie, r.š.625 mm | C63: 16.5 | D63: 16.5 | E63: PES | F63: 2 bm | G63: ks
B64: Úžľabie, r.š.625 mm | C64: 17.2 | D64: 17.2 | E64: QUARTZ | F64: 2 bm | G64: ks
B65: Úžľabie, r.š.625 mm | C65: 18.7 | D65: 18.7 | E65: STORM | F65: 2 bm | G65: ks
B66: Úžľabie, r.š.625 mm | C66: 22 | D66: 22 | E66: AL STUCO | F66: 2 bm | G66: ks
B67: Záveterná lišta štítová, r.š.310 mm | C67: 11.5 | D67: 11.5 | E67: PES | F67: 2 bm | G67: ks
B68: Záveterná lišta štítová, r.š.310 mm | C68: 12 | D68: 12 | E68: QUARTZ | F68: 2 bm | G68: ks
B69: Záveterná lišta štítová, r.š.310 mm | C69: 13 | D69: 13 | E69: STORM | F69: 2 bm | G69: ks
B70: Záveterná lišta štítová, r.š.310 mm | C70: 14 | D70: 14 | E70: AL STUCO | F70: 2 bm | G70: ks
